{"text_format":"1","workbook":"xlsx","n_sheets":2,"sheets":["Meetings","Races"],"not_rendered":{"charts":0,"images":0,"macros":0,"external_links":0,"defined_names":0,"comments":0,"pivot_tables":0},"unopened":[],"bounds":{"document_bytes":16777216,"sheet_cells":100000,"rows_first":2000,"rows_last":500,"rows_between":2000,"halvings":0,"cell_chars":16384,"cell_head_chars":4096},"cells_cut":0,"cells_raw":0,"read":"whole","date_system":"1900"}

{"sheet":"Meetings","index":0,"n_rows":609,"n_cols":52,"rows_kept":609,"cut":false,"hidden":false,"merged":[]}
[null,"NWRacing - Ratings & Data Analysis"]
[]
[null,"1420 Bangor-on-Dee RUK"]
[null,"Horseradish Catering Mares Novices Hurdle 2m3f123y"]
[{"$f":"ISNUMBER(FIND(\"wh-\", AO7))","v":true},"Winnings:£4,094 Runners:6 Distance:2m3f123y Going:Good Channel:RUK",null,null,null,null,null,null,null,null,null,null,null,null,null,null,null,"OF Strategy",null,"              Recent Form ",null,"Speed",null,null,"                  Official Ratings",null,null,null,null,null,null,"             Life Win",null,"           Year Win",null,null,"         Trends",null,null,null,null,null,null,"Course Stats (Flat Only)",null,"                    Win %",null,null,null,"                   ROI %"]
[null,"Rank","R1","R2","Total","No","Dr","sig","Form","Horse","Age","Weight","Trainer (Run To Form)","Jockey (Allowance)","OR","TS","RPR","Rating","Rank","Horse","Tr'nr","Rank","Tdy","Fut","Horse - Weight",1,2,3,4,5,"LTO","High","Low","High ","Low","Wgt","Hc","Age","Tr'nr","Jock",null,null,null,"Horse","Sire","Trainer","Jockey","Average","Sire","Trainer","Jockey","Average"]
[1,1,7,7,14,2,null,0,"321P1","Skin Deep42 ",5,"11-5","Alan King61","Barry Geraghty","-",49,120,-8.75,3,12,61,null,"-",null,"skin deep11-5",null,"-","-","-","-","-",null,null,null,null,null,null,null,null,null,"wh-be-"]
[1,2,6,5,11,1,null,0,"44-144","Shazzamataz28 ",6,"11-5","Alex Hales100","Noel Fehily",110,85,116,23.25,1,9,100,null,110,null,"shazzamataz11-5","-","-","-","-",115,112,null,null,null,null,null,null,null,null,null,"wh-be-"]
[1,3,5,5,10,6,null,0,"84216","Sid Hoodie22 t",4,"10-12","Charlie Mann67","Harry Bannister","-",64,105,-8.75,3,9,67,null,"-",null,"sid hoodie10-12",null,"-","-","-","-","-",null,null,null,null,null,null,null,null,null,"wh-be-"]
[1,4,6,3,9,5,null,0,"6F-114","Pique Rock117 h",6,"10-12","Henry Daly","Richard Johnson","-","-",126,11,2,6,null,null,"-",null,"pique rock10-12",null,"-","-","-","-","-",null,null,null,null,null,null,null,null,null,"wh-be-"]
[1,5,3,2,5,3,null,0,"21315-","Dame Du Soir222 ",5,"10-12","David Bridgwater29","Tom Scudamore","-",53,108,-16.75,5,9,29,null,"-",null,"dame du soir10-12",null,"-","-","-","-","-",null,null,null,null,null,null,null,null,null,"wh-be-"]
[1,6,0,0,0,4,null,0,"P","Just Heather87 ",4,"10-12","John Wainwright67","Finian OToole3","-","-","-",null,null,30,67,null,"-",null,"just heather10-12",null,null,null,null,null,"-",null,null,null,null,null,null,null,null,null,"wh-be-"]
[]
[null,"1455 Bangor-on-Dee RUK"]
[null,"Malise Nicolson Novices Handicap Chase 2m1f77y"]
[{"$f":"ISNUMBER(FIND(\"wh-\", AO7))","v":true},"Winnings:£4,614 Runners:9 Distance:2m1f77y Going:Good Channel:RUK",null,null,null,null,null,null,null,null,null,null,null,null,null,null,null,"OF Strategy",null,"              Recent Form ",null,"Speed",null,null,"                  Official Ratings",null,null,null,null,null,null,"             Life Win",null,"           Year Win",null,null,"         Trends",null,null,null,null,null,null,"Course Stats (Flat Only)",null,"                    Win %",null,null,null,"                   ROI %"]
[null,"Rank","R1","R2","Total","No","Dr","sig","Form","Horse","Age","Weight","Trainer (Run To Form)","Jockey (Allowance)","OR","TS","RPR","Rating","Rank","Horse","Tr'nr","Rank","Tdy","Fut","Horse - Weight",1,2,3,4,5,"LTO","High","Low","High ","Low","Wgt","Hc","Age","Tr'nr","Jock",null,null,null,"Horse","Sire","Trainer","Jockey","Average","Sire","Trainer","Jockey","Average"]
[1,1,7,5,12,8,null,0,"6-8322","By Rail8 h",4,"11-2","Nick Littmoden50","Jack Quinlan",98,89,107,8.4666748046875,1,7,50,null,98,1,"by rail11-2","-","-","-",98,98,100,null,null,null,null,null,null,null,null,null,"wh-be-"]
[1,1,7,5,12,2,null,0,"19-2UU","Comber Mill10 ht",6,"12-6","Alastair Ralph","Andrew Tinkler",106,60,101,-18.5333251953125,5,22,null,null,106,null,"comber mill12-6",96,100,107,106,106,106,null,null,null,null,null,null,null,null,null,"wh-be-"]
[1,3,5,5,10,7,null,0,"-97F22","Clearly Capable58 ",9,"11-2","Dai Burchell100","Robert Dunne",88,"-",120,3.7999748046875101,2,14,100,null,88,null,"clearly capable11-2",93,92,89,86,86,90,null,null,null,null,null,null,null,null,null,"wh-be-"]
[1,3,4,6,10,4,null,0,"-25747","Ortenzia22 t",4,"11-6","Charlie Longsdon40","Jonathan Burke",102,"-","-",null,null,18,40,null,102,null,"ortenzia11-6",106,102,107,106,105,105,null,null,null,null,null,null,null,null,null,"wh-be-"]
[1,5,4,4,8,9,null,0,"735-33","Shininstar120 h",9,"10-10","John Groucott","Lee Edwards",82,95,111,2.4666748046875,4,11,null,null,82,null,"shininstar10-10",97,97,89,99,87,84,null,null,null,null,null,null,null,null,null,"wh-be-"]
[1,5,5,3,8,5,null,0,"3546-2","Ballyantics121 ",7,"11-5","Neil Mulholland40","Tom Scudamore",91,"-","-",null,null,12,40,null,91,null,"ballyantics11-5",95,91,92,92,90,89,null,null,null,null,null,null,null,null,null,"wh-be-"]
[1,7,3,3,6,1,null,0,"P3/46-","The Herds Garden460 ",9,"12-7","Donald McCain43","Brian Hughes",107,"-",101,3.7999748046875101,2,13,43,null,107,null,"the herds garden12-7",120,120,124,120,112,118,null,null,null,null,null,null,null,null,null,"wh-be-"]
[1,8,2,2,4,3,null,0,"7/7878","Mountain Chimes21 ",6,"11-9","Henry Oliver","Tom OBrien",95,"-","-",null,null,23,null,null,95,null,"mountain chimes11-9","-","-","-","-","-",99,null,null,null,null,null,null,null,null,null,"wh-be-"]
[1,9,0,2,2,6,null,0,"76864-","Hands Of Stone185 ",6,"11-4","Evan Williams67","Adam Wedge",90,"-","-",null,null,18,67,null,90,null,"hands of stone11-4","-","-",102,99,95,91,null,null,null,null,null,null,null,null,null,"wh-be-"]
[]
[null,"1525 Bangor-on-Dee RUK"]
[null,"Follow Timeforms 50 For The Jumps Novices Hurdle 2m145y"]
[{"$f":"ISNUMBER(FIND(\"wh-\", AO7))","v":true},"Winnings:£4,094 Runners:9 Distance:2m145y Going:Good Channel:RUK",null,null,null,null,null,null,null,null,null,null,null,null,null,null,null,"OF Strategy",null,"              Recent Form ",null,"Speed",null,null,"                  Official Ratings",null,null,null,null,null,null,"             Life Win",null,"           Year Win",null,null,"         Trends",null,null,null,null,null,null,"Course Stats (Flat Only)",null,"                    Win %",null,null,null,"                   ROI %"]
[null,"Rank","R1","R2","Total","No","Dr","sig","Form","Horse","Age","Weight","Trainer (Run To Form)","Jockey (Allowance)","OR","TS","RPR","Rating","Rank","Horse","Tr'nr","Rank","Tdy","Fut","Horse - Weight",1,2,3,4,5,"LTO","High","Low","High ","Low","Wgt","Hc","Age","Tr'nr","Jock",null,null,null,"Horse","Sire","Trainer","Jockey","Average","Sire","Trainer","Jockey","Average"]
[1,1,10,7,17,9,null,0,"0-1225","Val Mome21 ",5,"10-12","Donald McCain43","Brian Hughes",115,90,127,11.2666931152344,2,9,43,null,115,null,"val mome10-12",null,null,"-","-","-",115,null,null,null,null,null,null,null,null,null,"wh-be-"]
[1,2,6,6,12,6,null,0,"/2453-","Neachells Bridge193 ",6,"10-12","Neil Mulholland40","Noel Fehily","-",107,129,30.2666931152344,1,12,40,null,"-",null,"neachells bridge10-12",null,null,"-","-","-","-",null,null,null,null,null,null,null,null,null,"wh-be-"]
[1,3,4,5,9,5,null,0,"P/22-3","Mythical Prince25 ",6,"10-12","Warren Greatrex","Richard Johnson","-","-","-",null,null,7,null,null,"-",null,"mythical prince10-12",null,null,null,"-","-","-",null,null,null,null,null,null,null,null,null,"wh-be-"]
[1,4,2,6,8,4,null,0,null,"My Fantasea27 ",5,"10-12","Ian Williams68","Tom OBrien","-","-","-",null,null,30,68,null,"-",null,"my fantasea10-12",null,null,null,null,null,null,null,null,null,null,null,null,null,null,null,"wh-be-"]
[1,5,4,2,6,8,null,0,"3272-","Some Day Soon191 ",5,"10-12","Jamie Snowden75","Gavin Sheehan","-","-","-",null,null,11,75,null,"-",null,"some day soon10-12",null,null,"-","-","-","-",null,null,null,null,null,null,null,null,null,"wh-be-"]
[1,5,2,4,6,1,null,0,"2-33F","Court Royale82 ",5,"10-12","Evan Williams67","Adam Wedge","-","-",111,-1.40000688476562,3,16,67,null,"-",null,"court royale10-12",null,null,"-","-","-","-",null,null,null,null,null,null,null,null,null,"wh-be-"]
[1,7,1,4,5,3,null,0,"P54-","Jacbequick281  ",7,"10-12","David Pipe45","Tom Scudamore","-",83,117,-5.7333068847656197,4,19,45,null,"-",null,"jacbequick10-12",null,null,null,"-","-","-",null,null,null,null,null,null,null,null,null,"wh-be-"]
[1,8,2,1,3,2,null,0,"73249-","Enrichissant235 ",4,"10-12","David Bridgwater29","Aidan Coleman","-","-","-",null,null,15,29,null,"-",null,"enrichissant10-12",null,"-","-","-","-","-",null,null,null,null,null,null,null,null,null,"wh-be-"]
[1,9,0,0,0,7,null,0,"6-7","Realms Of Fire33 ",5,"10-12","Dan Skelton33","Harry Skelton","-","-",78,-34.400006884765602,5,23,33,null,"-",null,"realms of fire10-12",null,null,null,null,"-","-",null,null,null,null,null,null,null,null,null,"wh-be-"]
[]
[null,"1600 Bangor-on-Dee RUK"]
[null,"Nicol Hughes Food Service Chase (A Novices Limited Handicap) 3m30y"]
[{"$f":"ISNUMBER(FIND(\"wh-\", AO7))","v":true},"Winnings:£4,614 Runners:6 Distance:3m30y Going:Good Channel:RUK",null,null,null,null,null,null,null,null,null,null,null,null,null,null,null,"OF Strategy",null,"              Recent Form ",null,"Speed",null,null,"                  Official Ratings",null,null,null,null,null,null,"             Life Win",null,"           Year Win",null,null,"         Trends",null,null,null,null,null,null,"Course Stats (Flat Only)",null,"                    Win %",null,null,null,"                   ROI %"]
[null,"Rank","R1","R2","Total","No","Dr","sig","Form","Horse","Age","Weight","Trainer (Run To Form)","Jockey (Allowance)","OR","TS","RPR","Rating","Rank","Horse","Tr'nr","Rank","Tdy","Fut","Horse - Weight",1,2,3,4,5,"LTO","High","Low","High ","Low","Wgt","Hc","Age","Tr'nr","Jock",null,null,null,"Horse","Sire","Trainer","Jockey","Average","Sire","Trainer","Jockey","Average"]
[1,1,9,5,14,1,null,0,"/3/2-3","Masterofdeception35 ht",10,"11-10","Dr Richard Newland100","Sam Twiston-Davies",122,"-",133,6.5,2,8,100,null,122,null,"masterofdeception11-10",125,125,120,122,120,120,null,null,null,null,null,null,null,null,null,"wh-be-"]
[1,2,5,7,12,2,null,0,"-12245","Ofcourseiwill37 ",6,"11-7","Donald McCain43","Brian Hughes",119,86,127,-11,4,11,43,null,119,null,"ofcourseiwill11-7",102,102,117,120,120,120,null,null,null,null,null,null,null,null,null,"wh-be-"]
[1,3,7,4,11,5,null,0,"4742-2","Wandrin Star151 t",7,"11-1","Kim Bailey50","Mikey Hamill3",113,103,134,7,1,8,50,null,113,null,"wandrin star11-1","-","-",117,112,109,110,null,null,null,null,null,null,null,null,null,"wh-be-"]
[1,3,5,6,11,3,null,0,"335-33","Redemption Song21 t",6,"11-6","Kevin Frost63","Nico de Boinville",118,"-",128,-2.5,3,11,63,null,118,null,"redemption song11-6","-","-",120,119,119,118,null,null,null,null,null,null,null,null,null,"wh-be-"]
[1,5,3,2,5,4,null,0,"2P-154","Im Always Trying41 tp",5,"11-5","Dan Skelton33","Harry Skelton",117,"-","-",null,null,10,33,null,117,null,"im always trying11-5","-","-",109,107,119,119,null,null,null,null,null,null,null,null,null,"wh-be-"]
[1,5,2,3,5,6,null,0,"4/2P8-","Sergeant Brody160 ",7,"11-0","Samuel Drinkwater","A P Heskin",112,"-","-",null,null,20,null,null,112,null,"sergeant brody11-0",null,null,"-","-",115,114,null,null,null,null,null,null,null,null,null,"wh-be-"]
[]
[null,"1630 Bangor-on-Dee RUK"]
[null,"This Is Wrexham Handicap Hurdle 2m145y"]
[{"$f":"ISNUMBER(FIND(\"wh-\", AO7))","v":true},"Winnings:£4,094 Runners:8 Distance:2m145y Going:Good Channel:RUK",null,null,null,null,null,null,null,null,null,null,null,null,null,null,null,"OF Strategy",null,"              Recent Form ",null,"Speed",null,null,"                  Official Ratings",null,null,null,null,null,null,"             Life Win",null,"           Year Win",null,null,"         Trends",null,null,null,null,null,null,"Course Stats (Flat Only)",null,"                    Win %",null,null,null,"                   ROI %"]
[null,"Rank","R1","R2","Total","No","Dr","sig","Form","Horse","Age","Weight","Trainer (Run To Form)","Jockey (Allowance)","OR","TS","RPR","Rating","Rank","Horse","Tr'nr","Rank","Tdy","Fut","Horse - Weight",1,2,3,4,5,"LTO","High","Low","High ","Low","Wgt","Hc","Age","Tr'nr","Jock",null,null,null,"Horse","Sire","Trainer","Jockey","Average","Sire","Trainer","Jockey","Average"]
[1,1,10,6,16,1,null,0,"211F-2","Lovato29 p",6,"11-12","Dr Richard Newland100","Sam Twiston-Davies",120,96,123,4.125,3,13,100,null,120,null,"lovato11-12","-","-",115,118,125,120,null,null,null,null,null,null,null,null,null,"wh-be-"]
[1,2,7,8,15,7,null,0,"-31213","Tamarillo Grove36 t",11,"11-2","Sophie Leech70","Sean Houlihan5",110,107,123,5.125,2,6,70,null,110,null,"tamarillo grove11-2",98,97,96,103,104,110,122,90,104,96,null,null,null,null,null,"wh-be-"]
[1,3,8,6,14,6,null,0,"421532","Red Hot Chilly22 ",5,"11-3","Fergal OBrien29","Paddy Brennan",111,106,121,3.125,5,10,29,null,111,null,"red hot chilly11-3",103,103,106,110,110,110,106,106,106,106,null,null,null,null,null,"wh-be-"]
[1,3,7,7,14,4,null,0,"U54-1","Fields Of Fortune59  ",4,"11-9","Alan King61","Wayne Hutchinson",117,70,118,-29.875,8,10,61,null,117,null,"fields of fortune11-9",null,null,"-","-","-","-",null,null,null,null,null,null,null,null,null,"wh-be-"]
[1,5,6,6,12,3,null,0,"21-241","Stepover31 t",7,"11-11","Alex Hales100","Lorcan Williams7",119,100,120,4.125,3,7,100,null,119,null,"stepover11-11",102,105,108,111,113,113,113,92,113,108,null,null,null,null,null,"wh-be-"]
[1,6,6,5,11,5,null,0,"34584-","Quids In208  t",5,"11-7","Donald McCain43","Brian Hughes",115,115,129,24.125,1,17,43,null,115,null,"quids in11-7",119,121,121,120,119,118,null,null,null,null,null,null,null,null,null,"wh-be-"]
[1,7,6,4,10,2,null,0,"1348-","American Craftsman192 p",4,"11-12","Henry Oliver","Jeremiah McGrath",120,93,121,-0.875,6,15,null,null,120,null,"american craftsman11-12",null,null,"-","-","-",125,null,null,null,null,null,null,null,null,null,"wh-be-"]
[1,8,2,3,5,8,null,0,"625-89","Outcrop96  ",4,"10-5","Jennie Candlish25","Sean Quinlan",99,107,119,-9.875,7,22,25,null,99,null,"outcrop10-5","-","-","-",112,110,103,null,null,null,null,null,null,null,null,null,"wh-be-"]
[]
[null,"1705 Bangor-on-Dee RUK"]
[null,"Order Horses To Follow @timeform.com Handicap Chase 2m4f72y"]
[{"$f":"ISNUMBER(FIND(\"wh-\", AO7))","v":true},"Winnings:£3,509 Runners:9 Distance:2m4f72y Going:Good Channel:RUK",null,null,null,null,null,null,null,null,null,null,null,null,null,null,null,"OF Strategy",null,"              Recent Form ",null,"Speed",null,null,"                  Official Ratings",null,null,null,null,null,null,"             Life Win",null,"           Year Win",null,null,"         Trends",null,null,null,null,null,null,"Course Stats (Flat Only)",null,"                    Win %",null,null,null,"                   ROI %"]
[null,"Rank","R1","R2","Total","No","Dr","sig","Form","Horse","Age","Weight","Trainer (Run To Form)","Jockey (Allowance)","OR","TS","RPR","Rating","Rank","Horse","Tr'nr","Rank","Tdy","Fut","Horse - Weight",1,2,3,4,5,"LTO","High","Low","High ","Low","Wgt","Hc","Age","Tr'nr","Jock",null,null,null,"Horse","Sire","Trainer","Jockey","Average","Sire","Trainer","Jockey","Average"]
[1,1,7,7,14,4,null,0,"8/3430","Vif Argent16 ht1",9,"11-5","Dave Roberts100","Lee Edwards",86,76,102,13.7142944335938,4,17,100,null,86,null,"vif argent11-5",109,105,96,94,92,89,117,117,null,null,null,null,null,null,null,"wh-be-"]
[1,2,3,7,10,2,null,0,"1P5335","Code Of Law24 p",8,"11-8","Neil Mulholland40","Robert Dunne",89,89,97,24.7142944335938,2,11,40,null,89,null,"code of law11-8",92,100,100,96,96,92,92,89,92,92,null,null,null,null,null,"wh-be-"]
[1,3,4,5,9,6,null,0,"713751","Grow Nasa Grow46 ",7,"11-1","Peter Winks100","Ryan Winks5",82,90,101,22.7142944335938,3,13,100,null,82,null,"grow nasa grow11-1",77,76,79,79,79,79,79,76,79,76,null,null,null,null,null,"wh-be-"]
[1,3,4,5,9,1,null,0,"187006","Aylas Emperor16 p",9,"12-7","John Flint17","Jamie Moore",102,"-",33,-39.000005566406301,9,26,17,null,102,null,"aylas emperor12-7",104,110,109,108,107,105,null,null,null,null,null,null,null,null,null,"wh-be-"]
[1,5,4,4,8,7,null,0,"-56274","Diplomatico31 t",5,"11-0","David Bridgwater29","Daniel Hiskett5",81,78,102,10.7142944335938,5,13,29,null,81,null,"diplomatico11-0","-",84,82,81,83,83,null,null,null,null,null,null,null,null,null,"wh-be-"]
[1,6,4,3,7,3,null,0,"66629-","Beau Sancy163 tp1",6,"11-7","Olly Murphy50","Gavin Sheehan",88,51,102,-9.28570556640625,6,17,50,null,88,null,"beau sancy11-7",103,99,99,85,85,85,null,null,null,null,null,null,null,null,null,"wh-be-"]
[1,6,3,4,7,8,null,0,"PP25-9","Shows Over91 tv",7,"10-13","Fergal OBrien29","Connor Brace10",80,98,101,28.7142944335938,1,16,29,null,80,null,"shows over10-13",86,84,82,80,82,82,83,77,null,null,null,null,null,null,null,"wh-be-"]
[1,8,3,2,5,9,null,0,"3/56PP","Rule The Ocean91 p1",8,"10-4","Matt Sheppard67","Hugh Nugent7",71,52,105,-22.2857055664062,7,26,67,null,71,null,"rule the ocean10-4","-","-",89,86,81,76,null,null,null,null,null,null,null,null,null,"wh-be-"]
[1,9,0,2,2,5,null,0,"4490/6","Mount Russell31 ",8,"11-3","Henry Oliver","James Davies",84,"-",60,-30.000005566406301,8,25,null,null,84,null,"mount russell11-3","-","-",100,97,94,87,null,null,null,null,null,null,null,null,null,"wh-be-"]
[]
[null,"1405 Cork ATR"]
[null,"Foran Equine Irish EBF Auction Fillies Maiden (Plus 10 Race) 6f60y"]
[{"$f":"ISNUMBER(FIND(\"wh-\", AO7))","v":true},"Winnings:€12,320 Runners:14 Distance:6f60y Going:Good To Firm Channel:ATR",null,null,null,null,null,null,null,null,null,null,null,null,null,null,null,"OF Strategy",null,"              Recent Form ",null,"Speed",null,null,"                  Official Ratings",null,null,null,null,null,null,"             Life Win",null,"           Year Win",null,null,"         Trends",null,null,null,null,null,null,"Course Stats (Flat Only)",null,"                    Win %",null,null,null,"                   ROI %"]
[null,"Rank","R1","R2","Total","No","Dr","sig","Form","Horse","Age","Weight","Trainer (Run To Form)","Jockey (Allowance)","OR","TS","RPR","Rating","Rank","Horse","Tr'nr","Rank","Tdy","Fut","Horse - Weight",1,2,3,4,5,"LTO","High","Low","High ","Low","Wgt","Hc","Age","Tr'nr","Jock",null,null,null,"Horse","Sire","Trainer","Jockey","Average","Sire","Trainer","Jockey","Average"]
[1,1,7,7,14,4,2,0,"60543","Cruella Dovil26 ",2,"8-10","J P Murtagh50","Shane Foley",66,59,87,26.284622192382798,3,12,50,null,66,null,"cruella dovil8-10",null,"-","-","-",66,66,null,null,null,null,null,null,null,null,null,"wh-be-"]
[1,2,8,4,12,5,4,0,"62","Mary Salome33 ",2,"8-10","Madeleine Tylicki40","W J Lee","-",58,92,29.784622192382798,1,18,40,null,"-",null,"mary salome8-10",null,null,null,null,"-","-",null,null,null,null,null,null,null,null,null,"wh-be-"]
[1,2,7,5,12,9,6,0,"080442","Thats Not Me9 ",2,"8-8","Anthony McCann40","Danny Sheehy5",65,64,85,28.284622192382798,2,10,40,null,65,null,"thats not me8-8","-","-","-","-",60,61,null,null,null,null,null,null,null,null,null,"wh-be-"]
[1,4,3,5,8,12,5,0,"03","Grace To Grace19 ",2,"8-6","D J Bunyan25","Chris Hayes","-",49,83,11.7846221923828,5,23,25,null,"-",null,"grace to grace8-6",null,null,null,null,"-","-",null,null,null,null,null,null,null,null,null,"wh-be-"]
[1,5,2,5,7,15,null,0,"0","Pretty Fantasy19 ",2,"8-8","Gavin Cromwell46",null,"-",19,63,-38.215377807617202,12,30,46,null,"-",null,"pretty fantasy8-8",null,null,null,null,null,"-",null,null,null,null,null,null,null,null,null,"wh-be-"]
[1,5,2,5,7,2,3,0,"60","Aloha Wish12 ",2,"8-12","Joseph Patrick OBrien52","Shane Crosse7","-",54,79,12.7846221923828,4,26,52,null,"-",null,"aloha wish8-12",null,null,null,null,"-","-",null,null,null,null,null,null,null,null,null,"wh-be-"]
[1,7,2,4,6,10,10,1,"89","Cafe Sydney9 ",2,"8-6","K J Condon60","Killian Leonard3","-",51,70,0.78462219238281194,9,27,60,null,"-",null,"cafe sydney8-6",null,null,null,null,"-","-",null,null,null,null,null,null,null,null,null,"wh-be-"]
[1,7,2,4,6,6,13,1,"9","Cosmic Jazz14 ",2,"8-8","Ms Sheila Lavery50","Nathan Crosse7","-",49,79,7.7846221923828098,6,29,50,null,"-",null,"cosmic jazz8-8",null,null,null,null,null,"-",null,null,null,null,null,null,null,null,null,"wh-be-"]
[1,7,2,4,6,8,11,1,"0","Shes My Dream14 ",2,"8-8","John M Oxx33","N G McCullagh","-",47,79,5.7846221923828098,7,30,33,null,"-",null,"shes my dream8-8",null,null,null,null,null,"-",null,null,null,null,null,null,null,null,null,"wh-be-"]
[1,7,2,4,6,13,8,0,"7","Jennifleur26 ",2,"8-6","Jack W Davison100","Sean Davis5","-",26,70,-24.215377807617202,11,27,100,null,"-",null,"jennifleur8-6",null,null,null,null,null,"-",null,null,null,null,null,null,null,null,null,"wh-be-"]
[1,11,2,3,5,1,1,0,"556","Hitchslap12 ",2,"9-0","J F Levins57","Donagh OConnor5","-","-",75,2.3846221923828099,8,16,57,null,"-",null,"hitchslap9-0",null,null,null,"-","-","-",null,null,null,null,null,null,null,null,null,"wh-be-"]
[1,12,2,2,4,14,14,1,"0","Samurai Girl9 ",2,"8-6","Edmond Kent","Andrew Slattery7","-","-",49,-23.6153778076172,10,30,null,null,"-",null,"samurai girl8-6",null,null,null,null,null,"-",null,null,null,null,null,null,null,null,null,"wh-be-"]
[1,13,1,1,2,7,7,0,null,"Ifyouhaveaminute ",2,"8-8","Joseph Patrick OBrien52","Wayne Lordan","-","-","-",null,null,30,52,null,"-",null,"ifyouhaveaminute8-8",null,null,null,null,null,null,null,null,null,null,null,null,null,null,null,"wh-be-"]
[1,14,0,1,1,3,12,1,"0","Beau Warrior125 ",2,"8-12","Adrian McGuinness50","Robbie Downey","-","-",33,-39.6153778076172,13,30,50,null,"-",null,"beau warrior8-12",null,null,null,null,null,"-",null,null,null,null,null,null,null,null,null,"wh-be-"]
[1,14,0,1,1,11,9,0,null,"Giselles Mento ",2,"8-6","Gavin Cromwell46","Rory Cleary","-","-","-",null,null,30,46,null,"-",null,"giselles mento8-6",null,null,null,null,null,null,null,null,null,null,null,null,null,null,null,"wh-be-"]
[]
[null,"1435 Cork ATR"]
[null,"Celebration Of Racing At Cork Night On 18th October Nursery Handicap (Plus 10 Race) 6f60y"]
[{"$f":"ISNUMBER(FIND(\"wh-\", AO7))","v":true},"Winnings:€6,776 Runners:11 Distance:6f60y Going:Good To Firm Channel:ATR",null,null,null,null,null,null,null,null,null,null,null,null,null,null,null,"OF Strategy",null,"              Recent Form ",null,"Speed",null,null,"                  Official Ratings",null,null,null,null,null,null,"             Life Win",null,"           Year Win",null,null,"         Trends",null,null,null,null,null,null,"Course Stats (Flat Only)",null,"                    Win %",null,null,null,"                   ROI %"]
[null,"Rank","R1","R2","Total","No","Dr","sig","Form","Horse","Age","Weight","Trainer (Run To Form)","Jockey (Allowance)","OR","TS","RPR","Rating","Rank","Horse","Tr'nr","Rank","Tdy","Fut","Horse - Weight",1,2,3,4,5,"LTO","High","Low","High ","Low","Wgt","Hc","Age","Tr'nr","Jock",null,null,null,"Horse","Sire","Trainer","Jockey","Average","Sire","Trainer","Jockey","Average"]
[1,1,8,7,15,5,8,1,"062342","Chernish14 p",2,"9-5","J A Stack75","Chris Hayes",65,67,74,14,2,9,75,null,65,null,"chernish9-5","-","-",60,61,61,64,null,null,null,null,null,null,null,null,null,"wh-be-"]
[1,2,8,4,12,1,4,0,"501","Lady Marengo25 ",2,"9-10","K J Condon60","Shane Foley",70,60,75,13,4,16,60,null,70,null,"lady marengo9-10",null,null,null,"-","-","-",null,null,null,null,null,null,null,null,null,"wh-be-"]
[1,2,5,7,12,3,5,0,"32456","Rangefield Express29 p1",2,"9-9","M D OCallaghan83","Gary Halpin",69,62,75,14,2,15,83,null,69,null,"rangefield express9-9",null,"-","-","-",74,71,null,null,null,null,null,null,null,null,null,"wh-be-"]
[1,4,6,5,11,2,2,0,"05932","So Familiar14 ",2,"9-10","J P Murtagh50","Denis Linehan5",70,58,73,9,5,14,50,null,70,null,"so familiar9-10",null,"-","-","-",65,65,null,null,null,null,null,null,null,null,null,"wh-be-"]
[1,4,6,5,11,4,6,0,"77415","Dancing Mountain9 ",2,"9-8","J P Murtagh50","N G McCullagh",68,67,74,17,1,10,50,null,68,null,"dancing mountain9-8",null,"-","-","-",61,68,61,61,61,61,null,null,null,null,null,"wh-be-"]
[1,6,5,4,9,6,9,1,"7773","Jarrocho14 ",2,"9-5","David Marnane67","W J Lee",65,56,73,2,8,17,67,null,65,null,"jarrocho9-5",null,null,"-","-","-",65,null,null,null,null,null,null,null,null,null,"wh-be-"]
[1,6,5,4,9,10,1,0,"606","Puddymore21 p1",2,"8-4","Mrs Prunella Dobbs33","Sean Davis5",50,17,77,-48,11,22,33,null,50,null,"puddymore8-4",null,null,null,"-","-","-",null,null,null,null,null,null,null,null,null,"wh-be-"]
[1,8,4,4,8,8,11,1,"6098","Mi Esperanza14 ",2,"9-4","A Kinsella100","Ronan Whelan",64,46,75,-7,9,27,100,null,64,null,"mi esperanza9-4",null,null,"-","-","-",64,null,null,null,null,null,null,null,null,null,"wh-be-"]
[1,9,1,4,5,9,10,1,"98U75","Kodi Dream29 v1",2,"9-2","Adrian Paul Keatley33","Danny Sheehy5",62,60,74,4,7,22,33,null,62,null,"kodi dream9-2",null,"-","-","-","-",62,null,null,null,null,null,null,null,null,null,"wh-be-"]
[1,9,1,4,5,7,3,0,"000","Shandredee58 ",2,"9-5","Peter Maher50","Robbie Colgan",65,59,74,6,6,30,50,null,65,null,"shandredee9-5",null,null,null,"-","-","-",null,null,null,null,null,null,null,null,null,"wh-be-"]
[1,11,0,4,4,11,7,0,"7000","Meryems Way29 ",2,"8-4","Patrick Martin25","Killian Leonard3",50,46,72,-24,10,30,25,null,50,-5,"meryems way8-4",null,null,"-","-","-",50,null,null,null,null,null,null,null,null,null,"wh-be-"]
[]
[null,"1510 Cork ATR"]
[null,"2019 Annual Membership Available Now Handicap 6f60y"]
[{"$f":"ISNUMBER(FIND(\"wh-\", AO7))","v":true},"Winnings:€10,472 Runners:12 Distance:6f60y Going:Good To Firm Channel:ATR",null,null,null,null,null,null,null,null,null,null,null,null,null,null,null,"OF Strategy",null,"              Recent Form ",null,"Speed",null,null,"                  Official Ratings",null,null,null,null,null,null,"             Life Win",null,"           Year Win",null,null,"         Trends",null,null,null,null,null,null,"Course Stats (Flat Only)",null,"                    Win %",null,null,null,"                   ROI %"]
[null,"Rank","R1","R2","Total","No","Dr","sig","Form","Horse","Age","Weight","Trainer (Run To Form)","Jockey (Allowance)","OR","TS","RPR","Rating","Rank","Horse","Tr'nr","Rank","Tdy","Fut","Horse - Weight",1,2,3,4,5,"LTO","High","Low","High ","Low","Wgt","Hc","Age","Tr'nr","Jock",null,null,null,"Horse","Sire","Trainer","Jockey","Average","Sire","Trainer","Jockey","Average"]
[1,1,9,8,17,3,3,0,"718196","Kindly33 v",5,"9-10","J F Levins57","Donagh OConnor5",83,75,96,1.0833282470703101,4,16,57,null,83,null,"kindly9-10",80,78,81,81,88,86,81,78,81,78,null,null,null,null,null,"wh-be-"]
[1,1,9,8,17,5,10,1,"332254","Captain Power9 v1",6,"9-2","Edward Lynam60","Robbie Downey",75,88,98,8.0833282470703107,3,11,60,null,75,null,"captain power9-2",78,78,77,77,78,75,87,77,null,null,null,null,null,null,null,"wh-be-"]
[1,3,9,7,16,6,6,0,"620705","Fit For Function9 ",5,"9-2","Joseph G Murphy50","Gavin Ryan7",75,90,97,9.0833282470703107,2,22,50,null,75,null,"fit for function9-2",79,78,83,79,83,76,76,74,74,74,null,null,null,null,null,"wh-be-"]
[1,3,9,7,16,8,11,1,"-90702","Fuwairt9 ",6,"9-1","Gavin Cromwell46","Kevin Manning",74,78,93,-7.9166717529296902,11,19,46,null,74,null,"fuwairt9-1",85,84,82,80,77,73,86,82,null,null,null,null,null,null,null,"wh-be-"]
[1,5,6,7,13,7,7,0,"162433","Shore Step9 ",8,"9-2","J P Murtagh50","Shane Foley",75,84,94,8.33282470703125E-2,6,10,50,null,75,null,"shore step9-2",67,73,73,73,74,74,89,61,67,61,null,null,null,null,null,"wh-be-"]
[1,6,6,6,12,12,12,1,"264342","Gottardo12 b",3,"8-11","J A Stack75","Chris Hayes",71,83,96,-2.9166717529296902,8,9,75,null,71,null,"gottardo8-11",78,77,77,74,74,70,null,null,null,null,null,null,null,null,null,"wh-be-"]
[1,6,5,7,12,2,5,0,"096347","Sharp Defence11 ",4,"9-12","R J Osborne47","Ronan Whelan",85,85,93,10.0833282470703,1,14,47,null,85,null,"sharp defence9-12",92,90,87,85,85,86,87,87,null,null,null,null,null,null,null,"wh-be-"]
[1,8,5,6,11,10,4,0,"555191","Ducky Mallon9 t",7,"8-13","Donal Kinsella33","Sean Davis5",72,84,93,-3.9166717529296902,9,11,33,null,72,null,"ducky mallon8-13",70,68,67,67,73,67,78,65,67,67,null,null,null,null,null,"wh-be-"]
[1,9,5,5,10,4,1,0,"1057","So Long Marianne11 ",3,"9-7","W McCreery37","W J Lee",81,77,89,-5.9166717529296902,10,22,37,null,81,null,"so long marianne9-7",null,null,"-","-",85,81,null,null,null,null,null,null,null,null,null,"wh-be-"]
[1,10,2,5,7,9,8,0,"68-578","Fille Du Septembre12 ",3,"9-0","W McCreery37","Nathan Crosse7",74,86,92,-0.91667175292968806,7,20,37,null,74,null,"fille du septembre9-0","-",89,86,83,82,78,null,null,null,null,null,null,null,null,null,"wh-be-"]
[1,11,2,4,6,1,9,1,"-90280","Aurora Eclipse32 b",3,"9-12","M D OCallaghan83","Gary Halpin",86,75,93,1.0833282470703101,4,20,83,null,86,null,"aurora eclipse9-12","-",88,87,87,88,88,null,null,null,null,null,null,null,null,null,"wh-be-"]
[1,12,0,5,5,11,2,0,"8-4700","Powersville32 ",3,"8-12","Thomas Mullins33","N G McCullagh",72,81,92,-7.9166717529296902,11,27,33,null,72,null,"powersville8-12",82,82,81,81,79,76,null,null,null,null,null,null,null,null,null,"wh-be-"]
[]
[null,"1540 Cork ATR"]
[null,"Buy Online At corkracecourse.ie Maiden 1m100y"]
[{"$f":"ISNUMBER(FIND(\"wh-\", AO7))","v":true},"Winnings:€7,392 Runners:17 Distance:1m100y Going:Good To Firm Channel:ATR",null,null,null,null,null,null,null,null,null,null,null,null,null,null,null,"OF Strategy",null,"              Recent Form ",null,"Speed",null,null,"                  Official Ratings",null,null,null,null,null,null,"             Life Win",null,"           Year Win",null,null,"         Trends",null,null,null,null,null,null,"Course Stats (Flat Only)",null,"                    Win %",null,null,null,"                   ROI %"]
[null,"Rank","R1","R2","Total","No","Dr","sig","Form","Horse","Age","Weight","Trainer (Run To Form)","Jockey (Allowance)","OR","TS","RPR","Rating","Rank","Horse","Tr'nr","Rank","Tdy","Fut","Horse - Weight",1,2,3,4,5,"LTO","High","Low","High ","Low","Wgt","Hc","Age","Tr'nr","Jock",null,null,null,"Horse","Sire","Trainer","Jockey","Average","Sire","Trainer","Jockey","Average"]
[1,1,7,6,13,13,2,1,"442-9","Minnie Haha48 ",3,"9-0","Mrs John Harrington54","Colm ODonoghue",79,76,92,54.1555786132812,1,15,54,null,79,null,"minnie haha9-0",null,null,"-","-","-",83,null,null,null,null,null,null,null,null,null,"wh-be-"]
[1,2,5,7,12,3,10,1,"72546","California Jumbo25 ",3,"9-5","J A Stack75","Chris Hayes",72,57,82,18.1555786132812,6,15,75,null,72,null,"california jumbo9-5",null,"-","-","-",78,74,null,null,null,null,null,null,null,null,null,"wh-be-"]
[1,3,5,6,11,16,5,1,"08-9","Snowflakes20 ",3,"9-0","A P OBrien67","Seamie Heffernan",92,38,62,-0.84442138671875,8,27,67,null,92,null,"snowflakes9-0",null,null,null,"-","-","-",null,null,null,null,null,null,null,null,null,"wh-be-"]
[1,4,5,5,10,4,16,0,"3324","Dawn Trouper96 t1",3,"9-5","J S Bolger43","Kevin Manning",78,56,85,26.1555786132812,3,9,43,null,78,null,"dawn trouper9-5",null,null,"-","-","-",80,null,null,null,null,null,null,null,null,null,"wh-be-"]
[1,5,3,6,9,5,12,0,"333346","Fridtjof Nansen33 b",3,"9-5","John M Oxx33","N G McCullagh",78,81,85,51.1555786132812,2,13,33,null,78,null,"fridtjof nansen9-5","-","-",74,76,81,81,null,null,null,null,null,null,null,null,null,"wh-be-"]
[1,6,2,5,7,1,4,1,"90-900","Earl Of Bunnacurry19 ",4,"9-8","Gavin Cromwell46","Ben Coen7","-",9,39,-65.044421386718795,15,29,46,null,"-",null,"earl of bunnacurry9-8","-","-","-","-","-","-",null,null,null,null,null,null,null,null,null,"wh-be-"]
[1,7,2,3,5,14,17,0,"06","Palmetto Bay11 ",3,"9-0","Henry De Bromhead43","Wayne Lordan","-","-",66,4.3999786132812604,7,26,43,null,"-",null,"palmetto bay9-0",null,null,null,null,"-","-",null,null,null,null,null,null,null,null,null,"wh-be-"]
[1,8,0,4,4,17,13,0,"5","Warning Light48 t1",3,"9-0","John Joseph Murphy33","Shane Foley","-",29,71,-13.0444213867187,9,25,33,null,"-",null,"warning light9-0",null,null,null,null,null,"-",null,null,null,null,null,null,null,null,null,"wh-be-"]
[1,8,1,3,4,7,7,1,"3","Spiorad121 ",3,"9-5","D K Weld35","Declan McDonogh","-",56,80,22.9555786132813,5,23,35,null,"-",null,"spiorad9-5",null,null,null,null,null,"-",null,null,null,null,null,null,null,null,null,"wh-be-"]
[1,8,2,2,4,6,14,0,"0","Hit The Rocks11 ",3,"9-5","Edmond Kent","Ronan Whelan","-","-",40,-21.600021386718701,12,30,null,null,"-",null,"hit the rocks9-5",null,null,null,null,null,"-",null,null,null,null,null,null,null,null,null,"wh-be-"]
[1,8,2,2,4,2,3,1,"0","Tigernmas9 ",4,"9-8","Patrick Martin25","Killian Leonard3","-","-",28,-33.600021386718701,14,30,25,null,"-",null,"tigernmas9-8",null,null,null,null,null,"-",null,null,null,null,null,null,null,null,null,"wh-be-"]
[1,8,2,2,4,15,8,1,"0-0","Sally Browne25 ",3,"9-0","Philip M Byrne25","Sean Kirrane7","-","-",29,-32.600021386718701,13,30,25,null,"-",null,"sally browne9-0",null,null,null,null,"-","-",null,null,null,null,null,null,null,null,null,"wh-be-"]
[1,13,0,3,3,11,6,1,"54-","Escallonia364 ",3,"9-0","W McCreery37","W J Lee","-",61,78,25.9555786132813,4,19,37,null,"-",null,"escallonia9-0",null,null,null,null,"-","-",null,null,null,null,null,null,null,null,null,"wh-be-"]
[1,14,0,2,2,8,11,1,"0-0","Spittal Field49 ",3,"9-5","M A Gunn","Danny Sheehy5","-","-",46,-15.6000213867187,10,30,null,null,"-",null,"spittal field9-5",null,null,null,null,"-","-",null,null,null,null,null,null,null,null,null,"wh-be-"]
[1,15,0,0,0,12,9,1,null,"Loosen Up ",3,"9-0","John Joseph Hanlon50","Rory Cleary","-","-","-",null,null,30,50,null,"-",null,"loosen up9-0",null,null,null,null,null,null,null,null,null,null,null,null,null,null,null,"wh-be-"]
[1,15,0,0,0,10,1,1,null,"Bessie Cook ",3,"9-0","W T Farrell","Donagh OConnor5","-","-","-",null,null,30,null,null,"-",null,"bessie cook9-0",null,null,null,null,null,null,null,null,null,null,null,null,null,null,null,"wh-be-"]
[1,15,0,0,0,9,15,0,"400-87","Tahan153 ",3,"9-5","Ms Sheila Lavery50","Robbie Colgan","-","-",41,-20.600021386718701,11,25,50,null,"-",null,"tahan9-5",null,"-","-","-","-","-",null,null,null,null,null,null,null,null,null,"wh-be-"]
[]
[null,"1615 Cork ATR"]
[null,"Follow Us On Twitter Handicap 1m100y"]
[{"$f":"ISNUMBER(FIND(\"wh-\", AO7))","v":true},"Winnings:€6,160 Runners:18 Distance:1m100y Going:Good To Firm Channel:ATR",null,null,null,null,null,null,null,null,null,null,null,null,null,null,null,"OF Strategy",null,"              Recent Form ",null,"Speed",null,null,"                  Official Ratings",null,null,null,null,null,null,"             Life Win",null,"           Year Win",null,null,"         Trends",null,null,null,null,null,null,"Course Stats (Flat Only)",null,"                    Win %",null,null,null,"                   ROI %"]
[null,"Rank","R1","R2","Total","No","Dr","sig","Form","Horse","Age","Weight","Trainer (Run To Form)","Jockey (Allowance)","OR","TS","RPR","Rating","Rank","Horse","Tr'nr","Rank","Tdy","Fut","Horse - Weight",1,2,3,4,5,"LTO","High","Low","High ","Low","Wgt","Hc","Age","Tr'nr","Jock",null,null,null,"Horse","Sire","Trainer","Jockey","Average","Sire","Trainer","Jockey","Average"]
[1,1,11,7,18,1,16,0,"025795","Avalanche20 p",9,"9-13","T J OMara50","Tom Madden5",64,73,74,40.333343505859403,1,21,50,null,64,null,"avalanche9-13",65,65,65,68,67,64,64,54,null,null,null,null,null,null,null,"wh-be-"]
[1,1,12,6,18,5,8,1,"132543","Count Of Carabass19 p",7,"9-5","Miss Hilary McLoughlin","Chris Hayes",56,66,78,29.3333435058594,2,12,null,null,56,null,"count of carabass9-5",52,57,57,58,58,56,61,50,52,52,null,null,null,null,null,"wh-be-"]
[1,3,8,7,15,16,11,1,"909149","Glib Speech28 p",7,"8-10","Rodger Sweeney","Shane Crosse7",47,63,74,13.3333435058594,7,14,null,null,47,null,"glib speech8-10",51,50,48,45,50,49,45,45,45,45,null,null,null,null,null,"wh-be-"]
[1,4,7,7,14,14,12,1,"006018","War Room12 ",9,"9-0","S M Duffy","Kevin Manning",51,55,70,5.3333435058593803,9,19,null,null,51,null,"war room9-0",51,50,40,45,45,51,45,45,45,45,null,null,null,null,null,"wh-be-"]
[1,4,6,8,14,9,1,1,"434700","Stormy Air11 tp1",4,"9-4","Denis Gerard Hogan28","Seamie Heffernan",55,50,78,12.3333435058594,8,27,28,null,55,null,"stormy air9-4",62,61,61,61,58,57,null,null,null,null,null,null,null,null,null,"wh-be-"]
[1,4,8,6,14,13,15,0,"6-1070","Marmalade N Toast34 ",3,"9-2","Patrick J Flynn33","Ben Coen7",56,31,73,-10.6666564941406,16,27,33,null,56,null,"marmalade n toast9-2",66,62,54,60,60,59,54,54,54,54,null,null,null,null,null,"wh-be-"]
[1,7,5,6,11,15,14,0,"000037","Intense Stylist23 ",5,"8-12","Albert Moriarty","Ross Coakley3",49,53,71,2.3333435058593799,10,20,null,null,49,null,"intense stylist8-12",63,62,59,56,52,50,null,null,null,null,null,null,null,null,null,"wh-be-"]
[1,7,4,7,11,3,7,1,"330046","Guanabara Bay9 b",5,"9-10","Adrian McGuinness50","Shane Foley",61,59,74,23.3333435058594,3,20,50,null,61,null,"guanabara bay9-10",66,65,65,66,65,62,65,65,null,null,null,null,null,null,null,"wh-be-"]
[1,9,5,5,10,7,13,0,"615839","No Way Jack91 tp",6,"9-4","Patrick Martin25","Killian Leonard3",55,60,73,17.3333435058594,5,20,25,null,55,null,"no way jack9-4",50,50,57,57,57,57,57,50,50,50,null,null,null,null,null,"wh-be-"]
[1,9,3,7,10,12,5,1,"364684","Bercasa11 ",3,"9-2","Thomas Mullins33","N G McCullagh",56,46,69,0.333343505859375,12,18,33,null,56,null,"bercasa9-2","-","-","-",58,59,55,null,null,null,null,null,null,null,null,null,"wh-be-"]
[1,9,4,6,10,10,10,1,"000077","Giorni Felice15 b",4,"9-3","Edward Lynam60","Conor Hoban",54,41,77,1.3333435058593801,11,24,60,null,54,null,"giorni felice9-3",72,71,68,63,66,56,null,null,null,null,null,null,null,null,null,"wh-be-"]
[1,12,4,5,9,8,18,0,"-66609","Palmones21 t",5,"9-4","M Flannery100","Ronan Whelan",55,34,77,-4.6666564941406197,14,25,100,null,55,null,"palmones9-4",75,70,68,69,64,58,71,66,null,null,null,null,null,null,null,"wh-be-"]
[1,12,5,4,9,6,17,0,"674249","Maysonette141 ",4,"9-5","Andrew Slattery36","Andrew Slattery7",56,33,78,-3.6666564941406201,13,15,36,null,56,null,"maysonette9-5",64,64,63,61,61,60,null,null,null,null,null,null,null,null,null,"wh-be-"]
[1,12,5,4,9,2,4,1,"803195","Dragon Girl28 h1",3,"9-11","S M Duffy","W J Lee",65,58,67,19.3333435058594,4,15,null,null,65,null,"dragon girl9-11",54,53,49,53,68,66,null,null,null,null,null,null,null,null,null,"wh-be-"]
[1,15,4,3,7,11,9,1,"60-800","Pirates Treasure20 ",5,"9-3","Charles Coakley","Gearoid Brouder7",54,"-",43,-25.333356494140599,18,28,null,null,54,null,"pirates treasure9-3",80,77,74,65,63,57,null,null,null,null,null,null,null,null,null,"wh-be-"]
[1,16,2,4,6,19,null,0,"55-060","War Ensign28 ",3,"8-9","J Halley",null,49,41,71,-9.6666564941406197,15,26,null,null,49,null,"war ensign8-9",null,"-","-","-",52,52,null,null,null,null,null,null,null,null,null,"wh-be-"]
[1,16,2,4,6,20,null,0,"800","Doogans Warren19 t1",3,"8-5","Michael Butler100",null,45,20,63,-42.666656494140597,21,28,100,null,45,null,"doogans warren8-5",null,null,null,"-","-","-",null,null,null,null,null,null,null,null,null,"wh-be-"]
[1,18,2,3,5,4,3,1,"-56560","Aubineau44 t",4,"9-6","John Joseph Murphy33","Colin Keane",57,57,72,15.3333435058594,6,21,33,null,57,null,"aubineau9-6","-","-",65,63,60,60,null,null,null,null,null,null,null,null,null,"wh-be-"]
[1,18,2,3,5,18,6,1,"5060","Country Market12 t",3,"8-5","John C McConnell61","Rory Cleary",45,"-",50,-27.333356494140599,19,26,61,null,45,-4,"country market8-5",null,null,"-","-","-",45,null,null,null,null,null,null,null,null,null,"wh-be-"]
[1,20,0,4,4,21,null,0,"800000","Baile An Roba29 b",5,"8-8","Francis Casey50",null,45,30,58,-37.666656494140597,20,30,50,null,45,-14,"baile an roba8-8",53,48,45,45,45,45,null,null,null,null,null,null,null,null,null,"wh-be-"]
[1,21,0,2,2,17,2,1,"800","Game Of Dreams51 ",4,"8-8","Patrick Breen","Danny Sheehy5",45,"-",59,-18.333356494140599,17,28,null,null,45,null,"game of dreams8-8",null,null,null,"-","-","-",null,null,null,null,null,null,null,null,null,"wh-be-"]
[]
[null,"1645 Cork ATR"]
[null,"Irish Stallion Farms EBF Fillies Maiden 1m4f"]
[{"$f":"ISNUMBER(FIND(\"wh-\", AO7))","v":true},"Winnings:€8,932 Runners:11 Distance:1m4f Going:Good To Firm Channel:ATR",null,null,null,null,null,null,null,null,null,null,null,null,null,null,null,"OF Strategy",null,"              Recent Form ",null,"Speed",null,null,"                  Official Ratings",null,null,null,null,null,null,"             Life Win",null,"           Year Win",null,null,"         Trends",null,null,null,null,null,null,"Course Stats (Flat Only)",null,"                    Win %",null,null,null,"                   ROI %"]
[null,"Rank","R1","R2","Total","No","Dr","sig","Form","Horse","Age","Weight","Trainer (Run To Form)","Jockey (Allowance)","OR","TS","RPR","Rating","Rank","Horse","Tr'nr","Rank","Tdy","Fut","Horse - Weight",1,2,3,4,5,"LTO","High","Low","High ","Low","Wgt","Hc","Age","Tr'nr","Jock",null,null,null,"Horse","Sire","Trainer","Jockey","Average","Sire","Trainer","Jockey","Average"]
[1,1,8,8,16,8,8,0,"234835","Queen Iseult19 ",3,"9-0","A P OBrien67","Seamie Heffernan",72,81,87,56.6222534179688,1,16,67,null,72,null,"queen iseult9-0",75,75,75,75,75,73,null,null,null,null,null,null,null,null,null,"wh-be-"]
[1,2,6,8,14,4,6,0,"332844","City Ballerina30 ",3,"9-0","Mrs John Harrington54","Colm ODonoghue",75,60,90,41.6222534179688,2,16,54,null,75,null,"city ballerina9-0","-","-",76,78,77,77,null,null,null,null,null,null,null,null,null,"wh-be-"]
[1,3,3,6,9,3,10,0,"334","Chateau La Fleur15 v",3,"9-0","D K Weld35","Declan McDonogh",70,54,76,16.6222534179688,4,10,35,null,70,null,"chateau la fleur9-0",null,null,null,"-","-","-",null,null,null,null,null,null,null,null,null,"wh-be-"]
[1,3,5,4,9,2,7,0,"2","True Self90 ",5,"9-6","W P Mullins62","Colin Keane","-",19,85,-7.0444465820312399,6,22,62,null,"-",null,"true self9-6",null,null,null,null,null,"-",null,null,null,null,null,null,null,null,null,"wh-be-"]
[1,3,4,5,9,1,11,0,"62","Backsheesh20 ",4,"9-6","Thomas Mullins33","Shane Foley","-",55,80,23.955553417968801,3,18,33,null,"-",null,"backsheesh9-6",null,null,null,null,"-","-",null,null,null,null,null,null,null,null,null,"wh-be-"]
[1,6,2,4,6,6,3,0,"95","Lost Comet15 ",3,"9-0","John M Oxx33","N G McCullagh","-",34,68,-9.0444465820312399,7,24,33,null,"-",null,"lost comet9-0",null,null,null,null,"-","-",null,null,null,null,null,null,null,null,null,"wh-be-"]
[1,6,2,4,6,9,9,0,"40","Seekamist20 ",3,"9-0","D K Weld35","Conor Hoban","-",32,56,-23.044446582031199,8,24,35,null,"-",null,"seekamist9-0",null,null,null,null,"-","-",null,null,null,null,null,null,null,null,null,"wh-be-"]
[1,6,2,4,6,10,5,0,"0000","Sweet Cassie20 ",3,"9-0","Mrs Maureen Danagher","Killian Leonard3","-",9,38,-64.044446582031298,10,30,null,null,"-",null,"sweet cassie9-0",null,null,"-","-","-","-",null,null,null,null,null,null,null,null,null,"wh-be-"]
[1,9,0,5,5,5,4,0,"5","Gallitea34 ",3,"9-0","J S Bolger43","Kevin Manning","-",47,74,9.9555534179687601,5,25,43,null,"-",null,"gallitea9-0",null,null,null,null,null,"-",null,null,null,null,null,null,null,null,null,"wh-be-"]
[1,10,0,2,2,7,2,0,"0","Paulas Prayer30 ",3,"9-0","Conor ODwyer20","Gary Halpin","-","-",22,-45.600046582031197,9,30,20,null,"-",null,"paulas prayer9-0",null,null,null,null,null,"-",null,null,null,null,null,null,null,null,null,"wh-be-"]
[1,11,0,1,1,11,1,0,null,"Tipitena ",3,"9-0","W McCreery37","W J Lee","-","-","-",null,null,30,37,null,"-",null,"tipitena9-0",null,null,null,null,null,null,null,null,null,null,null,null,null,null,null,"wh-be-"]
[]
[null,"1720 Cork ATR"]
[null,"Buy Online And Save On Admission Tickets Handicap 1m4f"]
[{"$f":"ISNUMBER(FIND(\"wh-\", AO7))","v":true},"Winnings:€6,160 Runners:18 Distance:1m4f Going:Good To Firm Channel:ATR",null,null,null,null,null,null,null,null,null,null,null,null,null,null,null,"OF Strategy",null,"              Recent Form ",null,"Speed",null,null,"                  Official Ratings",null,null,null,null,null,null,"             Life Win",null,"           Year Win",null,null,"         Trends",null,null,null,null,null,null,"Course Stats (Flat Only)",null,"                    Win %",null,null,null,"                   ROI %"]
[null,"Rank","R1","R2","Total","No","Dr","sig","Form","Horse","Age","Weight","Trainer (Run To Form)","Jockey (Allowance)","OR","TS","RPR","Rating","Rank","Horse","Tr'nr","Rank","Tdy","Fut","Horse - Weight",1,2,3,4,5,"LTO","High","Low","High ","Low","Wgt","Hc","Age","Tr'nr","Jock",null,null,null,"Horse","Sire","Trainer","Jockey","Average","Sire","Trainer","Jockey","Average"]
[1,1,10,7,17,5,10,0,"452221","Universal Focus29 b",5,"9-9","Ross OSullivan","Shane Foley",60,64,67,12.6000061035156,5,5,null,null,60,null,"universal focus9-9",55,55,54,55,56,58,58,48,58,58,null,null,null,null,null,"wh-be-"]
[1,1,10,7,17,1,7,0,"131061","Schoolboy Error5 ",5,"10-5","Shane Nolan33","Chris Hayes",70,53,70,14.6000061035156,4,17,33,null,70,-6,"schoolboy error10-5",57,63,63,67,66,64,63,63,63,63,null,null,null,null,null,"wh-be-"]
[1,3,7,7,14,6,16,0,"165100","Nulife12 b",6,"9-8","Denis Gerard Hogan28","Killian Leonard3",59,48,72,0.600006103515625,10,21,28,null,59,null,"nulife9-8",52,57,57,56,64,60,56,56,56,56,null,null,null,null,null,"wh-be-"]
[1,3,6,8,14,2,8,0,"0900-2","Bay Hill33  p",7,"9-13","Padraig Roche71","Andrew Slattery7",64,65,65,15.6000061035156,2,22,71,null,64,null,"bay hill9-13",71,71,70,68,66,62,66,54,null,null,null,null,null,null,null,"wh-be-"]
[1,3,8,6,14,3,5,2,"33-828","Acclamatio21 t",4,"9-10","A J Martin67","Robbie Colgan",61,45,73,0.600006103515625,10,18,67,null,61,null,"acclamatio9-10",55,66,66,62,60,62,55,55,null,null,null,null,null,null,null,"wh-be-"]
[1,6,7,6,13,7,14,0,"504234","Sleepy Head12 h",5,"9-8","Patrick J Flynn33","Ben Coen7",59,62,73,15.6000061035156,2,9,33,null,59,null,"sleepy head9-8",65,65,63,61,61,59,53,53,null,null,null,null,null,null,null,"wh-be-"]
[1,6,7,6,13,4,6,2,"252103","Match My Fire26 tb",5,"9-10","John C McConnell61","Robbie Downey",61,64,70,16.6000061035156,1,14,61,null,61,null,"match my fire9-10",56,59,59,58,63,61,58,58,58,58,null,null,null,null,null,"wh-be-"]
[1,8,7,5,12,18,11,0,"462050","Highway To Heaven12 ",3,"8-8","T G McCourt50","Danny Sheehy5",51,54,73,-0.399993896484375,12,25,50,null,51,null,"highway to heaven8-8",61,59,58,57,57,53,null,null,null,null,null,null,null,null,null,"wh-be-"]
[1,9,4,7,11,16,13,0,"954006","Greanta19 ",7,"8-11","Thomas Cleary","Rory Cleary",48,51,69,-10.3999938964844,15,26,null,null,48,null,"greanta8-11",47,50,45,45,45,55,57,54,null,null,null,null,null,null,null,"wh-be-"]
[1,10,5,5,10,14,17,0,"806402","Miraculum25 ",3,"8-12","J S Bolger43","Willie Byrne7",55,41,71,-11.3999938964844,16,16,43,null,55,null,"miraculum8-12","-","-",61,58,58,55,null,null,null,null,null,null,null,null,null,"wh-be-"]
[1,10,5,5,10,10,12,0,"54-083","Realtin Geal11 t",3,"9-1","J S Bolger43","Kevin Manning",58,54,72,5.6000061035156197,8,21,43,null,58,null,"realtin geal9-1","-",69,67,62,61,57,null,null,null,null,null,null,null,null,null,"wh-be-"]
[1,12,3,6,9,21,null,0,"320070","Thomas OMalley59 t",4,"9-12","J R Finn",null,63,41,71,-3.3999938964843799,13,27,null,null,63,null,"thomas omalley9-12",73,73,74,74,71,68,null,null,null,null,null,null,null,null,null,"wh-be-"]
[1,13,3,5,8,13,15,0,"053250","Remembered Joy29 b",4,"8-13","Edward P Harty","W J Lee",50,63,71,5.6000061035156197,8,17,null,null,50,null,"remembered joy8-13",56,56,50,50,56,52,null,null,null,null,null,null,null,null,null,"wh-be-"]
[1,13,4,4,8,15,4,2,"00-652","Carols Return26 ",3,"8-11","William Durkan","Shane Crosse7",54,28,69,-27.3999938964844,20,13,null,null,54,null,"carols return8-11","-","-","-","-",54,52,null,null,null,null,null,null,null,null,null,"wh-be-"]
[1,15,3,4,7,17,9,0,"900-51","Jake Peter46 ",4,"8-11","Patrick J Flynn33","Gary Halpin",48,47,69,-14.3999938964844,18,16,33,null,48,null,"jake peter8-11",null,"-","-","-",46,45,45,45,45,45,null,null,null,null,null,"wh-be-"]
[1,15,2,5,7,8,18,0,"9090-0","Shoofly142 ",5,"9-5","Denis Gerard Hogan28","Seamie Heffernan",56,65,65,7.6000061035156197,6,29,28,null,56,null,"shoofly9-5",65,65,65,64,63,60,null,null,null,null,null,null,null,null,null,"wh-be-"]
[1,15,2,5,7,9,2,2,"9-08U7","Maid In Manhattan19 t",4,"9-4","A J Martin67","Oisin Orr3",55,51,68,-4.3999938964843803,14,25,67,null,55,null,"maid in manhattan9-4","-","-",62,60,58,58,null,null,null,null,null,null,null,null,null,"wh-be-"]
[1,18,2,4,6,12,3,2,"40-070","My Amazing One28 ",4,"9-0","T J OMara50","Wayne Lordan",51,48,61,-18.3999938964844,19,27,50,null,51,null,"my amazing one9-0","-","-",69,62,61,57,null,null,null,null,null,null,null,null,null,"wh-be-"]
[1,19,0,5,5,11,1,2,"08-009","Johnny Carney56 ",4,"9-0","Gavin Cromwell46","Ronan Whelan",51,49,66,-12.3999938964844,17,29,46,null,51,null,"johnny carney9-0","-","-","-",61,60,57,null,null,null,null,null,null,null,null,null,"wh-be-"]
[1,19,2,3,5,20,null,0,"060-96","Clementina142  ",5,"9-3","A J Martin67","Colin Keane",54,60,72,7.6000061035156197,6,25,67,null,54,null,"clementina9-3","-","-",68,66,61,59,null,null,null,null,null,null,null,null,null,"wh-be-"]
[1,21,0,2,2,19,null,0,"/8700-","Typhoon Rising454 t",4,"8-10","Thomas Foley50",null,47,"-","-",null,null,27,50,null,47,null,"typhoon rising8-10",null,"-","-","-",60,57,null,null,null,null,null,null,null,null,null,"wh-be-"]
[]
[null,"1730 Newcastle (AW) ATR"]
[null,"RSM Handicap 2m56y"]
[{"$f":"ISNUMBER(FIND(\"wh-\", AO7))","v":true},"Winnings:£5,531 Runners:10 Distance:2m56y Going:Standard Channel:ATR",null,null,null,null,null,null,null,null,null,null,null,null,null,null,null,"OF Strategy",null,"              Recent Form ",null,"Speed",null,null,"                  Official Ratings",null,null,null,null,null,null,"             Life Win",null,"           Year Win",null,null,"         Trends",null,null,null,null,null,null,"Course Stats (Flat Only)",null,"                    Win %",null,null,null,"                   ROI %"]
[null,"Rank","R1","R2","Total","No","Dr","sig","Form","Horse","Age","Weight","Trainer (Run To Form)","Jockey (Allowance)","OR","TS","RPR","Rating","Rank","Horse","Tr'nr","Rank","Tdy","Fut","Horse - Weight",1,2,3,4,5,"LTO","High","Low","High ","Low","Wgt","Hc","Age","Tr'nr","Jock",null,null,null,"Horse","Sire","Trainer","Jockey","Average","Sire","Trainer","Jockey","Average"]
[1,1,11,8,19,7,8,0,"605625","Mambo Dancer12 ",4,"9-0","Mark Johnston53","Joe Fanning",75,73,95,16.650802612304702,2,13,53,null,75,null,"mambo dancer9-0",76,76,75,71,74,75,71,63,71,63,null,null,null,null,null,"wh-be-"]
[1,2,8,6,14,6,2,0,"433112","Cry Wolf17 p",5,"9-3","Alexandra Dunn29","Stephen Cummins7",78,74,94,19.650802612304702,1,4,29,null,78,null,"cry wolf9-3",72,72,72,72,72,76,72,72,72,72,null,null,null,null,null,"wh-be-"]
[1,3,5,8,13,3,5,1,"-82632","Al Kout26 ",4,"9-6","Heather Main40","Ben Curtis",81,56,92,2.6508026123046902,6,11,40,null,81,null,"al kout9-6",80,"-",77,80,80,78,null,null,null,null,null,null,null,null,null,"wh-be-"]
[1,3,7,6,13,4,7,1,"0-8152","On Fire95 hp",5,"9-6","James Bethell56","Daniel Tudhope",81,27,92,-26.349197387695298,8,8,56,null,81,null,"on fire9-6",75,78,77,76,79,78,null,null,null,null,null,null,null,null,null,"wh-be-"]
[1,5,6,6,12,10,4,1,"6993-7","Tetradrachm12 ",5,"8-6","Mike Sowersby","Cam Hardie",67,72,98,10.6508026123047,3,19,null,null,67,null,"tetradrachm8-6",81,79,78,75,73,72,null,null,null,null,null,null,null,null,null,"wh-be-"]
[1,6,7,4,11,1,6,1,"3-2358","Melinoe103 p",4,"9-11","Sir Mark Prescott Bt50","Luke Morris",86,"-",95,10.222202612304701,4,16,50,null,86,null,"melinoe9-11",81,83,86,86,86,"-",null,null,null,null,null,null,null,null,null,"wh-be-"]
[1,7,2,6,8,2,3,0,"0/6-62","Tommy Docc48 ",6,"9-7","Keith Dalgleish38","Connor Beasley",82,"-",93,4.2222026123046996,5,14,38,null,82,null,"tommy docc9-7",94,93,93,90,86,83,null,null,null,null,null,null,null,null,null,"wh-be-"]
[1,7,3,5,8,5,9,0,"139096","Archippos12 ",5,"9-5","Philip Kirby32","Andrew Mullen",80,17,91,-38.349197387695298,9,25,32,null,80,null,"archippos9-5",81,86,86,86,84,82,null,null,null,null,null,null,null,null,null,"wh-be-"]
[1,7,2,6,8,8,10,0,"5-859","Loud And Clear9 ",7,"8-9","Jim Goldie55","Phil Dennis3",70,70,87,0.65080261230468806,7,22,55,null,70,-5,"loud and clear8-9",null,null,"-","-","-",70,null,null,null,null,null,null,null,null,null,"wh-be-"]
[1,10,3,2,5,9,1,0,"6451/","Icario836  h",5,"8-9","Stef Keniry57","Shane Gray",70,"-","-",null,null,10,57,null,70,null,"icario8-9",null,null,"-","-","-","-",null,null,null,null,null,null,null,null,null,"wh-be-"]
[]
[null,"1800 Newcastle (AW) ATR"]
[null,"Muckle Spectrum Apprentice Handicap 7f14y"]
[{"$f":"ISNUMBER(FIND(\"wh-\", AO7))","v":true},"Winnings:£3,752 Runners:13 Distance:7f14y Going:Standard Channel:ATR",null,null,null,null,null,null,null,null,null,null,null,null,null,null,null,"OF Strategy",null,"              Recent Form ",null,"Speed",null,null,"                  Official Ratings",null,null,null,null,null,null,"             Life Win",null,"           Year Win",null,null,"         Trends",null,null,null,null,null,null,"Course Stats (Flat Only)",null,"                    Win %",null,null,null,"                   ROI %"]
[null,"Rank","R1","R2","Total","No","Dr","sig","Form","Horse","Age","Weight","Trainer (Run To Form)","Jockey (Allowance)","OR","TS","RPR","Rating","Rank","Horse","Tr'nr","Rank","Tdy","Fut","Horse - Weight",1,2,3,4,5,"LTO","High","Low","High ","Low","Wgt","Hc","Age","Tr'nr","Jock",null,null,null,"Horse","Sire","Trainer","Jockey","Average","Sire","Trainer","Jockey","Average"]
[1,1,14,9,23,12,13,0,"883152","Gun Case5 p",6,"9-4","Alistair Whillans57","Andrew Breslin3",67,66,84,-5.3000030517578098,10,8,57,null,67,null,"gun case9-4",62,60,62,63,67,67,63,59,63,59,null,null,null,null,null,"wh-be-"]
[1,2,13,9,22,5,4,0,"225851","War Department5 v",5,"9-11","Keith Dalgleish38","Callum Rodriguez",74,62,80,-6.3000030517578098,11,14,38,null,74,-3,"war department9-11",73,73,73,72,70,68,91,68,68,68,null,null,null,null,null,"wh-be-"]
[1,3,10,6,16,6,1,0,"933652","Inner Circle21 p",4,"9-10","Roger Fell45","Paula Muir",73,"-",85,4.9999969482421998,6,13,45,null,73,null,"inner circle9-10",77,76,76,75,74,72,null,null,null,null,null,null,null,null,null,"wh-be-"]
[1,3,9,7,16,3,5,0,"160306","Deansgate15 ",5,"9-11","Julie Camacho40","Connor Murtagh",74,77,83,11.6999969482422,1,19,40,null,74,null,"deansgate9-11",73,80,80,78,78,76,73,73,73,73,null,null,null,null,null,"wh-be-"]
[1,5,8,7,15,11,7,1,"609134","Curly Girl27 ",4,"9-4","John James Feane43","Adam Farragher7",67,68,78,-9.3000030517578107,12,8,43,null,67,-8,"curly girl9-4",63,63,60,59,65,67,null,null,null,null,null,null,null,null,null,"wh-be-"]
[1,6,6,8,14,14,3,0,"052335","Grey Destiny5 p",8,"9-0","Antony Brittain44","Kieran Schofield3",63,74,82,-3.3000030517578098,9,11,44,null,63,-2,"grey destiny9-0",55,61,61,59,63,63,61,52,61,57,null,null,null,null,null,"wh-be-"]
[1,7,7,6,13,4,8,1,"887100","Gabrial The Tiger19 ",6,"9-11","Richard Fahey34","Sebastian Woods3",74,"-",82,2.9999969482422002,7,21,34,null,74,null,"gabrial the tiger9-11",75,73,71,69,74,74,null,null,null,null,null,null,null,null,null,"wh-be-"]
[1,7,8,5,13,13,2,0,"183122","Naples Bay11 ",4,"9-2","John Quinn54","Ray Dawson3",65,50,82,-25.300003051757798,13,5,54,null,65,null,"naples bay9-2",59,65,63,62,64,65,null,null,null,null,null,null,null,null,null,"wh-be-"]
[1,7,7,6,13,2,11,0,"661980","Lagenda24 ",5,"9-12","Lawrence Mullaney27","Faye McManoman3",75,73,82,7.6999969482421902,3,27,27,null,75,null,"lagenda9-12",76,75,72,77,77,76,null,null,null,null,null,null,null,null,null,"wh-be-"]
[1,7,6,7,13,7,10,0,"570580","Kentuckyconnection5 p",5,"9-9","Bryan Smart50","Harry Russell7",72,74,84,7.6999969482421902,3,23,50,null,72,-2,"kentuckyconnection9-9",85,82,79,76,74,74,null,null,null,null,null,null,null,null,null,"wh-be-"]
[1,11,7,5,12,9,12,0,"473390","Sultan Baybars13 v",4,"9-7","David OMeara40","Conor McGovern",70,78,84,9.6999969482421893,2,22,40,null,70,null,"sultan baybars9-7",79,76,76,72,73,72,null,null,null,null,null,null,null,null,null,"wh-be-"]
[1,12,7,4,11,1,14,0,"867912","Art Echo65 tp",5,"9-12","John Mackie38","Oakley Brown7",75,71,82,5.6999969482421902,5,12,38,null,75,null,"art echo9-12",78,76,75,73,70,75,70,70,70,70,null,null,null,null,null,"wh-be-"]
[1,13,4,4,8,10,6,1,"750-20","Tukhoom20 ",5,"9-7","Michael Herrington67","Phil Dennis",70,"-",82,-1.0000030517578,8,22,67,null,70,null,"tukhoom9-7",79,77,75,72,67,71,null,null,null,null,null,null,null,null,null,"wh-be-"]
[]
[null,"1830 Newcastle (AW) ATR"]
[null,"Orange Bus Novice Stakes 5f"]
[{"$f":"ISNUMBER(FIND(\"wh-\", AO7))","v":true},"Winnings:£3,752 Runners:6 Distance:5f Going:Standard Channel:ATR",null,null,null,null,null,null,null,null,null,null,null,null,null,null,null,"OF Strategy",null,"              Recent Form ",null,"Speed",null,null,"                  Official Ratings",null,null,null,null,null,null,"             Life Win",null,"           Year Win",null,null,"         Trends",null,null,null,null,null,null,"Course Stats (Flat Only)",null,"                    Win %",null,null,null,"                   ROI %"]
[null,"Rank","R1","R2","Total","No","Dr","sig","Form","Horse","Age","Weight","Trainer (Run To Form)","Jockey (Allowance)","OR","TS","RPR","Rating","Rank","Horse","Tr'nr","Rank","Tdy","Fut","Horse - Weight",1,2,3,4,5,"LTO","High","Low","High ","Low","Wgt","Hc","Age","Tr'nr","Jock",null,null,null,"Horse","Sire","Trainer","Jockey","Average","Sire","Trainer","Jockey","Average"]
[1,1,10,8,18,3,2,0,"2-0823","Go Roo5 v1",3,"9-2","David OMeara40","Daniel Tudhope",69,56,85,26.1000061035156,1,13,40,null,69,null,"go roo9-2","-","-",74,72,69,69,null,null,null,null,null,null,null,null,null,"wh-be-"]
[1,2,6,9,15,5,1,0,"35323","Madam Devious12 v",3,"8-11","Robert Cowell63","Joe Fanning",60,40,80,-3.8999938964843799,3,8,63,null,60,null,"madam devious8-11",null,"-","-","-",60,60,null,null,null,null,null,null,null,null,null,"wh-be-"]
[1,3,6,5,11,4,3,0,"53250","Hop Maddocks7 ",3,"9-2","Colin Teague","Andrew Elliott",70,21,83,-9.8999938964843803,4,17,null,null,70,null,"hop maddocks9-2",null,"-","-","-",72,70,null,null,null,null,null,null,null,null,null,"wh-be-"]
[1,4,3,7,10,2,5,0,"9730","Gleaming Arch7 ",4,"9-2","Fred Watson33","David Allan",63,35,74,-11.8999938964844,5,20,33,null,63,null,"gleaming arch9-2",null,null,"-","-","-",63,null,null,null,null,null,null,null,null,null,"wh-be-"]
[1,5,6,2,8,1,4,0,"21-","Debawtry398 ",3,"9-2","John Balding50","Lewis Edmunds","-","-",80,-0.399993896484375,2,13,50,null,"-",null,"debawtry9-2",null,null,null,null,"-","-",null,null,null,null,null,null,null,null,null,"wh-be-"]
[1,6,2,1,3,6,6,0,null,"Thirlmere ",3,"8-11","Michael Dods48","Callum Rodriguez","-","-","-",null,null,30,48,null,"-",null,"thirlmere8-11",null,null,null,null,null,null,null,null,null,null,null,null,null,null,null,"wh-be-"]
[]
[null,"1900 Newcastle (AW) ATR"]
[null,"Software City Fillies Novice Stakes 1m5y"]
[{"$f":"ISNUMBER(FIND(\"wh-\", AO7))","v":true},"Winnings:£3,752 Runners:9 Distance:1m5y Going:Standard Channel:ATR",null,null,null,null,null,null,null,null,null,null,null,null,null,null,null,"OF Strategy",null,"              Recent Form ",null,"Speed",null,null,"                  Official Ratings",null,null,null,null,null,null,"             Life Win",null,"           Year Win",null,null,"         Trends",null,null,null,null,null,null,"Course Stats (Flat Only)",null,"                    Win %",null,null,null,"                   ROI %"]
[null,"Rank","R1","R2","Total","No","Dr","sig","Form","Horse","Age","Weight","Trainer (Run To Form)","Jockey (Allowance)","OR","TS","RPR","Rating","Rank","Horse","Tr'nr","Rank","Tdy","Fut","Horse - Weight",1,2,3,4,5,"LTO","High","Low","High ","Low","Wgt","Hc","Age","Tr'nr","Jock",null,null,null,"Horse","Sire","Trainer","Jockey","Average","Sire","Trainer","Jockey","Average"]
[1,1,10,6,16,7,9,1,"45250","Reassurance27 p1",3,"8-12","James Tate83","David Allan",73,47,90,31.8928527832031,1,17,83,null,73,null,"reassurance8-12",null,"-","-","-",78,76,null,null,null,null,null,null,null,null,null,"wh-be-"]
[1,2,9,3,12,1,2,0,"71","Improve131 ",3,"9-5","William Haggas60","Daniel Tudhope","-","-",81,5.1428527832031197,4,18,60,null,"-",null,"improve9-5",null,null,null,null,"-","-",null,null,null,null,null,null,null,null,null,"wh-be-"]
[1,3,5,5,10,6,3,0,"33","Never Be Enough10 ",3,"8-12","Keith Dalgleish38","Graham Lee","-","-",80,4.1428527832031197,5,16,38,null,"-",null,"never be enough8-12",null,null,null,null,"-","-",null,null,null,null,null,null,null,null,null,"wh-be-"]
[1,3,3,7,10,4,1,0,"53","Arctic Haze15 ",3,"8-12","James Tate83","Luke Morris","-",60,76,14.3928527832031,2,18,83,null,"-",null,"arctic haze8-12",null,null,null,null,"-","-",null,null,null,null,null,null,null,null,null,"wh-be-"]
[1,5,2,5,7,8,7,1,"889008","Ruby Cherub9 ",3,"8-12","Ruth Carr29","James Sullivan",40,21,54,-63.107147216796903,7,28,29,null,40,null,"ruby cherub8-12","-","-",46,46,45,45,null,null,null,null,null,null,null,null,null,"wh-be-"]
[1,6,0,3,3,5,6,0,"67","Call Me Madam33 ",3,"8-12","James Bethell56","Andrew Elliott","-","-",78,2.1428527832031201,6,23,56,null,"-",null,"call me madam8-12",null,null,null,null,"-","-",null,null,null,null,null,null,null,null,null,"wh-be-"]
[1,7,0,2,2,9,4,0,"5-","Sun Hat305 ",3,"8-12","Simon Crisford80","Joe Fanning","-",55,72,5.3928527832031197,3,25,80,null,"-",null,"sun hat8-12",null,null,null,null,null,"-",null,null,null,null,null,null,null,null,null,"wh-be-"]
[1,8,0,0,0,2,5,0,"00-","Dutch Melody460 ",4,"9-1","Lucinda Egerton","Cam Hardie","-","-","-",null,null,30,null,null,"-",null,"dutch melody9-1",null,null,null,null,"-","-",null,null,null,null,null,null,null,null,null,"wh-be-"]
[1,8,0,0,0,3,8,1,null,"Toccata Mia ",4,"9-1","Philip Kirby32","Andrew Mullen","-","-","-",null,null,30,32,null,"-",null,"toccata mia9-1",null,null,null,null,null,null,null,null,null,null,null,null,null,null,null,"wh-be-"]
[]
[null,"1930 Newcastle (AW) ATR"]
[null,"Digital Catapult Handicap (Div I) 6f"]
[{"$f":"ISNUMBER(FIND(\"wh-\", AO7))","v":true},"Winnings:£3,105 Runners:14 Distance:6f Going:Standard Channel:ATR",null,null,null,null,null,null,null,null,null,null,null,null,null,null,null,"OF Strategy",null,"              Recent Form ",null,"Speed",null,null,"                  Official Ratings",null,null,null,null,null,null,"             Life Win",null,"           Year Win",null,null,"         Trends",null,null,null,null,null,null,"Course Stats (Flat Only)",null,"                    Win %",null,null,null,"                   ROI %"]
[null,"Rank","R1","R2","Total","No","Dr","sig","Form","Horse","Age","Weight","Trainer (Run To Form)","Jockey (Allowance)","OR","TS","RPR","Rating","Rank","Horse","Tr'nr","Rank","Tdy","Fut","Horse - Weight",1,2,3,4,5,"LTO","High","Low","High ","Low","Wgt","Hc","Age","Tr'nr","Jock",null,null,null,"Horse","Sire","Trainer","Jockey","Average","Sire","Trainer","Jockey","Average"]
[1,1,9,8,17,1,4,0,"135455","Lucky Lodge9 v",8,"9-9","Antony Brittain44","Cam Hardie",61,70,72,24.0259704589844,1,14,44,null,61,null,"lucky lodge9-9",62,57,56,53,63,51,65,60,62,62,null,null,null,null,null,"wh-be-"]
[1,2,10,6,16,2,2,0,"761256","Cliff13 ",8,"9-7","Nigel Tinkler39","Faye McManoman7",59,"-",71,7.57147045898438,5,13,39,null,59,null,"cliff9-7",57,56,54,58,58,61,67,61,null,null,null,null,null,null,null,"wh-be-"]
[1,3,7,8,15,5,14,1,"178356","Jessie Allan15 ",7,"9-6","Jim Goldie55","Jamie Gormley3",58,50,74,3.0259704589843799,7,14,55,null,58,null,"jessie allan9-6",61,65,65,64,65,63,null,null,null,null,null,null,null,null,null,"wh-be-"]
[1,4,8,6,14,6,10,1,"047923","Sir Domino9 ",6,"9-4","Lawrence Mullaney27","Daniel Tudhope",56,"-",62,-4.42852954101562,9,14,27,null,56,null,"sir domino9-4",47,47,46,46,46,47,null,null,null,null,null,null,null,null,null,"wh-be-"]
[1,5,5,8,13,3,8,0,"632705","Indian Warrior23 ",3,"9-7","Ruth Carr29","James Sullivan",60,61,73,15.0259704589844,2,22,29,null,60,null,"indian warrior9-7",68,67,65,65,65,63,null,null,null,null,null,null,null,null,null,"wh-be-"]
[1,6,4,7,11,10,12,1,"400043","Viking Way32 b",3,"8-9","Olly Williams33","Graham Lee",48,49,76,-5.9740295410156197,10,17,33,null,48,null,"viking way8-9",56,56,56,54,51,50,null,null,null,null,null,null,null,null,null,"wh-be-"]
[1,6,4,7,11,9,3,0,"865950","Mitchum7 ",9,"8-12","Ron Barr10","David Allan",50,62,69,2.0259704589843799,8,24,10,null,50,-2,"mitchum8-12",54,53,52,52,51,50,null,null,null,null,null,null,null,null,null,"wh-be-"]
[1,8,5,5,10,4,1,0,"744160","Captain Bob109 p",7,"9-6","Philip Kirby32","Andrew Mullen",58,65,70,14.0259704589844,3,17,32,null,58,null,"captain bob9-6",57,55,65,55,65,63,55,55,55,55,null,null,null,null,null,"wh-be-"]
[1,8,3,7,10,8,7,0,"65543","Eternal Destiny11 ",3,"8-13","Rae Guest67","William Carson",52,46,68,-12.9740295410156,11,12,67,null,52,null,"eternal destiny8-13",null,"-","-","-",52,52,null,null,null,null,null,null,null,null,null,"wh-be-"]
[1,10,2,6,8,7,11,1,"655980","Wide Acclaim11 t",3,"9-2","Rebecca Menzies20","Ben Curtis",55,59,72,7.0259704589843803,6,27,20,null,55,null,"wide acclaim9-2","-","-",68,67,64,60,null,null,null,null,null,null,null,null,null,"wh-be-"]
[1,11,2,5,7,13,9,0,"860704","Henriettas Dream5 b",4,"8-8","John Wainwright67","Shane Gray",46,41,72,-19.9740295410156,13,21,67,null,46,-1,"henriettas dream8-8",46,46,46,45,56,38,null,null,null,null,null,null,null,null,null,"wh-be-"]
[1,11,1,6,7,11,6,0,"6-4593","Billyfairplay29 ",4,"8-8","John James Feane43","Luke Morris",46,72,69,8.0259704589843803,4,17,43,null,46,null,"billyfairplay8-8",53,53,50,50,48,45,null,null,null,null,null,null,null,null,null,"wh-be-"]
[1,13,0,6,6,14,13,1,"866905","Eyes Of Fire47 ",3,"8-7","John Norton","Paddy Aspell",46,47,63,-22.9740295410156,14,24,null,null,46,-5,"eyes of fire8-7",48,47,47,46,45,45,null,null,null,null,null,null,null,null,null,"wh-be-"]
[1,14,0,3,3,12,5,0,"755909","Red Forever34 h",7,"8-8","Helen Cuthbert","Rachel Richardson",46,"-",62,-14.4285295410156,12,28,null,null,46,-7,"red forever8-8",46,46,45,45,45,45,null,null,null,null,null,null,null,null,null,"wh-be-"]
[]
[null,"2000 Newcastle (AW) ATR"]
[null,"Digital Catapult Handicap (Div II) 6f"]
[{"$f":"ISNUMBER(FIND(\"wh-\", AO7))","v":true},"Winnings:£3,105 Runners:14 Distance:6f Going:Standard Channel:ATR",null,null,null,null,null,null,null,null,null,null,null,null,null,null,null,"OF Strategy",null,"              Recent Form ",null,"Speed",null,null,"                  Official Ratings",null,null,null,null,null,null,"             Life Win",null,"           Year Win",null,null,"         Trends",null,null,null,null,null,null,"Course Stats (Flat Only)",null,"                    Win %",null,null,null,"                   ROI %"]
[null,"Rank","R1","R2","Total","No","Dr","sig","Form","Horse","Age","Weight","Trainer (Run To Form)","Jockey (Allowance)","OR","TS","RPR","Rating","Rank","Horse","Tr'nr","Rank","Tdy","Fut","Horse - Weight",1,2,3,4,5,"LTO","High","Low","High ","Low","Wgt","Hc","Age","Tr'nr","Jock",null,null,null,"Horse","Sire","Trainer","Jockey","Average","Sire","Trainer","Jockey","Average"]
[1,1,12,7,19,11,9,0,"848083","Ticks The Boxes9 p",6,"8-8","John Wainwright67","Jamie Gormley3",46,56,74,6.9340667724609402,5,21,67,null,46,null,"ticks the boxes8-8",56,56,54,51,48,46,86,67,null,null,null,null,null,null,null,"wh-be-"]
[1,2,10,7,17,1,10,1,"507635","Duke Cosimo44 ",8,"9-8","Michael Herrington67","Phil Dennis3",60,75,72,37.934066772460902,1,14,67,null,60,null,"duke cosimo9-8",67,67,67,65,63,62,74,66,66,66,null,null,null,null,null,"wh-be-"]
[1,2,9,8,17,5,14,1,"233639","Ghost46 h",3,"9-5","John Quinn54","Ray Dawson5",58,49,72,9.9340667724609393,3,18,54,null,58,null,"ghost9-5",61,62,62,62,61,60,58,58,58,58,null,null,null,null,null,"wh-be-"]
[1,4,8,8,16,4,11,1,"461320","Supaulette9 b",3,"9-6","Tim Easterby44","David Allan",59,44,69,2.9340667724609402,7,15,44,null,59,null,"supaulette9-6",54,52,52,58,58,59,null,null,null,null,null,null,null,null,null,"wh-be-"]
[1,5,8,6,14,9,12,1,"155953","Carlovian7 v",5,"8-11","Mark Walford25","Paula Muir5",49,48,74,1.9340667724609399,8,17,25,null,49,3,"carlovian8-11",49,53,52,51,50,50,null,null,null,null,null,null,null,null,null,"wh-be-"]
[1,5,7,7,14,10,2,0,"090392","Guiding Star12 tp",4,"8-9","R K Watson50","Joe Fanning",47,44,69,-9.0659332275390607,11,14,50,null,47,-1,"guiding star8-9",47,47,46,45,45,46,null,null,null,null,null,null,null,null,null,"wh-be-"]
[1,7,6,7,13,6,3,0,"002069","Ocean Temptress21 p",4,"9-3","John Ryan50","Luke Morris",55,49,66,0.93406677246093806,9,25,50,null,55,null,"ocean temptress9-3",67,66,64,64,62,57,null,null,null,null,null,null,null,null,null,"wh-be-"]
[1,8,4,7,11,3,7,0,"70-000","Black Hambleton9 ",5,"9-7","Bryan Smart50","Harry Russell7",59,29,54,-27.065933227539102,13,30,50,null,59,-4,"black hambleton9-7",58,64,64,64,62,59,58,58,null,null,null,null,null,null,null,"wh-be-"]
[1,9,5,5,10,7,5,0,"043400","Campion13 p",3,"9-2","Philip Kirby32","Connor Murtagh5",55,64,73,22.934066772460898,2,24,32,null,55,null,"campion9-2",68,64,61,61,61,58,null,null,null,null,null,null,null,null,null,"wh-be-"]
[1,10,3,6,9,14,1,0,"00-937","Marcella5 ",3,"8-7","Ruth Carr29","James Sullivan",46,27,63,-33.065933227539098,14,19,29,null,46,-1,"marcella8-7",null,"-","-","-",25,25,null,null,null,null,null,null,null,null,null,"wh-be-"]
[1,11,2,5,7,2,8,0,"06-238","Gorse193 p",3,"9-7","Ann Duffield31","Connor Beasley",60,48,67,5.9340667724609402,6,13,31,null,60,null,"gorse9-7",63,63,62,61,62,62,null,null,null,null,null,null,null,null,null,"wh-be-"]
[1,12,2,4,6,12,6,0,"8-0608","Yair Hill53 p",10,"8-8","Helen Cuthbert","Rachel Richardson",46,"-",69,-5.14283322753906,10,24,null,null,46,-4,"yair hill8-8",47,52,46,56,46,46,null,null,null,null,null,null,null,null,null,"wh-be-"]
[1,13,1,4,5,8,4,0,"78730","First Breath71 ",3,"8-13","Ben Haslam90","Graham Lee",52,59,66,7.9340667724609402,4,20,90,null,52,null,"first breath8-13",null,"-","-","-",53,53,null,null,null,null,null,null,null,null,null,"wh-be-"]
[1,14,0,1,1,13,13,1,"878-64","Argon257 ",3,"8-7","Noel Wilson27","Andrew Mullen",46,44,56,-23.065933227539102,12,18,27,null,46,null,"argon8-7",null,"-","-","-","-",48,null,null,null,null,null,null,null,null,null,"wh-be-"]
[]
[null,"2030 Newcastle (AW) ATR"]
[null,"Go Go Go Reboot Handicap 5f"]
[{"$f":"ISNUMBER(FIND(\"wh-\", AO7))","v":true},"Winnings:£3,105 Runners:14 Distance:5f Going:Standard Channel:ATR",null,null,null,null,null,null,null,null,null,null,null,null,null,null,null,"OF Strategy",null,"              Recent Form ",null,"Speed",null,null,"                  Official Ratings",null,null,null,null,null,null,"             Life Win",null,"           Year Win",null,null,"         Trends",null,null,null,null,null,null,"Course Stats (Flat Only)",null,"                    Win %",null,null,null,"                   ROI %"]
[null,"Rank","R1","R2","Total","No","Dr","sig","Form","Horse","Age","Weight","Trainer (Run To Form)","Jockey (Allowance)","OR","TS","RPR","Rating","Rank","Horse","Tr'nr","Rank","Tdy","Fut","Horse - Weight",1,2,3,4,5,"LTO","High","Low","High ","Low","Wgt","Hc","Age","Tr'nr","Jock",null,null,null,"Horse","Sire","Trainer","Jockey","Average","Sire","Trainer","Jockey","Average"]
[1,1,15,8,23,1,3,0,"706341","Another Angel5 ",4,"9-7","Antony Brittain44","Cam Hardie",55,60,67,12.1103820800781,3,8,44,null,55,1,"another angel9-7",69,64,59,56,56,54,54,54,54,54,null,null,null,null,null,"wh-be-"]
[1,2,13,8,21,2,4,0,"354198","Sienna Says12 p",3,"9-7","Roger Fell45","Ben Curtis",55,63,67,15.1103820800781,2,18,45,null,55,null,"sienna says9-7",54,54,54,54,56,56,54,54,54,54,null,null,null,null,null,"wh-be-"]
[1,3,12,8,20,7,13,1,"473741","Displaying Amber12 p",3,"9-1","Ben Haslam90","Andrew Mullen",49,61,65,5.1103820800781197,4,12,90,null,49,null,"displaying amber9-1",51,50,49,48,46,45,45,45,45,45,null,null,null,null,null,"wh-be-"]
[1,4,9,8,17,6,7,0,"468539","Star Cracker13 p",6,"9-2","Jim Goldie55","Daniel Tudhope",50,70,67,17.1103820800781,1,17,55,null,50,null,"star cracker9-2",59,59,57,55,53,52,57,57,57,57,null,null,null,null,null,"wh-be-"]
[1,5,8,8,16,5,8,0,"586130","Poppy Jag11 v1",3,"9-4","Kevin Frost63","Ray Dawson5",52,49,66,-2.8896179199218799,11,14,63,null,52,null,"poppy jag9-4",47,47,46,46,53,53,null,null,null,null,null,null,null,null,null,"wh-be-"]
[1,5,9,7,16,11,11,1,"326563","Little Kingdom12 ",4,"8-12","Tracy Waggott8","Andrew Elliott",46,58,65,-0.889617919921875,9,14,8,null,46,-1,"little kingdom8-12",45,46,51,46,46,45,53,53,null,null,null,null,null,null,null,"wh-be-"]
[1,7,7,8,15,8,6,0,"535458","Oriental Splendour12 p",6,"9-0","Ruth Carr29","James Sullivan",48,45,67,-9.8896179199218803,12,17,29,null,48,null,"oriental splendour9-0",59,57,55,53,52,50,null,null,null,null,null,null,null,null,null,"wh-be-"]
[1,8,7,7,14,9,14,1,"707573","Pavlichenko28 p",3,"8-13","John James Feane43","Luke Morris",47,56,67,0.110382080078125,7,15,43,null,47,3,"pavlichenko8-13","-",57,55,50,48,48,null,null,null,null,null,null,null,null,null,"wh-be-"]
[1,9,7,5,12,13,2,0,"881480","Nifty Niece12 ",4,"8-12","Ann Duffield31","Joe Fanning",46,30,67,-26.8896179199219,14,22,31,null,46,-2,"nifty niece8-12",47,46,46,47,47,46,null,null,null,null,null,null,null,null,null,"wh-be-"]
[1,9,6,6,12,3,9,0,"239455","Compton Abbey11 tp",4,"9-7","Alexandra Dunn29","Stephen Cummins7",55,51,69,5.1103820800781197,4,14,29,null,55,null,"compton abbey9-7",56,56,58,58,57,55,55,55,55,55,null,null,null,null,null,"wh-be-"]
[1,11,4,7,11,10,12,1,"460370","Encoded12 ",5,"8-12","Lynn Siddall","Callum Rodriguez",46,60,66,2.1103820800781201,6,20,null,null,46,-1,"encoded8-12",47,46,46,45,45,46,null,null,null,null,null,null,null,null,null,"wh-be-"]
[1,12,3,5,8,4,5,0,"0564","The Bull22 ",3,"9-5","Ben Haslam90","Graham Lee",53,"-",62,-7.1417919921884704E-2,8,15,90,null,53,null,"the bull9-5",null,null,"-","-","-",54,null,null,null,null,null,null,null,null,null,"wh-be-"]
[1,13,2,1,3,12,1,0,"049","Sasheeda107 p1",4,"8-12","Michael Mullineaux57","Phil Dennis3",46,"-",67,-2.0714179199218798,10,23,57,null,46,-1,"sasheeda8-12",null,null,null,"-","-","-",null,null,null,null,null,null,null,null,null,"wh-be-"]
[1,14,0,2,2,14,10,1,"09068-","Mr Conundrum393 ",5,"8-12","Lynn Siddall","Paddy Aspell",46,"-",55,-14.071417919921901,13,24,null,null,46,-5,"mr conundrum8-12",46,49,50,51,51,46,null,null,null,null,null,null,null,null,null,"wh-be-"]
[]
[null,"1330 Nottingham RUK"]
[null,"Irish EBF DB Slip Anchor Maiden Stakes (Plus 10 Race) 5f8y"]
[{"$f":"ISNUMBER(FIND(\"wh-\", AO7))","v":true},"Winnings:£5,563 Runners:13 Distance:5f8y Going:Good Channel:RUK",null,null,null,null,null,null,null,null,null,null,null,null,null,null,null,"OF Strategy",null,"              Recent Form ",null,"Speed",null,null,"                  Official Ratings",null,null,null,null,null,null,"             Life Win",null,"           Year Win",null,null,"         Trends",null,null,null,null,null,null,"Course Stats (Flat Only)",null,"                    Win %",null,null,null,"                   ROI %"]
[null,"Rank","R1","R2","Total","No","Dr","sig","Form","Horse","Age","Weight","Trainer (Run To Form)","Jockey (Allowance)","OR","TS","RPR","Rating","Rank","Horse","Tr'nr","Rank","Tdy","Fut","Horse - Weight",1,2,3,4,5,"LTO","High","Low","High ","Low","Wgt","Hc","Age","Tr'nr","Jock",null,null,null,"Horse","Sire","Trainer","Jockey","Average","Sire","Trainer","Jockey","Average"]
[1,1,7,7,14,14,10,1,"535232","Summer Blossom14 b",2,"9-0","Archie Watson61","Daniel Tudhope",73,88,91,40,1,7,61,null,73,null,"summer blossom9-0","-","-",77,76,76,76,null,null,null,null,null,null,null,null,null,"wh-be-"]
[1,2,6,6,12,7,4,1,"22","Ustath60 ",2,"9-5","Owen Burrows55","Dane ONeill","-",81,88,31,2,14,55,null,"-",null,"ustath9-5",null,null,null,null,"-","-",null,null,null,null,null,null,null,null,null,"wh-be-"]
[1,3,5,4,9,10,6,0,"38","Indigo Angel27 ",2,"9-0","Richard Hannon55","Silvestre De Sousa","-",47,90,-1,7,21,55,null,"-",null,"indigo angel9-0",null,null,null,null,"-","-",null,null,null,null,null,null,null,null,null,"wh-be-"]
[1,3,5,4,9,6,14,1,"20","True Hero12 ",2,"9-5","William Haggas60","Oisin Murphy","-",58,85,5,5,22,60,null,"-",null,"true hero9-5",null,null,null,null,"-","-",null,null,null,null,null,null,null,null,null,"wh-be-"]
[1,3,3,6,9,8,12,1,"9723","Antonia Clara52 ",2,"9-0","Stuart Williams48","Richard Kingscote",75,61,88,12,3,12,48,null,75,null,"antonia clara9-0",null,null,"-","-","-",73,null,null,null,null,null,null,null,null,null,"wh-be-"]
[1,6,3,5,8,12,13,1,"83","Reticent Angel51 ",2,"9-0","Clive Cox58","William Buick","-",63,82,7,4,21,58,null,"-",null,"reticent angel9-0",null,null,null,null,"-","-",null,null,null,null,null,null,null,null,null,"wh-be-"]
[1,7,3,4,7,11,9,0,"3","Lille19 ",2,"9-0","Richard Hughes71","Shane Kelly","-",59,79,0,6,23,71,null,"-",null,"lille9-0",null,null,null,null,null,"-",null,null,null,null,null,null,null,null,null,"wh-be-"]
[1,8,2,1,3,1,1,1,"0","Clipsham Tiger19 ",2,"9-5","Michael Appleby37","Alistair Rawlinson","-","-","-",null,null,30,37,null,"-",null,"clipsham tiger9-5",null,null,null,null,null,"-",null,null,null,null,null,null,null,null,null,"wh-be-"]
[1,9,2,0,2,4,7,0,"00","Kyat Khan19 ",2,"9-5","Harry Dunlop44","Stevie Donohoe","-","-",24,-50.5,10,30,44,null,"-",null,"kyat khan9-5",null,null,null,null,"-","-",null,null,null,null,null,null,null,null,null,"wh-be-"]
[1,9,0,2,2,13,3,1,"98","Spring Holly84 ",2,"9-0","Robert Cowell65","Eoin Walsh3","-",51,59,-28,9,27,65,null,"-",null,"spring holly9-0",null,null,null,null,"-","-",null,null,null,null,null,null,null,null,null,"wh-be-"]
[1,11,0,1,1,3,2,1,null,"Invincible Larne ",2,"9-5","Mick Quinn40","Franny Norton","-","-","-",null,null,30,40,null,"-",null,"invincible larne9-5",null,null,null,null,null,null,null,null,null,null,null,null,null,null,null,"wh-be-"]
[1,11,0,1,1,2,11,1,null,"Exalted Angel ",2,"9-5","K R Burke48","Clifford Lee3","-","-","-",null,null,30,48,null,"-",null,"exalted angel9-5",null,null,null,null,null,null,null,null,null,null,null,null,null,null,null,"wh-be-"]
[1,13,0,0,0,9,8,0,"7","Atwaar113 ",2,"9-0","Ed Dunlop54","David Egan","-","-",59,-15.5,8,27,54,null,"-",null,"atwaar9-0",null,null,null,null,null,"-",null,null,null,null,null,null,null,null,null,"wh-be-"]
[]
[null,"1400 Nottingham RUK"]
[null,"EBF Batter Boys Mile Oh So Sharp Maiden Fillies Stakes (Plus 10 Race) (Div I) 1m75y"]
[{"$f":"ISNUMBER(FIND(\"wh-\", AO7))","v":true},"Winnings:£5,563 Runners:11 Distance:1m75y Going:Good Channel:RUK",null,null,null,null,null,null,null,null,null,null,null,null,null,null,null,"OF Strategy",null,"              Recent Form ",null,"Speed",null,null,"                  Official Ratings",null,null,null,null,null,null,"             Life Win",null,"           Year Win",null,null,"         Trends",null,null,null,null,null,null,"Course Stats (Flat Only)",null,"                    Win %",null,null,null,"                   ROI %"]
[null,"Rank","R1","R2","Total","No","Dr","sig","Form","Horse","Age","Weight","Trainer (Run To Form)","Jockey (Allowance)","OR","TS","RPR","Rating","Rank","Horse","Tr'nr","Rank","Tdy","Fut","Horse - Weight",1,2,3,4,5,"LTO","High","Low","High ","Low","Wgt","Hc","Age","Tr'nr","Jock",null,null,null,"Horse","Sire","Trainer","Jockey","Average","Sire","Trainer","Jockey","Average"]
[1,1,8,7,15,1,8,0,"4","Ambling11 h",2,"9-0","John Gosden68","Robert Havlin","-",86,90,38.800003051757798,1,24,68,null,"-",null,"ambling9-0",null,null,null,null,null,"-",null,null,null,null,null,null,null,null,null,"wh-be-"]
[1,2,6,4,10,12,7,0,"5","Vivid Diamond11 ",2,"9-0","Mark Johnston52","Silvestre De Sousa","-",84,89,35.800003051757798,2,25,52,null,"-",null,"vivid diamond9-0",null,null,null,null,null,"-",null,null,null,null,null,null,null,null,null,"wh-be-"]
[1,3,3,1,4,8,11,0,"6","Padmavati15 ",2,"9-0","Ed Walker46","William Buick","-","-",77,8.8000030517578107,3,26,46,null,"-",null,"padmavati9-0",null,null,null,null,null,"-",null,null,null,null,null,null,null,null,null,"wh-be-"]
[1,4,2,1,3,4,2,1,"60","Cuban Sun14 ",2,"9-0","James Given50","James Sullivan","-","-",30,-38.199996948242202,4,26,50,null,"-",null,"cuban sun9-0",null,null,null,null,"-","-",null,null,null,null,null,null,null,null,null,"wh-be-"]
[1,5,0,2,2,6,4,1,null,"Fast Strike ",2,"9-0","David Lanigan57","Stevie Donohoe","-","-","-",null,null,30,57,null,"-",null,"fast strike9-0",null,null,null,null,null,null,null,null,null,null,null,null,null,null,null,"wh-be-"]
[1,5,0,2,2,5,9,0,null,"Fancy Dress ",2,"9-0","Ralph Beckett66","Richard Kingscote","-","-","-",null,null,30,66,null,"-",null,"fancy dress9-0",null,null,null,null,null,null,null,null,null,null,null,null,null,null,null,"wh-be-"]
[1,5,2,0,2,9,3,1,"0","Riverina27 ",2,"9-0","Harry Dunlop44","Shane Kelly","-",37,55,-45.199996948242202,5,30,44,null,"-",null,"riverina9-0",null,null,null,null,null,"-",null,null,null,null,null,null,null,null,null,"wh-be-"]
[1,5,1,1,2,10,12,0,null,"Shagalla ",2,"9-0","Roger Varian60","David Egan","-","-","-",null,null,30,60,null,"-",null,"shagalla9-0",null,null,null,null,null,null,null,null,null,null,null,null,null,null,null,"wh-be-"]
[1,9,0,1,1,11,6,0,null,"Tasman Sea ",2,"9-0","Archie Watson59","Oisin Murphy","-","-","-",null,null,30,59,null,"-",null,"tasman sea9-0",null,null,null,null,null,null,null,null,null,null,null,null,null,null,null,"wh-be-"]
[1,9,0,1,1,7,10,0,null,"Noble Queen ",2,"9-0","Andrew Balding57","Rob Hornby","-","-","-",null,null,30,57,null,"-",null,"noble queen9-0",null,null,null,null,null,null,null,null,null,null,null,null,null,null,null,"wh-be-"]
[1,9,0,1,1,2,5,0,null,"Birdcage Walk ",2,"9-0","Hugo Palmer56","Josephine Gordon","-","-","-",null,null,30,56,null,"-",null,"birdcage walk9-0",null,null,null,null,null,null,null,null,null,null,null,null,null,null,null,"wh-be-"]
[]
[null,"1430 Nottingham RUK"]
[null,"EBF Batter Boys Mile Oh So Sharp Maiden Fillies Stakes (Plus 10 Race) (Div II) 1m75y"]
[{"$f":"ISNUMBER(FIND(\"wh-\", AO7))","v":true},"Winnings:£5,563 Runners:11 Distance:1m75y Going:Good Channel:RUK",null,null,null,null,null,null,null,null,null,null,null,null,null,null,null,"OF Strategy",null,"              Recent Form ",null,"Speed",null,null,"                  Official Ratings",null,null,null,null,null,null,"             Life Win",null,"           Year Win",null,null,"         Trends",null,null,null,null,null,null,"Course Stats (Flat Only)",null,"                    Win %",null,null,null,"                   ROI %"]
[null,"Rank","R1","R2","Total","No","Dr","sig","Form","Horse","Age","Weight","Trainer (Run To Form)","Jockey (Allowance)","OR","TS","RPR","Rating","Rank","Horse","Tr'nr","Rank","Tdy","Fut","Horse - Weight",1,2,3,4,5,"LTO","High","Low","High ","Low","Wgt","Hc","Age","Tr'nr","Jock",null,null,null,"Horse","Sire","Trainer","Jockey","Average","Sire","Trainer","Jockey","Average"]
[1,1,8,4,12,8,6,0,"503","Spanish Aria15 ",2,"9-0","John Gosden67","Robert Havlin","-",69,86,44.75,1,18,67,null,"-",null,"spanish aria9-0",null,null,null,"-","-","-",null,null,null,null,null,null,null,null,null,"wh-be-"]
[1,2,5,4,9,10,3,0,"05","Winterkoenigin28 ",2,"9-0","Ralph Beckett68","Richard Kingscote","-",40,81,10.75,2,25,68,null,"-",null,"winterkoenigin9-0",null,null,null,null,"-","-",null,null,null,null,null,null,null,null,null,"wh-be-"]
[1,3,3,1,4,9,2,0,"0","Tartlette19 ",2,"9-0","Hughie Morrison69","Charlie Bennett","-",17,55,-38.25,4,30,69,null,"-",null,"tartlette9-0",null,null,null,null,null,"-",null,null,null,null,null,null,null,null,null,"wh-be-"]
[1,3,3,1,4,11,8,0,null,"Ya Hala ",2,"9-0","Charlie Appleby47","William Buick","-","-","-",null,null,30,47,null,"-",null,"ya hala9-0",null,null,null,null,null,null,null,null,null,null,null,null,null,null,null,"wh-be-"]
[1,5,2,1,3,4,7,0,"0","Eesha Lovely15 ",2,"9-0","Mark Johnston53","Franny Norton","-","-","-",null,null,30,53,null,"-",null,"eesha lovely9-0",null,null,null,null,null,"-",null,null,null,null,null,null,null,null,null,"wh-be-"]
[1,6,2,0,2,1,1,0,"0","Bruyere15 ",2,"9-0","Dean Ivory13","Martin Dwyer","-","-",51,-17.25,3,30,13,null,"-",null,"bruyere9-0",null,null,null,null,null,"-",null,null,null,null,null,null,null,null,null,"wh-be-"]
[1,7,0,1,1,6,11,0,null,"Hidden Pearl ",2,"9-0","Andrew Balding57","Oisin Murphy","-","-","-",null,null,30,57,null,"-",null,"hidden pearl9-0",null,null,null,null,null,null,null,null,null,null,null,null,null,null,null,"wh-be-"]
[1,7,0,1,1,5,10,0,null,"Get It Ready ",2,"9-0","Michael Appleby37","Alistair Rawlinson","-","-","-",null,null,30,37,null,"-",null,"get it ready9-0",null,null,null,null,null,null,null,null,null,null,null,null,null,null,null,"wh-be-"]
[1,7,0,1,1,3,9,0,null,"Dorah ",2,"9-0","Archie Watson60","Edward Greatrex","-","-","-",null,null,30,60,null,"-",null,"dorah9-0",null,null,null,null,null,null,null,null,null,null,null,null,null,null,null,"wh-be-"]
[1,10,0,0,0,7,4,0,null,"Perfecimperfection ",2,"9-0","Marco Botti59","Marc Monaghan3","-","-","-",null,null,30,59,null,"-",null,"perfecimperfection9-0",null,null,null,null,null,null,null,null,null,null,null,null,null,null,null,"wh-be-"]
[1,10,0,0,0,2,5,0,null,"Bumblekite ",2,"9-0","Steph Hollinshead10","Royston Ffrench","-","-","-",null,null,30,10,null,"-",null,"bumblekite9-0",null,null,null,null,null,null,null,null,null,null,null,null,null,null,null,"wh-be-"]
[]
[null,"1505 Nottingham RUK"]
[null,"42nd Street Classics Nursery Handicap (The Jockey Club Grassroots Nursery Series Final) 6f18y"]
[{"$f":"ISNUMBER(FIND(\"wh-\", AO7))","v":true},"Winnings:£16,173 Runners:12 Distance:6f18y Going:Good Channel:RUK",null,null,null,null,null,null,null,null,null,null,null,null,null,null,null,"OF Strategy",null,"              Recent Form ",null,"Speed",null,null,"                  Official Ratings",null,null,null,null,null,null,"             Life Win",null,"           Year Win",null,null,"         Trends",null,null,null,null,null,null,"Course Stats (Flat Only)",null,"                    Win %",null,null,null,"                   ROI %"]
[null,"Rank","R1","R2","Total","No","Dr","sig","Form","Horse","Age","Weight","Trainer (Run To Form)","Jockey (Allowance)","OR","TS","RPR","Rating","Rank","Horse","Tr'nr","Rank","Tdy","Fut","Horse - Weight",1,2,3,4,5,"LTO","High","Low","High ","Low","Wgt","Hc","Age","Tr'nr","Jock",null,null,null,"Horse","Sire","Trainer","Jockey","Average","Sire","Trainer","Jockey","Average"]
[1,1,10,8,18,4,10,0,"64318","Marks Choice20 ",2,"8-13","Ruth Carr29","James Sullivan",78,69,94,-3.1666717529296902,6,12,29,null,78,null,"marks choice8-13",null,"-","-","-",75,80,75,75,75,75,null,null,null,null,null,"wh-be-"]
[1,2,8,7,15,3,13,0,"65219","Dark Shadow42 ",2,"9-0","Clive Cox58","William Buick",79,91,97,22.833328247070298,1,12,58,null,79,null,"dark shadow9-0",null,"-","-","-",74,80,74,74,74,74,null,null,null,null,null,"wh-be-"]
[1,2,10,5,15,5,6,1,"742217","Muthhila20 ",2,"8-13","Marco Botti59","Gabriele Malune5",78,63,98,-5.1666717529296902,8,10,59,null,78,null,"muthhila8-13","-","-","-",67,67,79,null,null,null,null,null,null,null,null,null,"wh-be-"]
[1,4,7,7,14,1,4,0,"331918","Indian Sounds19 ",2,"9-10","Mark Johnston54","Silvestre De Sousa",89,75,92,11.8333282470703,2,18,54,null,89,null,"indian sounds9-10","-","-","-",82,81,87,null,null,null,null,null,null,null,null,null,"wh-be-"]
[1,4,7,7,14,11,7,1,"433631","Wolf Hunter43 h",2,"8-3","Richard Hughes74","David Egan",68,80,92,-4.1666717529296902,7,10,74,null,68,null,"wolf hunter8-3","-","-","-","-",64,63,null,null,null,null,null,null,null,null,null,"wh-be-"]
[1,6,6,7,13,7,1,0,"724366","Steeve18 ",2,"8-7","Rod Millman50","Rob Hornby",72,79,96,2.8333282470703098,4,15,50,null,72,null,"steeve8-7","-","-","-",78,77,74,null,null,null,null,null,null,null,null,null,"wh-be-"]
[1,7,5,7,12,12,12,0,"443551","Islay Mist14 ",2,"8-1","Amy Murphy54","Jimmy Quinn",66,75,92,-11.1666717529297,12,11,54,null,66,null,"islay mist8-1","-",66,65,63,61,59,null,null,null,null,null,null,null,null,null,"wh-be-"]
[1,7,5,7,12,8,8,1,"452613","Mr Diamond12 ",2,"8-7","Richard Fahey34","Paul Hanagan",72,72,93,-7.1666717529296902,10,10,34,null,72,null,"mr diamond8-7","-","-","-",68,66,72,66,66,66,66,null,null,null,null,null,"wh-be-"]
[1,9,5,6,11,6,9,1,"625145","Requited5 ",2,"8-11","Hughie Morrison68","Charlie Bennett",76,80,95,6.8333282470703098,3,10,68,null,76,-3,"requited8-11","-",71,73,73,76,76,null,null,null,null,null,null,null,null,null,"wh-be-"]
[1,9,5,6,11,2,5,1,"562102","Leoube49 ",2,"9-5","Richard Hannon56","Oisin Murphy",84,68,91,-1.1666717529296899,5,13,56,null,84,null,"leoube9-5","-","-",66,71,83,82,71,71,71,71,null,null,null,null,null,"wh-be-"]
[1,11,1,7,8,9,11,0,"7533","Cracking Speed36 t1",2,"8-6","Richard Hannon56","Martin Dwyer",71,75,91,-7.1666717529296902,10,11,56,null,71,null,"cracking speed8-6",null,null,"-","-","-",72,null,null,null,null,null,null,null,null,null,"wh-be-"]
[1,12,1,6,7,10,3,0,"635448","Pirate36 h1",2,"8-3","Richard Hannon56","Hollie Doyle",68,78,93,-5.1666717529296902,8,16,56,null,68,null,"pirate8-3","-","-","-",71,71,70,null,null,null,null,null,null,null,null,null,"wh-be-"]
[]
[null,"1535 Nottingham RUK"]
[null,"KFE Leaders In Frying Excellence Handicap (The Jockey Club Grassroots Sprint Distance Series Final) 6f18y"]
[{"$f":"ISNUMBER(FIND(\"wh-\", AO7))","v":true},"Winnings:£15,563 Runners:17 Distance:6f18y Going:Good Channel:RUK",null,null,null,null,null,null,null,null,null,null,null,null,null,null,null,"OF Strategy",null,"              Recent Form ",null,"Speed",null,null,"                  Official Ratings",null,null,null,null,null,null,"             Life Win",null,"           Year Win",null,null,"         Trends",null,null,null,null,null,null,"Course Stats (Flat Only)",null,"                    Win %",null,null,null,"                   ROI %"]
[null,"Rank","R1","R2","Total","No","Dr","sig","Form","Horse","Age","Weight","Trainer (Run To Form)","Jockey (Allowance)","OR","TS","RPR","Rating","Rank","Horse","Tr'nr","Rank","Tdy","Fut","Horse - Weight",1,2,3,4,5,"LTO","High","Low","High ","Low","Wgt","Hc","Age","Tr'nr","Jock",null,null,null,"Horse","Sire","Trainer","Jockey","Average","Sire","Trainer","Jockey","Average"]
[1,1,10,8,18,3,3,0,"414312","Belated Breath40 ",3,"9-8","Hughie Morrison69","Oisin Murphy",81,82,89,9.2941131591796893,3,6,69,null,81,null,"belated breath9-8",69,68,74,73,72,78,72,68,72,68,null,null,null,null,null,"wh-be-"]
[1,1,9,9,18,5,4,0,"-96703","Syrian Pearl14 ",7,"9-5","Chris Wall44","George Wood",77,85,87,6.2941131591796902,5,20,44,null,77,null,"syrian pearl9-5",79,84,84,82,80,77,82,68,79,79,null,null,null,null,null,"wh-be-"]
[1,3,8,8,16,14,17,1,"594734","Socialites Red14 p",5,"8-9","Scott Dixon50","Theodore Ladd5",67,68,90,-17.705886840820298,17,14,50,null,67,null,"socialites red8-9",70,69,69,68,67,68,67,59,67,67,null,null,null,null,null,"wh-be-"]
[1,3,9,7,16,12,15,1,"590431","Case Key4 ",5,"8-11","Michael Appleby37","Royston Ffrench",69,84,93,3.2941131591796902,6,8,37,null,69,2,"case key8-11",72,72,70,69,69,69,73,69,69,69,null,null,null,null,null,"wh-be-"]
[1,3,9,7,16,4,16,1,"653256","Diamond Lady18 ",7,"9-7","William Stone25","Hollie Doyle",79,84,91,11.2941131591797,1,13,25,null,79,null,"diamond lady9-7",83,82,80,79,80,76,81,75,null,null,null,null,null,null,null,"wh-be-"]
[1,3,9,7,16,15,8,0,"091977","Storm Melody14 p",5,"8-9","Ali Stronge","Edward Greatrex",67,78,93,-4.7058868408203098,12,23,null,null,67,null,"storm melody8-9",72,70,67,69,69,68,69,67,67,67,null,null,null,null,null,"wh-be-"]
[1,3,8,8,16,13,13,1,"253561","Haverland21 ",3,"8-10","Charlie Fellowes60","Stevie Donohoe",69,74,92,-7.7058868408203098,15,12,60,null,69,null,"haverland8-10",65,66,66,66,65,63,63,63,63,63,null,null,null,null,null,"wh-be-"]
[1,8,7,8,15,17,11,0,"555565","Operative14 ",5,"8-9","Ed de Giles67","Silvestre De Sousa",67,92,94,10.2941131591797,2,16,67,null,67,null,"operative8-9",77,75,73,71,71,69,74,70,null,null,null,null,null,null,null,"wh-be-"]
[1,8,8,7,15,1,9,0,"022110","Admirality19 ",4,"9-10","J P Murtagh50","Shane B Kelly3",82,72,92,3.2941131591796902,6,12,50,null,82,null,"admirality9-10",62,59,62,64,74,82,74,64,74,64,null,null,null,null,null,"wh-be-"]
[1,10,7,7,14,7,6,0,"683168","Charming Guest7 ",3,"9-3","Mick Channon49","Scott McCullagh7",76,78,91,2.2941131591796902,8,15,49,null,76,-1,"charming guest9-3",78,76,74,71,77,76,71,71,71,71,null,null,null,null,null,"wh-be-"]
[1,10,8,6,14,2,12,1,"443-11","Saaheq14 ",4,"9-9","Michael Appleby37","David Egan",81,80,91,9.2941131591796893,3,5,37,null,81,null,"saaheq9-9","-","-","-",74,71,76,76,71,76,71,null,null,null,null,null,"wh-be-"]
[1,10,6,8,14,11,1,0,"700392","Casterbridge7 ",6,"8-13","Eric Alston50","Jason Hart",71,80,91,-0.70588684082031194,10,14,50,null,71,null,"casterbridge8-13",76,75,73,73,71,71,73,68,null,null,null,null,null,null,null,"wh-be-"]
[1,10,7,7,14,16,14,1,"851514","Extrasolar15 t",8,"8-9","Geoffrey Harker75","Franny Norton",67,78,91,-6.7058868408203098,14,10,75,null,67,null,"extrasolar8-9",58,62,61,67,65,68,84,58,65,58,null,null,null,null,null,"wh-be-"]
[1,14,6,7,13,8,7,0,"929627","Han Solo Berger26 p",3,"9-3","Chris Wall44","William Buick",76,74,91,-1.7058868408203101,11,15,44,null,76,null,"han solo berger9-3",82,79,80,79,77,77,null,null,null,null,null,null,null,null,null,"wh-be-"]
[1,15,5,7,12,6,10,0,"927117","Stewardess33 ",3,"9-3","Richard Fahey34","David Nolan",76,78,89,0.294113159179688,9,9,34,null,76,null,"stewardess9-3",66,66,66,66,70,77,70,66,70,66,null,null,null,null,null,"wh-be-"]
[1,15,6,6,12,10,2,0,"433171","Cale Lane29 ",3,"9-2","James Bethell56","Josephine Gordon",75,69,88,-10.7058868408203,16,9,56,null,75,null,"cale lane9-2","-","-","-",65,70,70,70,65,70,65,null,null,null,null,null,"wh-be-"]
[1,17,3,5,8,9,5,0,"173081","Magic Pulse36 ",3,"9-2","David C Griffiths38","Dougie Costello",75,72,90,-5.7058868408203098,13,19,38,null,75,null,"magic pulse9-2",71,75,75,75,74,72,null,null,null,null,null,null,null,null,null,"wh-be-"]
[]
[null,"1610 Nottingham RUK"]
[null,"Drywite Fresh Produce Wash Handicap (The Jockey Club Grassroots Middle Distance Series Final) 1m2f50y"]
[{"$f":"ISNUMBER(FIND(\"wh-\", AO7))","v":true},"Winnings:£15,563 Runners:9 Distance:1m2f50y Going:Good Channel:RUK",null,null,null,null,null,null,null,null,null,null,null,null,null,null,null,"OF Strategy",null,"              Recent Form ",null,"Speed",null,null,"                  Official Ratings",null,null,null,null,null,null,"             Life Win",null,"           Year Win",null,null,"         Trends",null,null,null,null,null,null,"Course Stats (Flat Only)",null,"                    Win %",null,null,null,"                   ROI %"]
[null,"Rank","R1","R2","Total","No","Dr","sig","Form","Horse","Age","Weight","Trainer (Run To Form)","Jockey (Allowance)","OR","TS","RPR","Rating","Rank","Horse","Tr'nr","Rank","Tdy","Fut","Horse - Weight",1,2,3,4,5,"LTO","High","Low","High ","Low","Wgt","Hc","Age","Tr'nr","Jock",null,null,null,"Horse","Sire","Trainer","Jockey","Average","Sire","Trainer","Jockey","Average"]
[1,1,9,7,16,7,1,0,"-01132","Lyricas Lion29 ",4,"8-4","Sheena West100","Silvestre De Sousa",69,64,98,-18.2222290039062,8,6,100,null,69,1,"lyricas lion8-4",57,59,57,60,62,66,60,54,60,57,null,null,null,null,null,"wh-be-"]
[1,1,8,8,16,2,3,0,"214924","Michele Strogoff19 ",5,"9-4","Michael Appleby37","Alistair Rawlinson",83,91,97,21.7777709960938,1,15,37,null,83,null,"michele strogoff9-4",77,78,84,83,81,81,78,78,78,78,null,null,null,null,null,"wh-be-"]
[1,1,8,8,16,1,8,0,"221420","Scottish Summit39 ",5,"9-10","Geoffrey Harker75","Kevin Stott",89,71,95,5.77777099609375,4,16,75,null,89,null,"scottish summit9-10",76,76,76,85,85,89,76,68,76,68,null,null,null,null,null,"wh-be-"]
[1,4,9,6,15,4,2,0,"242435","Purple Rock25 ",6,"8-9","Gay Kelleway50","Hollie Doyle",74,85,100,9.77777099609375,3,12,50,null,74,null,"purple rock8-9",72,72,71,71,75,75,74,74,null,null,null,null,null,null,null,"wh-be-"]
[1,4,8,7,15,8,7,0,"533133","Gravina44 ",3,"8-3","Alan King61","David Egan",72,61,98,-18.2222290039062,8,7,61,null,72,null,"gravina8-3","-","-",68,68,72,72,68,68,68,68,null,null,null,null,null,"wh-be-"]
[1,6,6,8,14,3,5,0,"835704","Music Seeker5 t",4,"8-12","Declan Carroll52","Jason Hart",77,78,98,3.77777099609375,5,21,52,null,77,-1,"music seeker8-12",80,80,80,79,78,77,76,76,76,76,null,null,null,null,null,"wh-be-"]
[1,7,7,6,13,9,4,0,"515369","Sioux Frontier13 ",3,"8-0","Richard Fahey34","Paddy Mathers",69,67,99,-14.2222290039062,7,18,34,null,69,-2,"sioux frontier8-0",68,67,70,70,69,68,67,67,67,67,null,null,null,null,null,"wh-be-"]
[1,7,6,7,13,6,6,0,"336506","Maghfoor7 ",4,"8-7","Eric Alston50","Paul Hanagan",72,73,100,-4.22222900390625,6,21,50,null,72,-1,"maghfoor8-7",74,74,80,75,74,72,null,null,null,null,null,null,null,null,null,"wh-be-"]
[1,9,3,5,8,5,9,0,"136233","Angelina DOr96 ",3,"8-8","Jane Chapple-Hyam40","Martin Dwyer",77,88,98,13.7777709960938,2,8,40,null,77,null,"angelina dor8-8",76,76,76,77,77,79,null,null,null,null,null,null,null,null,null,"wh-be-"]
[]
[null,"1640 Nottingham RUK"]
[null,"Georges Great British Kitchen Handicap (The Jockey Club Grassroots Stayers Distance Series Final) 1m6f"]
[{"$f":"ISNUMBER(FIND(\"wh-\", AO7))","v":true},"Winnings:£15,563 Runners:16 Distance:1m6f Going:Good Channel:RUK",null,null,null,null,null,null,null,null,null,null,null,null,null,null,null,"OF Strategy",null,"              Recent Form ",null,"Speed",null,null,"                  Official Ratings",null,null,null,null,null,null,"             Life Win",null,"           Year Win",null,null,"         Trends",null,null,null,null,null,null,"Course Stats (Flat Only)",null,"                    Win %",null,null,null,"                   ROI %"]
[null,"Rank","R1","R2","Total","No","Dr","sig","Form","Horse","Age","Weight","Trainer (Run To Form)","Jockey (Allowance)","OR","TS","RPR","Rating","Rank","Horse","Tr'nr","Rank","Tdy","Fut","Horse - Weight",1,2,3,4,5,"LTO","High","Low","High ","Low","Wgt","Hc","Age","Tr'nr","Jock",null,null,null,"Horse","Sire","Trainer","Jockey","Average","Sire","Trainer","Jockey","Average"]
[1,1,11,8,19,2,15,0,"112536","Paddy A11 v",4,"9-2","Ian Williams68","Gabriele Malune5",75,70,94,8.7208251953125,4,14,68,null,75,null,"paddy a9-2",68,73,78,78,78,76,73,68,73,68,null,null,null,null,null,"wh-be-"]
[1,1,12,7,19,12,10,0,"8-9114","Burn Some Dust26 ",3,"8-3","Brian Ellison53","Josephine Gordon",69,76,93,7.7208251953125,6,6,53,null,69,null,"burn some dust8-3",57,62,62,61,66,69,66,57,66,57,null,null,null,null,null,"wh-be-"]
[1,3,10,7,17,3,1,1,"184313","Nibras Galaxy26 b",3,"9-0","Ismail Mohammed63","Oisin Murphy",80,68,89,6.7208251953125,7,7,63,null,80,null,"nibras galaxy9-0",70,76,75,74,74,77,74,70,74,70,null,null,null,null,null,"wh-be-"]
[1,4,8,8,16,13,5,1,"3-7415","Up Ten Down Two24 ",9,"8-2","Michael Easterby30","Nathan Evans",61,62,93,-14.2791748046875,13,10,30,null,61,null,"up ten down two8-2",67,65,65,59,64,61,null,null,null,null,null,null,null,null,null,"wh-be-"]
[1,4,8,8,16,8,8,0,"152551","Fitzwilly26 ",8,"8-9","Mick Channon49","Silvestre De Sousa",68,82,92,11.7208251953125,3,11,49,null,68,null,"fitzwilly8-9",62,68,66,66,66,66,72,50,62,62,null,null,null,null,null,"wh-be-"]
[1,6,7,8,15,9,6,0,"412435","Sassie21 ",3,"8-6","Sylvester Kirk57","Edward Greatrex",72,72,95,8.7208251953125,4,12,57,null,72,null,"sassie8-6",71,70,74,76,76,74,70,70,70,70,null,null,null,null,null,"wh-be-"]
[1,7,7,7,14,1,3,1,"130623","New Society11 ",4,"9-10","James Bethell56","Clifford Lee3",83,84,92,28.7208251953125,1,11,56,null,83,null,"new society9-10",77,87,86,83,82,83,77,62,77,72,null,null,null,null,null,"wh-be-"]
[1,7,6,8,14,16,4,1,"524272","Affair15 ",4,"8-0","Hughie Morrison69","Paddy Mathers",59,68,88,-15.2791748046875,14,11,69,null,59,-5,"affair8-0",54,53,53,53,54,54,52,49,52,52,null,null,null,null,null,"wh-be-"]
[1,7,8,6,14,6,9,0,"0151-0","Incus50 ",5,"8-9","Ed de Giles67","Callum Shepherd",68,77,90,4.7208251953125,9,16,67,null,68,null,"incus8-9",59,60,59,65,64,68,64,51,64,64,null,null,null,null,null,"wh-be-"]
[1,10,7,6,13,5,12,0,"415226","Navajo Star11 ",4,"8-13","Robyn Brisland38","Shane Kelly",72,72,91,4.7208251953125,9,10,38,null,72,null,"navajo star8-13",68,68,73,71,71,73,68,68,68,68,null,null,null,null,null,"wh-be-"]
[1,11,4,8,12,10,2,1,"640735","Sheriff Garrett83  ",4,"8-6","Tim Easterby44","Paul Hanagan",65,77,94,5.7208251953125,8,15,44,null,65,null,"sheriff garrett8-6",72,71,70,69,67,67,null,null,null,null,null,null,null,null,null,"wh-be-"]
[1,11,5,7,12,7,16,0,"455634","Graceful Lady13 ",5,"8-9","Robert Eddery44","Darragh Keenan5",68,88,93,18.7208251953125,2,13,44,null,68,null,"graceful lady8-9",74,74,72,71,69,69,70,58,null,null,null,null,null,null,null,"wh-be-"]
[1,13,5,6,11,14,11,0,"0-0080","Haroon22 ",4,"8-0","Michael Appleby37","R P Walsh7",59,74,99,1.7208251953125,11,28,37,null,59,-2,"haroon8-0",72,72,72,68,65,65,null,null,null,null,null,null,null,null,null,"wh-be-"]
[1,14,3,7,10,11,14,0,"0336","Carnwennan26 ",3,"8-6","Charlie Fellowes60","David Egan",72,54,88,-16.2791748046875,15,12,60,null,72,null,"carnwennan8-6",null,null,"-","-","-",72,null,null,null,null,null,null,null,null,null,"wh-be-"]
[1,14,4,6,10,15,13,0,"3240-8","Thomas Blossom26 tp",8,"8-0","Ali Stronge","Hollie Doyle",59,"-",89,-12.812474804687501,12,22,null,null,59,-3,"thomas blossom8-0",60,64,64,63,62,64,46,46,null,null,null,null,null,null,null,"wh-be-"]
[1,16,2,4,6,4,7,0,"06-862","Takbeer74 p",6,"8-13","Nikki Evans","Richard Kingscote",72,18,91,-49.2791748046875,16,16,null,null,72,null,"takbeer8-13",74,74,74,73,71,69,71,71,null,null,null,null,null,null,null,"wh-be-"]
[]
[null,"1715 Nottingham RUK"]
[null,"Creative Finance For Business CF Capital PLC Handicap 5f8y"]
[{"$f":"ISNUMBER(FIND(\"wh-\", AO7))","v":true},"Winnings:£3,881 Runners:14 Distance:5f8y Going:Good Channel:RUK",null,null,null,null,null,null,null,null,null,null,null,null,null,null,null,"OF Strategy",null,"              Recent Form ",null,"Speed",null,null,"                  Official Ratings",null,null,null,null,null,null,"             Life Win",null,"           Year Win",null,null,"         Trends",null,null,null,null,null,null,"Course Stats (Flat Only)",null,"                    Win %",null,null,null,"                   ROI %"]
[null,"Rank","R1","R2","Total","No","Dr","sig","Form","Horse","Age","Weight","Trainer (Run To Form)","Jockey (Allowance)","OR","TS","RPR","Rating","Rank","Horse","Tr'nr","Rank","Tdy","Fut","Horse - Weight",1,2,3,4,5,"LTO","High","Low","High ","Low","Wgt","Hc","Age","Tr'nr","Jock",null,null,null,"Horse","Sire","Trainer","Jockey","Average","Sire","Trainer","Jockey","Average"]
[1,1,13,7,20,1,5,1,"326111","Captain Lars7 b",9,"9-9","Archie Watson61","Edward Greatrex",77,85,92,15.7142791748047,1,3,61,null,77,5,"captain lars9-9",82,81,81,66,72,77,77,66,77,66,null,null,null,null,null,"wh-be-"]
[1,2,10,8,18,4,4,1,"928147","Tallinski21 b",4,"9-7","Brian Ellison53","Ben Robinson3",75,79,88,3.7142791748046902,5,12,53,null,75,null,"tallinski9-7",76,73,73,72,78,76,77,72,72,72,null,null,null,null,null,"wh-be-"]
[1,2,11,7,18,7,8,0,"1-6005","Ebitda15 ",4,"9-5","Scott Dixon44","Theodore Ladd5",73,81,90,5.7142791748046902,4,25,44,null,73,null,"ebitda9-5",67,73,78,78,76,75,73,46,73,67,null,null,null,null,null,"wh-be-"]
[1,2,10,8,18,8,2,1,"366124","Musharrif5 ",6,"9-4","Declan Carroll52","Jason Hart",72,79,87,-0.285720825195312,10,7,52,null,72,null,"musharrif9-4",69,69,68,67,70,70,75,67,67,67,null,null,null,null,null,"wh-be-"]
[1,5,9,8,17,13,7,0,"242878","Foxtrot Knight14 ",6,"8-13","Ruth Carr32","Jane Elliott3",67,87,92,7.7142791748046902,3,23,32,null,67,null,"foxtrot knight8-13",75,75,73,73,72,70,77,60,68,68,null,null,null,null,null,"wh-be-"]
[1,6,9,7,16,3,9,0,"131773","Tan4 ",4,"9-7","Michael Appleby37","Alistair Rawlinson",75,78,88,2.7142791748046902,7,17,37,null,75,null,"tan9-7",62,68,69,77,77,75,69,null,69,62,null,null,null,null,null,"wh-be-"]
[1,7,7,8,15,12,10,1,"36-565","Swing Out Sister28 ",3,"8-13","Clive Cox58","Hollie Doyle",67,92,91,11.7142791748047,2,16,58,null,67,null,"swing out sister8-13",74,75,75,74,73,70,null,null,null,null,null,null,null,null,null,"wh-be-"]
[1,7,8,7,15,5,3,1,"935181","Nibras Again18 ",4,"9-6","Ismail Mohammed63","Silvestre De Sousa",74,77,88,0.71427917480468806,9,10,63,null,74,null,"nibras again9-6",68,67,67,65,73,72,72,65,72,65,null,null,null,null,null,"wh-be-"]
[1,9,7,7,14,6,12,1,"215R68","King Crimson16 t",6,"9-6","John Butler33","Tim Clark3",74,75,89,-0.285720825195312,10,24,33,null,74,null,"king crimson9-6",68,72,76,76,76,75,80,65,72,65,null,null,null,null,null,"wh-be-"]
[1,10,5,8,13,9,11,1,"-41363","Maygold33 ",3,"9-2","Ed Walker46","Oisin Murphy",70,82,89,2.7142791748046902,7,12,46,null,70,null,"maygold9-2",64,67,67,72,71,71,67,67,67,67,null,null,null,null,null,"wh-be-"]
[1,11,7,5,12,14,13,1,"-31430","Sky Gypsy14 ",4,"8-13","David Brown29","Richard Kingscote",67,42,87,-42.285720825195298,14,17,29,null,67,null,"sky gypsy8-13",65,60,60,68,68,68,null,null,null,null,null,null,null,null,null,"wh-be-"]
[1,12,5,6,11,11,6,0,"911530","Bomad32 v",3,"9-0","Derek Shaw38","Paddy Mathers",68,77,87,-6.2857208251953098,13,18,38,null,68,null,"bomad9-0",63,61,65,70,70,69,61,61,61,61,null,null,null,null,null,"wh-be-"]
[1,12,4,7,11,10,14,1,"667745","Belledesert2 tp",5,"9-0","Steph Hollinshead20","Toby Eley7",68,81,84,-5.2857208251953098,12,16,20,null,68,null,"belledesert9-0",79,77,77,73,69,68,80,65,null,null,null,null,null,null,null,"wh-be-"]
[1,14,3,6,9,2,1,1,"486003","Algam7 v",3,"9-7","Luke McJannet100","Darragh Keenan5",75,81,86,3.7142791748046902,5,23,100,null,75,-1,"algam9-7",88,86,86,83,79,75,null,null,null,null,null,null,null,null,null,"wh-be-"]
[]
[null,"1340 Salisbury RUK"]
[null,"PKF Francis Clark EBF Novice Stakes (Plus 10 Race) (Div I) 1m"]
[{"$f":"ISNUMBER(FIND(\"wh-\", AO7))","v":true},"Winnings:£5,111 Runners:14 Distance:1m Going:Good Channel:RUK",null,null,null,null,null,null,null,null,null,null,null,null,null,null,null,"OF Strategy",null,"              Recent Form ",null,"Speed",null,null,"                  Official Ratings",null,null,null,null,null,null,"             Life Win",null,"           Year Win",null,null,"         Trends",null,null,null,null,null,null,"Course Stats (Flat Only)",null,"                    Win %",null,null,null,"                   ROI %"]
[null,"Rank","R1","R2","Total","No","Dr","sig","Form","Horse","Age","Weight","Trainer (Run To Form)","Jockey (Allowance)","OR","TS","RPR","Rating","Rank","Horse","Tr'nr","Rank","Tdy","Fut","Horse - Weight",1,2,3,4,5,"LTO","High","Low","High ","Low","Wgt","Hc","Age","Tr'nr","Jock",null,null,null,"Horse","Sire","Trainer","Jockey","Average","Sire","Trainer","Jockey","Average"]
[1,1,10,6,16,2,14,1,"42","Dawn Treader19 ",2,"9-2","Richard Hannon55","Tom Marquand","-",57,90,22.142860412597699,2,16,55,null,"-",null,"dawn treader9-2",null,null,null,null,"-","-",null,null,null,null,null,null,null,null,null,"wh-be-"]
[1,2,4,4,8,9,12,1,"73","Murray River13 ",2,"9-2","John Gosden67","Kieran ONeill","-",42,83,0.142860412597656,4,20,67,null,"-",null,"murray river9-2",null,null,null,null,"-","-",null,null,null,null,null,null,null,null,null,"wh-be-"]
[1,3,5,2,7,10,3,0,"3","Purdeys Gift22 ",2,"9-2","Andrew Balding57","Jason Watson3","-",49,88,12.142860412597701,3,23,57,null,"-",null,"purdeys gift9-2",null,null,null,null,null,"-",null,null,null,null,null,null,null,null,null,"wh-be-"]
[1,4,2,1,3,13,11,1,"5","Mongolia19 ",2,"8-11","Richard Hannon55","Rossa Ryan3","-",22,63,-39.857139587402301,7,25,55,null,"-",null,"mongolia8-11",null,null,null,null,null,"-",null,null,null,null,null,null,null,null,null,"wh-be-"]
[1,4,2,1,3,1,6,1,"74","Avenue Foch19 ",2,"9-2","Luca Cumani67","Jamie Spencer","-",45,77,-2.8571395874023402,5,21,67,null,"-",null,"avenue foch9-2",null,null,null,null,"-","-",null,null,null,null,null,null,null,null,null,"wh-be-"]
[1,4,2,1,3,5,2,0,null,"Ginistrelli ",2,"9-2","Ed Walker46","Gerald Mosse","-","-","-",null,null,30,46,null,"-",null,"ginistrelli9-2",null,null,null,null,null,null,null,null,null,null,null,null,null,null,null,"wh-be-"]
[1,4,1,2,3,14,5,0,null,"Nette Rousse ",2,"8-11","Ralph Beckett68","Harry Bentley","-","-","-",null,null,30,68,null,"-",null,"nette rousse8-11",null,null,null,null,null,null,null,null,null,null,null,null,null,null,null,"wh-be-"]
[1,4,2,1,3,8,7,1,"8","Migration19 ",2,"9-2","David Menuisier38","Fran Berry","-",33,72,-19.857139587402301,6,28,38,null,"-",null,"migration9-2",null,null,null,null,null,"-",null,null,null,null,null,null,null,null,null,"wh-be-"]
[1,9,0,2,2,11,8,1,"7","Wise Ruler40 ",2,"9-2","Simon Crisford80","Andrea Atzeni","-",72,81,28.142860412597699,1,27,80,null,"-",null,"wise ruler9-2",null,null,null,null,null,"-",null,null,null,null,null,null,null,null,null,"wh-be-"]
[1,10,0,1,1,12,9,1,null,"Aussie Breeze ",2,"8-11","Roger Charlton69","Kieran Shoemark","-","-","-",null,null,30,69,null,"-",null,"aussie breeze8-11",null,null,null,null,null,null,null,null,null,null,null,null,null,null,null,"wh-be-"]
[1,10,0,1,1,3,1,0,null,"Dreamweaver ",2,"9-2","Ed Walker46","Liam Keniry","-","-","-",null,null,30,46,null,"-",null,"dreamweaver9-2",null,null,null,null,null,null,null,null,null,null,null,null,null,null,null,"wh-be-"]
[1,10,0,1,1,4,4,0,null,"Free Gift ",2,"9-2","David Evans29","Katherine Begley7","-","-","-",null,null,30,29,null,"-",null,"free gift9-2",null,null,null,null,null,null,null,null,null,null,null,null,null,null,null,"wh-be-"]
[1,13,0,0,0,6,10,1,null,"Kaloor ",2,"9-2","Brian Meehan36","Jim Crowley","-","-","-",null,null,30,36,null,"-",null,"kaloor9-2",null,null,null,null,null,null,null,null,null,null,null,null,null,null,null,"wh-be-"]
[1,13,0,0,0,7,13,1,null,"King Ademar ",2,"9-2","Martyn Meade25","James Doyle","-","-","-",null,null,30,25,null,"-",null,"king ademar9-2",null,null,null,null,null,null,null,null,null,null,null,null,null,null,null,"wh-be-"]
[]
[null,"1410 Salisbury RUK"]
[null,"PKF Francis Clark EBF Novice Stakes (Plus 10 Race) (Div II) 1m"]
[{"$f":"ISNUMBER(FIND(\"wh-\", AO7))","v":true},"Winnings:£5,111 Runners:14 Distance:1m Going:Good Channel:RUK",null,null,null,null,null,null,null,null,null,null,null,null,null,null,null,"OF Strategy",null,"              Recent Form ",null,"Speed",null,null,"                  Official Ratings",null,null,null,null,null,null,"             Life Win",null,"           Year Win",null,null,"         Trends",null,null,null,null,null,null,"Course Stats (Flat Only)",null,"                    Win %",null,null,null,"                   ROI %"]
[null,"Rank","R1","R2","Total","No","Dr","sig","Form","Horse","Age","Weight","Trainer (Run To Form)","Jockey (Allowance)","OR","TS","RPR","Rating","Rank","Horse","Tr'nr","Rank","Tdy","Fut","Horse - Weight",1,2,3,4,5,"LTO","High","Low","High ","Low","Wgt","Hc","Age","Tr'nr","Jock",null,null,null,"Horse","Sire","Trainer","Jockey","Average","Sire","Trainer","Jockey","Average"]
[1,1,6,5,11,14,5,0,"4","Gamba25 ",2,"8-11","Richard Hannon55","Tom Marquand","-","-",92,20.199996948242202,1,24,55,null,"-",null,"gamba8-11",null,null,null,null,null,"-",null,null,null,null,null,null,null,null,null,"wh-be-"]
[1,2,6,4,10,13,2,0,"24","Wave Walker11 ",2,"9-2","Sylvester Kirk57","Rossa Ryan3","-","-",87,15.1999969482422,2,16,57,null,"-",null,"wave walker9-2",null,null,null,null,"-","-",null,null,null,null,null,null,null,null,null,"wh-be-"]
[1,3,3,1,4,11,8,1,"7","Ned Mackay17 ",2,"9-2","Roger Charlton69","Kieran Shoemark","-",40,65,-6.8000030517578098,3,27,69,null,"-",null,"ned mackay9-2",null,null,null,null,null,"-",null,null,null,null,null,null,null,null,null,"wh-be-"]
[1,3,3,1,4,8,12,1,null,"Military Move ",2,"9-2","Roger Varian61","Andrea Atzeni","-","-","-",null,null,30,61,null,"-",null,"military move9-2",null,null,null,null,null,null,null,null,null,null,null,null,null,null,null,"wh-be-"]
[1,3,2,2,4,2,4,0,null,"Babbos Boy ",2,"9-2","Michael Bell71","James Doyle","-","-","-",null,null,30,71,null,"-",null,"babbos boy9-2",null,null,null,null,null,null,null,null,null,null,null,null,null,null,null,"wh-be-"]
[1,6,2,0,2,1,13,1,"8","Artistic Language27 ",2,"9-2","Brian Meehan36","Jim Crowley","-","-",62,-9.8000030517578107,4,28,36,null,"-",null,"artistic language9-2",null,null,null,null,null,"-",null,null,null,null,null,null,null,null,null,"wh-be-"]
[1,6,0,2,2,12,1,0,null,"Stormwave ",2,"9-2","Ralph Beckett68","Harry Bentley","-","-","-",null,null,30,68,null,"-",null,"stormwave9-2",null,null,null,null,null,null,null,null,null,null,null,null,null,null,null,"wh-be-"]
[1,6,2,0,2,6,11,1,"00","Fast Art11 ",2,"9-2","Seamus Durack60","Martin Harley","-","-",53,-18.800003051757798,5,30,60,null,"-",null,"fast art9-2",null,null,null,null,"-","-",null,null,null,null,null,null,null,null,null,"wh-be-"]
[1,9,0,1,1,9,7,1,null,"Mister Fawkes ",2,"9-2","Andrew Balding57","Jason Watson3","-","-","-",null,null,30,57,null,"-",null,"mister fawkes9-2",null,null,null,null,null,null,null,null,null,null,null,null,null,null,null,"wh-be-"]
[1,9,0,1,1,3,6,1,null,"Baryshnikov ",2,"9-2","Ed Walker46","Liam Keniry","-","-","-",null,null,30,46,null,"-",null,"baryshnikov9-2",null,null,null,null,null,null,null,null,null,null,null,null,null,null,null,"wh-be-"]
[1,9,0,1,1,5,14,1,null,"Escape The Rain ",2,"9-2","Charles Hills45","Robert Winston","-","-","-",null,null,30,45,null,"-",null,"escape the rain9-2",null,null,null,null,null,null,null,null,null,null,null,null,null,null,null,"wh-be-"]
[1,12,0,0,0,10,9,1,null,"Mystical Jadeite ",2,"9-2","Grace Harris50","J F Egan","-","-","-",null,null,30,50,null,"-",null,"mystical jadeite9-2",null,null,null,null,null,null,null,null,null,null,null,null,null,null,null,"wh-be-"]
[1,12,0,0,0,4,10,1,null,"Craneur ",2,"9-2","Harry Dunlop44","Hector Crouch","-","-","-",null,null,30,44,null,"-",null,"craneur9-2",null,null,null,null,null,null,null,null,null,null,null,null,null,null,null,"wh-be-"]
[1,12,0,0,0,7,3,0,null,"Global Express ",2,"9-2","Ed Dunlop54","Gerald Mosse","-","-","-",null,null,30,54,null,"-",null,"global express9-2",null,null,null,null,null,null,null,null,null,null,null,null,null,null,null,"wh-be-"]
[]
[null,"1445 Salisbury RUK"]
[null,"Radcliffe & Co EBF Novice Stakes (Plus 10 Race) (Div I) 6f213y"]
[{"$f":"ISNUMBER(FIND(\"wh-\", AO7))","v":true},"Winnings:£5,111 Runners:14 Distance:6f213y Going:Good Channel:RUK",null,null,null,null,null,null,null,null,null,null,null,null,null,null,null,"OF Strategy",null,"              Recent Form ",null,"Speed",null,null,"                  Official Ratings",null,null,null,null,null,null,"             Life Win",null,"           Year Win",null,null,"         Trends",null,null,null,null,null,null,"Course Stats (Flat Only)",null,"                    Win %",null,null,null,"                   ROI %"]
[null,"Rank","R1","R2","Total","No","Dr","sig","Form","Horse","Age","Weight","Trainer (Run To Form)","Jockey (Allowance)","OR","TS","RPR","Rating","Rank","Horse","Tr'nr","Rank","Tdy","Fut","Horse - Weight",1,2,3,4,5,"LTO","High","Low","High ","Low","Wgt","Hc","Age","Tr'nr","Jock",null,null,null,"Horse","Sire","Trainer","Jockey","Average","Sire","Trainer","Jockey","Average"]
[1,1,8,4,12,5,13,0,"74","Hawridge Storm28 ",2,"9-2","Rod Millman50","J F Egan","-",27,89,-11.766670227050801,4,21,50,null,"-",null,"hawridge storm9-2",null,null,null,null,"-","-",null,null,null,null,null,null,null,null,null,"wh-be-"]
[1,2,7,2,9,12,3,1,"15","Knightshayes17 ",2,"9-0","Paul George29","Rhiain Ingram5","-",56,87,15.233329772949199,2,16,29,null,"-",null,"knightshayes9-0",null,null,null,null,"-","-",null,null,null,null,null,null,null,null,null,"wh-be-"]
[1,3,5,2,7,8,6,1,"4","Monsieur Noir19 ",2,"9-2","Roger Varian61","Andrea Atzeni","-",65,83,20.233329772949201,1,24,61,null,"-",null,"monsieur noir9-2",null,null,null,null,null,"-",null,null,null,null,null,null,null,null,null,"wh-be-"]
[1,4,2,1,3,13,11,0,"7","Clubora19 ",2,"8-11","Richard Hannon55","Rossa Ryan3","-","-",53,-22.166670227050801,6,27,55,null,"-",null,"clubora8-11",null,null,null,null,null,"-",null,null,null,null,null,null,null,null,null,"wh-be-"]
[1,4,2,1,3,4,1,1,"7","Frederickbarbarosa14 ",2,"9-2","John Gosden67","Nicky Mackay","-",65,76,13.233329772949199,3,27,67,null,"-",null,"frederickbarbarosa9-2",null,null,null,null,null,"-",null,null,null,null,null,null,null,null,null,"wh-be-"]
[1,4,2,1,3,11,8,1,"0","Spokesman14 ",2,"9-2","Roger Varian61","Jack Mitchell","-",50,63,-14.766670227050801,5,30,61,null,"-",null,"spokesman9-2",null,null,null,null,null,"-",null,null,null,null,null,null,null,null,null,"wh-be-"]
[1,7,2,0,2,14,7,1,"0","Shadow Force9 ",2,"8-11","John Bridger22","Kieran ONeill","-","-","-",null,null,30,22,null,"-",null,"shadow force8-11",null,null,null,null,null,"-",null,null,null,null,null,null,null,null,null,"wh-be-"]
[1,7,0,2,2,2,5,1,null,"Copal ",2,"9-2","Ralph Beckett68","Harry Bentley","-","-","-",null,null,30,68,null,"-",null,"copal9-2",null,null,null,null,null,null,null,null,null,null,null,null,null,null,null,"wh-be-"]
[1,7,1,1,2,10,4,1,null,"Senza Limiti ",2,"9-2","William Haggas60","James Doyle","-","-","-",null,null,30,60,null,"-",null,"senza limiti9-2",null,null,null,null,null,null,null,null,null,null,null,null,null,null,null,"wh-be-"]
[1,10,0,1,1,7,9,1,null,"Millers Creek ",2,"9-2","Sir Mark Prescott Bt50","Ryan Tate","-","-","-",null,null,30,50,null,"-",null,"millers creek9-2",null,null,null,null,null,null,null,null,null,null,null,null,null,null,null,"wh-be-"]
[1,10,0,1,1,6,10,0,null,"Hermocrates ",2,"9-2","Richard Hannon55","Tom Marquand","-","-","-",null,null,30,55,null,"-",null,"hermocrates9-2",null,null,null,null,null,null,null,null,null,null,null,null,null,null,null,"wh-be-"]
[1,10,0,1,1,1,14,0,null,"Aiguillette ",2,"9-2","Gary Moore47","Hector Crouch","-","-","-",null,null,30,47,null,"-",null,"aiguillette9-2",null,null,null,null,null,null,null,null,null,null,null,null,null,null,null,"wh-be-"]
[1,10,0,1,1,9,12,0,null,"Nassam ",2,"9-2","Charles Hills45","Jim Crowley","-","-","-",null,null,30,45,null,"-",null,"nassam9-2",null,null,null,null,null,null,null,null,null,null,null,null,null,null,null,"wh-be-"]
[1,14,0,0,0,3,2,1,null,"Formally ",2,"9-2","Robert Eddery44","Martin Harley","-","-","-",null,null,30,44,null,"-",null,"formally9-2",null,null,null,null,null,null,null,null,null,null,null,null,null,null,null,"wh-be-"]
[]
[null,"1515 Salisbury RUK"]
[null,"Radcliffe & Co EBF Novice Stakes (Plus 10 Race) (Div II) 6f213y"]
[{"$f":"ISNUMBER(FIND(\"wh-\", AO7))","v":true},"Winnings:£5,111 Runners:14 Distance:6f213y Going:Good Channel:RUK",null,null,null,null,null,null,null,null,null,null,null,null,null,null,null,"OF Strategy",null,"              Recent Form ",null,"Speed",null,null,"                  Official Ratings",null,null,null,null,null,null,"             Life Win",null,"           Year Win",null,null,"         Trends",null,null,null,null,null,null,"Course Stats (Flat Only)",null,"                    Win %",null,null,null,"                   ROI %"]
[null,"Rank","R1","R2","Total","No","Dr","sig","Form","Horse","Age","Weight","Trainer (Run To Form)","Jockey (Allowance)","OR","TS","RPR","Rating","Rank","Horse","Tr'nr","Rank","Tdy","Fut","Horse - Weight",1,2,3,4,5,"LTO","High","Low","High ","Low","Wgt","Hc","Age","Tr'nr","Jock",null,null,null,"Horse","Sire","Trainer","Jockey","Average","Sire","Trainer","Jockey","Average"]
[1,1,9,4,13,13,7,1,"2","Clara Peeters19 ",2,"8-11","Gary Moore47","Jason Watson3","-",50,84,21.199996948242202,2,22,47,null,"-",null,"clara peeters8-11",null,null,null,null,null,"-",null,null,null,null,null,null,null,null,null,"wh-be-"]
[1,2,3,1,4,9,3,1,null,"Jahbath ",2,"9-2","William Haggas60","Jim Crowley","-","-","-",null,null,30,60,null,"-",null,"jahbath9-2",null,null,null,null,null,null,null,null,null,null,null,null,null,null,null,"wh-be-"]
[1,2,3,1,4,6,14,0,"6","George Junior20 ",2,"9-2","Richard Hannon55","Tom Marquand","-","-",65,3.1999969482421902,3,26,55,null,"-",null,"george junior9-2",null,null,null,null,null,"-",null,null,null,null,null,null,null,null,null,"wh-be-"]
[1,4,2,1,3,3,9,1,"6","Denis The Diva49 ",2,"9-2","Marcus Tregoning56","Kieran Shoemark","-",52,83,22.199996948242202,1,26,56,null,"-",null,"denis the diva9-2",null,null,null,null,null,"-",null,null,null,null,null,null,null,null,null,"wh-be-"]
[1,4,2,1,3,4,11,0,"0","Don Diego Vega11 ",2,"9-2","Daniel Kubler75","George Downing","-","-",20,-41.800003051757798,5,30,75,null,"-",null,"don diego vega9-2",null,null,null,null,null,"-",null,null,null,null,null,null,null,null,null,"wh-be-"]
[1,6,2,0,2,1,12,0,"8","Attys Edge20 ",2,"9-2","Christopher Mason50","Finley Marsh5","-","-",57,-4.8000030517578098,4,28,50,null,"-",null,"attys edge9-2",null,null,null,null,null,"-",null,null,null,null,null,null,null,null,null,"wh-be-"]
[1,6,1,1,2,11,6,1,null,"Time Immemorial ",2,"9-2","Roger Varian61","Andrea Atzeni","-","-","-",null,null,30,61,null,"-",null,"time immemorial9-2",null,null,null,null,null,null,null,null,null,null,null,null,null,null,null,"wh-be-"]
[1,6,1,1,2,8,5,1,null,"Jack DOr ",2,"9-2","Ed Walker46","Liam Keniry","-","-","-",null,null,30,46,null,"-",null,"jack dor9-2",null,null,null,null,null,null,null,null,null,null,null,null,null,null,null,"wh-be-"]
[1,9,0,1,1,2,1,1,null,"Aweedram ",2,"9-2","Alan King61","Martin Harley","-","-","-",null,null,30,61,null,"-",null,"aweedram9-2",null,null,null,null,null,null,null,null,null,null,null,null,null,null,null,"wh-be-"]
[1,9,0,1,1,5,4,1,null,"Drumshanbo Destiny ",2,"9-2","Gary Moore47","Robert Winston","-","-","-",null,null,30,47,null,"-",null,"drumshanbo destiny9-2",null,null,null,null,null,null,null,null,null,null,null,null,null,null,null,"wh-be-"]
[1,9,0,1,1,10,2,1,null,"Percys Prince ",2,"9-2","Sir Mark Prescott Bt50","Ryan Tate","-","-","-",null,null,30,50,null,"-",null,"percys prince9-2",null,null,null,null,null,null,null,null,null,null,null,null,null,null,null,"wh-be-"]
[1,9,0,1,1,12,10,0,null,"Bonny Blue ",2,"8-11","Rod Millman50","J F Egan","-","-","-",null,null,30,50,null,"-",null,"bonny blue8-11",null,null,null,null,null,null,null,null,null,null,null,null,null,null,null,"wh-be-"]
[1,13,0,0,0,14,13,0,null,"Little Anxious ",2,"8-11","Grace Harris50","Cameron Noble5","-","-","-",null,null,30,50,null,"-",null,"little anxious8-11",null,null,null,null,null,null,null,null,null,null,null,null,null,null,null,"wh-be-"]
[1,13,0,0,0,7,8,1,null,"Global Acclamation ",2,"9-2","Ed Dunlop54","Gerald Mosse","-","-","-",null,null,30,54,null,"-",null,"global acclamation9-2",null,null,null,null,null,null,null,null,null,null,null,null,null,null,null,"wh-be-"]
[]
[null,"1550 Salisbury RUK"]
[null,"Myddelton & Major Conditions Stakes (Plus 10 Race) 6f"]
[{"$f":"ISNUMBER(FIND(\"wh-\", AO7))","v":true},"Winnings:£9,704 Runners:6 Distance:6f Going:Good Channel:RUK",null,null,null,null,null,null,null,null,null,null,null,null,null,null,null,"OF Strategy",null,"              Recent Form ",null,"Speed",null,null,"                  Official Ratings",null,null,null,null,null,null,"             Life Win",null,"           Year Win",null,null,"         Trends",null,null,null,null,null,null,"Course Stats (Flat Only)",null,"                    Win %",null,null,null,"                   ROI %"]
[null,"Rank","R1","R2","Total","No","Dr","sig","Form","Horse","Age","Weight","Trainer (Run To Form)","Jockey (Allowance)","OR","TS","RPR","Rating","Rank","Horse","Tr'nr","Rank","Tdy","Fut","Horse - Weight",1,2,3,4,5,"LTO","High","Low","High ","Low","Wgt","Hc","Age","Tr'nr","Jock",null,null,null,"Horse","Sire","Trainer","Jockey","Average","Sire","Trainer","Jockey","Average"]
[1,1,10,5,15,3,2,0,"12","Naughty Rascal16 ",2,"9-0","Richard Hannon55","Tom Marquand","-","-",103,4.0000122070312596,4,13,55,null,"-",null,"naughty rascal9-0",null,null,null,null,"-","-",null,null,null,null,null,null,null,null,null,"wh-be-"]
[1,1,9,6,15,6,6,0,"183473","Chynna3 ",2,"8-11","Mick Channon49","Andrea Atzeni",95,86,113,30.9500122070312,1,14,49,null,95,null,"chynna8-11","-",79,78,"-",95,95,null,null,null,null,null,null,null,null,null,"wh-be-"]
[1,1,8,7,15,2,3,0,"6241","Cloak And Dagger26 ",2,"9-0","Clive Cox58","James Doyle",83,88,97,4.95001220703125,3,7,58,null,83,null,"cloak and dagger9-0",null,null,"-","-","-",82,null,null,null,null,null,null,null,null,null,"wh-be-"]
[1,4,5,8,13,1,4,0,"21931","Autumn Splendour38 ",2,"9-6","James Tate83","Jamie Spencer",88,64,93,-18.0499877929688,5,13,83,null,88,null,"autumn splendour9-6",null,"-","-","-",82,82,82,82,82,82,null,null,null,null,null,"wh-be-"]
[1,5,3,7,10,4,1,0,"597333","Tin Hat32 ",2,"9-0","Eve Johnson Houghton21","Charles Bishop",87,92,108,23.9500122070312,2,9,21,null,87,null,"tin hat9-0","-",94,94,92,92,90,null,null,null,null,null,null,null,null,null,"wh-be-"]
[1,6,3,6,9,5,5,0,"03","Tru Grit5 ",2,"8-12","Peter Chapple-Hyam50","Jack Mitchell","-",49,80,-45.7999877929688,6,23,50,null,"-",null,"tru grit8-12",null,null,null,null,"-","-",null,null,null,null,null,null,null,null,null,"wh-be-"]
[]
[null,"1620 Salisbury RUK"]
[null,"Booker Ltd Handicap 6f"]
[{"$f":"ISNUMBER(FIND(\"wh-\", AO7))","v":true},"Winnings:£5,757 Runners:11 Distance:6f Going:Good Channel:RUK",null,null,null,null,null,null,null,null,null,null,null,null,null,null,null,"OF Strategy",null,"              Recent Form ",null,"Speed",null,null,"                  Official Ratings",null,null,null,null,null,null,"             Life Win",null,"           Year Win",null,null,"         Trends",null,null,null,null,null,null,"Course Stats (Flat Only)",null,"                    Win %",null,null,null,"                   ROI %"]
[null,"Rank","R1","R2","Total","No","Dr","sig","Form","Horse","Age","Weight","Trainer (Run To Form)","Jockey (Allowance)","OR","TS","RPR","Rating","Rank","Horse","Tr'nr","Rank","Tdy","Fut","Horse - Weight",1,2,3,4,5,"LTO","High","Low","High ","Low","Wgt","Hc","Age","Tr'nr","Jock",null,null,null,"Horse","Sire","Trainer","Jockey","Average","Sire","Trainer","Jockey","Average"]
[1,1,14,7,21,5,5,0,"511521","Beyond Equal20 ",3,"9-4","Stuart Kittow22","Fran Berry",83,87,99,8.79998779296875,3,8,22,null,83,null,"beyond equal9-4",68,66,72,81,81,81,81,66,81,66,null,null,null,null,null,"wh-be-"]
[1,2,12,8,20,2,1,1,"209-02","Smokey Lane20 ",4,"9-7","Roger Charlton69","Kieran Shoemark",85,78,97,-0.20001220703125,6,21,69,null,85,null,"smokey lane9-7",94,92,92,90,88,85,92,92,null,null,null,null,null,null,null,"wh-be-"]
[1,3,10,8,18,1,8,1,"113300","Mujassam25 b",6,"9-8","David OMeara40","Adam Kirby",86,88,101,14.7999877929688,1,23,40,null,86,null,"mujassam9-8",82,85,91,90,90,88,94,76,85,76,null,null,null,null,null,"wh-be-"]
[1,3,10,8,18,6,3,1,"361824","Blackheath18 ",3,"9-3","Ed Walker46","Liam Keniry",82,90,96,7.79998779296875,4,14,46,null,82,null,"blackheath9-3",80,79,77,81,81,82,77,77,77,77,null,null,null,null,null,"wh-be-"]
[1,5,8,8,16,4,10,1,"200124","Lightning Charlie13 ",6,"9-6","Amanda Perrett32","Jason Watson3",84,91,98,12.7999877929688,2,7,32,null,84,null,"lightning charlie9-6",81,82,81,80,84,85,86,80,80,80,null,null,null,null,null,"wh-be-"]
[1,6,7,8,15,7,2,1,"111424","Sweet Pursuit27 ",4,"9-2","Rod Millman50","Finley Marsh5",80,75,97,-8.20001220703125,7,10,50,null,80,null,"sweet pursuit9-2",62,68,73,79,80,80,73,50,73,62,null,null,null,null,null,"wh-be-"]
[1,6,7,8,15,9,9,1,"794137","Sir Roderic7 p",5,"8-9","Rod Millman50","Andrea Atzeni",73,77,97,-13.2000122070312,10,11,50,null,73,null,"sir roderic8-9",71,70,70,68,74,75,90,67,68,68,null,null,null,null,null,"wh-be-"]
[1,6,8,7,15,11,6,0,"880270","Sir Billy Wright20 p1",7,"8-7","David Evans29","Gina Mangan7",71,79,99,-11.2000122070312,8,19,29,null,71,-1,"sir billy wright8-7",83,80,77,73,74,73,83,74,null,null,null,null,null,null,null,"wh-be-"]
[1,9,5,7,12,8,7,0,"/76516","Grey Galleon33 ",4,"8-13","Clive Cox58","James Doyle",77,88,96,0.79998779296875,5,12,58,null,77,null,"grey galleon8-13",81,77,73,71,70,70,70,70,70,70,null,null,null,null,null,"wh-be-"]
[1,9,5,7,12,10,4,1,"521236","Anonymous John30 ",6,"8-8","Dominic Ffrench Davis80","J F Egan",72,79,97,-12.2000122070312,9,11,80,null,72,null,"anonymous john8-8",64,64,69,72,72,72,85,74,null,null,null,null,null,null,null,"wh-be-"]
[1,11,4,3,7,3,11,1,"114-","Mutanaaseq417 t1",3,"9-6","Richard Hannon55","Jim Crowley",85,47,"-",null,null,6,55,null,85,null,"mutanaaseq9-6",null,null,null,"-","-",86,null,null,null,null,null,null,null,null,null,"wh-be-"]
[]
[null,"1655 Salisbury RUK"]
[null,"Weatherbys General Stud Book Handicap 6f"]
[{"$f":"ISNUMBER(FIND(\"wh-\", AO7))","v":true},"Winnings:£12,938 Runners:8 Distance:6f Going:Good Channel:RUK",null,null,null,null,null,null,null,null,null,null,null,null,null,null,null,"OF Strategy",null,"              Recent Form ",null,"Speed",null,null,"                  Official Ratings",null,null,null,null,null,null,"             Life Win",null,"           Year Win",null,null,"         Trends",null,null,null,null,null,null,"Course Stats (Flat Only)",null,"                    Win %",null,null,null,"                   ROI %"]
[null,"Rank","R1","R2","Total","No","Dr","sig","Form","Horse","Age","Weight","Trainer (Run To Form)","Jockey (Allowance)","OR","TS","RPR","Rating","Rank","Horse","Tr'nr","Rank","Tdy","Fut","Horse - Weight",1,2,3,4,5,"LTO","High","Low","High ","Low","Wgt","Hc","Age","Tr'nr","Jock",null,null,null,"Horse","Sire","Trainer","Jockey","Average","Sire","Trainer","Jockey","Average"]
[1,1,9,8,17,3,2,0,"727060","Pettochside32 ",9,"9-3","John Bridger22","Kieran ONeill",91,103,111,17,1,26,22,null,91,null,"pettochside9-3",95,95,95,95,94,94,91,61,91,85,null,null,null,null,null,"wh-be-"]
[1,1,10,7,17,5,1,0,"721031","Hart Stopper26 t",4,"9-0","Stuart Williams48","Jamie Spencer",88,96,108,4,3,14,48,null,88,null,"hart stopper9-0",82,81,83,85,84,84,84,70,84,83,null,null,null,null,null,"wh-be-"]
[1,1,9,8,17,2,7,0,"621210","Rogue46 ",3,"9-4","Richard Hannon55","Thore Hammer Hansen7",93,87,105,-3,5,13,55,null,93,null,"rogue9-4",83,80,83,88,88,94,88,79,88,83,null,null,null,null,null,"wh-be-"]
[1,4,9,7,16,7,8,0,"/02000","Louie De Palma11 ",6,"9-0","Clive Cox58","James Doyle",88,75,112,-13,8,30,58,null,88,null,"louie de palma9-0","-",92,92,92,91,91,79,79,null,null,null,null,null,null,null,"wh-be-"]
[1,5,8,7,15,1,5,0,"813100","Summerghand11 ",4,"9-10","David OMeara40","Harry Bentley",98,84,109,3,4,21,40,null,98,null,"summerghand9-10",95,94,95,95,100,100,95,73,95,84,null,null,null,null,null,"wh-be-"]
[1,6,8,6,14,8,4,0,"332352","Bungee Jump18 ",3,"8-12","Grace Harris50","Cameron Noble5",87,89,107,-5,6,10,50,null,87,null,"bungee jump8-12",86,86,86,88,88,87,80,80,80,80,null,null,null,null,null,"wh-be-"]
[1,7,6,7,13,6,6,0,"472964","Helvetian9 ",3,"9-0","Mick Channon49","Andrea Atzeni",89,100,107,8,2,19,49,null,89,null,"helvetian9-0",93,92,91,91,90,89,null,null,null,null,null,null,null,null,null,"wh-be-"]
[1,8,6,6,12,4,3,0,"548022","Charles Molson11 ",7,"9-0","Patrick Chamings43","Daniel Muscutt",88,81,108,-11,7,14,43,null,88,null,"charles molson9-0",91,90,90,89,96,97,87,87,null,null,null,null,null,null,null,"wh-be-"]
[]
[null,"1725 Salisbury RUK"]
[null,"Quantuma \"Season Finale\" Handicap 5f"]
[{"$f":"ISNUMBER(FIND(\"wh-\", AO7))","v":true},"Winnings:£5,757 Runners:9 Distance:5f Going:Good Channel:RUK",null,null,null,null,null,null,null,null,null,null,null,null,null,null,null,"OF Strategy",null,"              Recent Form ",null,"Speed",null,null,"                  Official Ratings",null,null,null,null,null,null,"             Life Win",null,"           Year Win",null,null,"         Trends",null,null,null,null,null,null,"Course Stats (Flat Only)",null,"                    Win %",null,null,null,"                   ROI %"]
[null,"Rank","R1","R2","Total","No","Dr","sig","Form","Horse","Age","Weight","Trainer (Run To Form)","Jockey (Allowance)","OR","TS","RPR","Rating","Rank","Horse","Tr'nr","Rank","Tdy","Fut","Horse - Weight",1,2,3,4,5,"LTO","High","Low","High ","Low","Wgt","Hc","Age","Tr'nr","Jock",null,null,null,"Horse","Sire","Trainer","Jockey","Average","Sire","Trainer","Jockey","Average"]
[1,1,13,9,22,3,9,1,"412040","Rio Ronaldo20 ",6,"9-6","Mike Murphy100","Andrea Atzeni",84,86,101,9.22222900390625,2,24,100,null,84,null,"rio ronaldo9-6",78,78,84,87,86,85,81,76,78,78,null,null,null,null,null,"wh-be-"]
[1,2,12,8,20,1,6,0,"611207","Waseem Faris25 ",9,"9-8","Ken Cunningham-Brown","Finley Marsh5",86,82,99,5.22222900390625,3,19,null,null,86,null,"waseem faris9-8",75,73,80,86,89,88,84,73,80,73,null,null,null,null,null,"wh-be-"]
[1,3,9,8,17,8,3,1,"412213","Three Little Birds14 ",3,"8-11","Sylvester Kirk57","Jason Watson3",75,75,95,-16.7777709960938,9,6,57,null,75,null,"three little birds8-11",63,63,69,69,72,75,72,72,72,72,null,null,null,null,null,"wh-be-"]
[1,3,10,7,17,9,7,0,"092224","Madame Bounty25 ",4,"8-9","Ed Walker46","Liam Keniry",73,89,98,-1.77777099609375,5,8,46,null,73,null,"madame bounty8-9",77,75,72,73,74,76,72,72,null,null,null,null,null,null,null,"wh-be-"]
[1,5,8,8,16,6,5,0,"151553","Kodiac Express15 ",3,"9-0","Mike Murphy100","Cameron Noble5",78,84,96,-3.77777099609375,6,13,100,null,78,null,"kodiac express9-0",75,77,77,80,81,79,77,71,77,71,null,null,null,null,null,"wh-be-"]
[1,6,8,7,15,2,4,0,"-32518","Awesome18 p",3,"9-7","Clive Cox58","Adam Kirby",85,84,96,3.22222900390625,4,14,58,null,85,null,"awesome9-7",75,82,82,82,82,85,82,82,82,82,null,null,null,null,null,"wh-be-"]
[1,7,4,8,12,7,2,1,"-44747","May Remain32 ",3,"8-13","Paul Cole71","Rossa Ryan3",77,78,99,-7.77777099609375,8,18,71,null,77,null,"may remain8-13",86,85,83,82,79,79,null,null,null,null,null,null,null,null,null,"wh-be-"]
[1,8,4,6,10,5,10,1,"850576","Equimou9 ",4,"9-2","Robert Eddery44","Martin Harley",80,106,94,18.2222290039062,1,18,44,null,80,null,"equimou9-2",93,90,86,83,83,81,92,92,null,null,null,null,null,null,null,"wh-be-"]
[1,9,2,6,8,4,8,1,"00-905","Blaine7 b",8,"9-2","Brian Barr43","Rhiain Ingram5",80,81,95,-5.77777099609375,7,24,43,null,80,null,"blaine9-2",97,95,92,89,85,80,100,87,null,null,null,null,null,null,null,"wh-be-"]

{"sheet":"Races","index":1,"n_rows":609,"n_cols":52,"rows_kept":609,"cut":false,"hidden":false,"merged":[]}
[null,"NWRacing - Ratings & Data Analysis"]
[]
[null,"1330 Nottingham RUK"]
[null,"Irish EBF DB Slip Anchor Maiden Stakes (Plus 10 Race) 5f8y"]
[{"$f":"ISNUMBER(FIND(\"wh-\", AO7))","v":true},"Winnings:£5,563 Runners:13 Distance:5f8y Going:Good Channel:RUK",null,null,null,null,null,null,null,null,null,null,null,null,null,null,null,"OF Strategy",null,"              Recent Form ",null,"Speed",null,null,"                  Official Ratings",null,null,null,null,null,null,"             Life Win",null,"           Year Win",null,null,"         Trends",null,null,null,null,null,null,"Course Stats (Flat Only)",null,"                    Win %",null,null,null,"                   ROI %"]
[null,"Rank","R1","R2","Total","No","Dr","sig","Form","Horse","Age","Weight","Trainer (Run To Form)","Jockey (Allowance)","OR","TS","RPR","Rating","Rank","Horse","Tr'nr","Rank","Tdy","Fut","Horse - Weight",1,2,3,4,5,"LTO","High","Low","High ","Low","Wgt","Hc","Age","Tr'nr","Jock",null,null,null,"Horse","Sire","Trainer","Jockey","Average","Sire","Trainer","Jockey","Average"]
[1,1,7,7,14,14,10,1,"535232","Summer Blossom14 b",2,"9-0","Archie Watson61","Daniel Tudhope",73,88,91,40,1,7,61,null,73,null,"summer blossom9-0","-","-",77,76,76,76,null,null,null,null,null,null,null,null,null,"wh-be-"]
[1,2,6,6,12,7,4,1,"22","Ustath60 ",2,"9-5","Owen Burrows55","Dane ONeill","-",81,88,31,2,14,55,null,"-",null,"ustath9-5",null,null,null,null,"-","-",null,null,null,null,null,null,null,null,null,"wh-be-"]
[1,3,5,4,9,10,6,0,"38","Indigo Angel27 ",2,"9-0","Richard Hannon55","Silvestre De Sousa","-",47,90,-1,7,21,55,null,"-",null,"indigo angel9-0",null,null,null,null,"-","-",null,null,null,null,null,null,null,null,null,"wh-be-"]
[1,3,5,4,9,6,14,1,"20","True Hero12 ",2,"9-5","William Haggas60","Oisin Murphy","-",58,85,5,5,22,60,null,"-",null,"true hero9-5",null,null,null,null,"-","-",null,null,null,null,null,null,null,null,null,"wh-be-"]
[1,3,3,6,9,8,12,1,"9723","Antonia Clara52 ",2,"9-0","Stuart Williams48","Richard Kingscote",75,61,88,12,3,12,48,null,75,null,"antonia clara9-0",null,null,"-","-","-",73,null,null,null,null,null,null,null,null,null,"wh-be-"]
[1,6,3,5,8,12,13,1,"83","Reticent Angel51 ",2,"9-0","Clive Cox58","William Buick","-",63,82,7,4,21,58,null,"-",null,"reticent angel9-0",null,null,null,null,"-","-",null,null,null,null,null,null,null,null,null,"wh-be-"]
[1,7,3,4,7,11,9,0,"3","Lille19 ",2,"9-0","Richard Hughes71","Shane Kelly","-",59,79,0,6,23,71,null,"-",null,"lille9-0",null,null,null,null,null,"-",null,null,null,null,null,null,null,null,null,"wh-be-"]
[1,8,2,1,3,1,1,1,"0","Clipsham Tiger19 ",2,"9-5","Michael Appleby37","Alistair Rawlinson","-","-","-",null,null,30,37,null,"-",null,"clipsham tiger9-5",null,null,null,null,null,"-",null,null,null,null,null,null,null,null,null,"wh-be-"]
[1,9,2,0,2,4,7,0,"00","Kyat Khan19 ",2,"9-5","Harry Dunlop44","Stevie Donohoe","-","-",24,-50.5,10,30,44,null,"-",null,"kyat khan9-5",null,null,null,null,"-","-",null,null,null,null,null,null,null,null,null,"wh-be-"]
[1,9,0,2,2,13,3,1,"98","Spring Holly84 ",2,"9-0","Robert Cowell65","Eoin Walsh3","-",51,59,-28,9,27,65,null,"-",null,"spring holly9-0",null,null,null,null,"-","-",null,null,null,null,null,null,null,null,null,"wh-be-"]
[1,11,0,1,1,3,2,1,null,"Invincible Larne ",2,"9-5","Mick Quinn40","Franny Norton","-","-","-",null,null,30,40,null,"-",null,"invincible larne9-5",null,null,null,null,null,null,null,null,null,null,null,null,null,null,null,"wh-be-"]
[1,11,0,1,1,2,11,1,null,"Exalted Angel ",2,"9-5","K R Burke48","Clifford Lee3","-","-","-",null,null,30,48,null,"-",null,"exalted angel9-5",null,null,null,null,null,null,null,null,null,null,null,null,null,null,null,"wh-be-"]
[1,13,0,0,0,9,8,0,"7","Atwaar113 ",2,"9-0","Ed Dunlop54","David Egan","-","-",59,-15.5,8,27,54,null,"-",null,"atwaar9-0",null,null,null,null,null,"-",null,null,null,null,null,null,null,null,null,"wh-be-"]
[]
[null,"1340 Salisbury RUK"]
[null,"PKF Francis Clark EBF Novice Stakes (Plus 10 Race) (Div I) 1m"]
[{"$f":"ISNUMBER(FIND(\"wh-\", AO7))","v":true},"Winnings:£5,111 Runners:14 Distance:1m Going:Good Channel:RUK",null,null,null,null,null,null,null,null,null,null,null,null,null,null,null,"OF Strategy",null,"              Recent Form ",null,"Speed",null,null,"                  Official Ratings",null,null,null,null,null,null,"             Life Win",null,"           Year Win",null,null,"         Trends",null,null,null,null,null,null,"Course Stats (Flat Only)",null,"                    Win %",null,null,null,"                   ROI %"]
[null,"Rank","R1","R2","Total","No","Dr","sig","Form","Horse","Age","Weight","Trainer (Run To Form)","Jockey (Allowance)","OR","TS","RPR","Rating","Rank","Horse","Tr'nr","Rank","Tdy","Fut","Horse - Weight",1,2,3,4,5,"LTO","High","Low","High ","Low","Wgt","Hc","Age","Tr'nr","Jock",null,null,null,"Horse","Sire","Trainer","Jockey","Average","Sire","Trainer","Jockey","Average"]
[1,1,10,6,16,2,14,1,"42","Dawn Treader19 ",2,"9-2","Richard Hannon55","Tom Marquand","-",57,90,22.142860412597699,2,16,55,null,"-",null,"dawn treader9-2",null,null,null,null,"-","-",null,null,null,null,null,null,null,null,null,"wh-be-"]
[1,2,4,4,8,9,12,1,"73","Murray River13 ",2,"9-2","John Gosden67","Kieran ONeill","-",42,83,0.142860412597656,4,20,67,null,"-",null,"murray river9-2",null,null,null,null,"-","-",null,null,null,null,null,null,null,null,null,"wh-be-"]
[1,3,5,2,7,10,3,0,"3","Purdeys Gift22 ",2,"9-2","Andrew Balding57","Jason Watson3","-",49,88,12.142860412597701,3,23,57,null,"-",null,"purdeys gift9-2",null,null,null,null,null,"-",null,null,null,null,null,null,null,null,null,"wh-be-"]
[1,4,2,1,3,13,11,1,"5","Mongolia19 ",2,"8-11","Richard Hannon55","Rossa Ryan3","-",22,63,-39.857139587402301,7,25,55,null,"-",null,"mongolia8-11",null,null,null,null,null,"-",null,null,null,null,null,null,null,null,null,"wh-be-"]
[1,4,2,1,3,1,6,1,"74","Avenue Foch19 ",2,"9-2","Luca Cumani67","Jamie Spencer","-",45,77,-2.8571395874023402,5,21,67,null,"-",null,"avenue foch9-2",null,null,null,null,"-","-",null,null,null,null,null,null,null,null,null,"wh-be-"]
[1,4,2,1,3,5,2,0,null,"Ginistrelli ",2,"9-2","Ed Walker46","Gerald Mosse","-","-","-",null,null,30,46,null,"-",null,"ginistrelli9-2",null,null,null,null,null,null,null,null,null,null,null,null,null,null,null,"wh-be-"]
[1,4,1,2,3,14,5,0,null,"Nette Rousse ",2,"8-11","Ralph Beckett68","Harry Bentley","-","-","-",null,null,30,68,null,"-",null,"nette rousse8-11",null,null,null,null,null,null,null,null,null,null,null,null,null,null,null,"wh-be-"]
[1,4,2,1,3,8,7,1,"8","Migration19 ",2,"9-2","David Menuisier38","Fran Berry","-",33,72,-19.857139587402301,6,28,38,null,"-",null,"migration9-2",null,null,null,null,null,"-",null,null,null,null,null,null,null,null,null,"wh-be-"]
[1,9,0,2,2,11,8,1,"7","Wise Ruler40 ",2,"9-2","Simon Crisford80","Andrea Atzeni","-",72,81,28.142860412597699,1,27,80,null,"-",null,"wise ruler9-2",null,null,null,null,null,"-",null,null,null,null,null,null,null,null,null,"wh-be-"]
[1,10,0,1,1,12,9,1,null,"Aussie Breeze ",2,"8-11","Roger Charlton69","Kieran Shoemark","-","-","-",null,null,30,69,null,"-",null,"aussie breeze8-11",null,null,null,null,null,null,null,null,null,null,null,null,null,null,null,"wh-be-"]
[1,10,0,1,1,3,1,0,null,"Dreamweaver ",2,"9-2","Ed Walker46","Liam Keniry","-","-","-",null,null,30,46,null,"-",null,"dreamweaver9-2",null,null,null,null,null,null,null,null,null,null,null,null,null,null,null,"wh-be-"]
[1,10,0,1,1,4,4,0,null,"Free Gift ",2,"9-2","David Evans29","Katherine Begley7","-","-","-",null,null,30,29,null,"-",null,"free gift9-2",null,null,null,null,null,null,null,null,null,null,null,null,null,null,null,"wh-be-"]
[1,13,0,0,0,6,10,1,null,"Kaloor ",2,"9-2","Brian Meehan36","Jim Crowley","-","-","-",null,null,30,36,null,"-",null,"kaloor9-2",null,null,null,null,null,null,null,null,null,null,null,null,null,null,null,"wh-be-"]
[1,13,0,0,0,7,13,1,null,"King Ademar ",2,"9-2","Martyn Meade25","James Doyle","-","-","-",null,null,30,25,null,"-",null,"king ademar9-2",null,null,null,null,null,null,null,null,null,null,null,null,null,null,null,"wh-be-"]
[]
[null,"1400 Nottingham RUK"]
[null,"EBF Batter Boys Mile Oh So Sharp Maiden Fillies Stakes (Plus 10 Race) (Div I) 1m75y"]
[{"$f":"ISNUMBER(FIND(\"wh-\", AO7))","v":true},"Winnings:£5,563 Runners:11 Distance:1m75y Going:Good Channel:RUK",null,null,null,null,null,null,null,null,null,null,null,null,null,null,null,"OF Strategy",null,"              Recent Form ",null,"Speed",null,null,"                  Official Ratings",null,null,null,null,null,null,"             Life Win",null,"           Year Win",null,null,"         Trends",null,null,null,null,null,null,"Course Stats (Flat Only)",null,"                    Win %",null,null,null,"                   ROI %"]
[null,"Rank","R1","R2","Total","No","Dr","sig","Form","Horse","Age","Weight","Trainer (Run To Form)","Jockey (Allowance)","OR","TS","RPR","Rating","Rank","Horse","Tr'nr","Rank","Tdy","Fut","Horse - Weight",1,2,3,4,5,"LTO","High","Low","High ","Low","Wgt","Hc","Age","Tr'nr","Jock",null,null,null,"Horse","Sire","Trainer","Jockey","Average","Sire","Trainer","Jockey","Average"]
[1,1,8,7,15,1,8,0,"4","Ambling11 h",2,"9-0","John Gosden68","Robert Havlin","-",86,90,38.800003051757798,1,24,68,null,"-",null,"ambling9-0",null,null,null,null,null,"-",null,null,null,null,null,null,null,null,null,"wh-be-"]
[1,2,6,4,10,12,7,0,"5","Vivid Diamond11 ",2,"9-0","Mark Johnston52","Silvestre De Sousa","-",84,89,35.800003051757798,2,25,52,null,"-",null,"vivid diamond9-0",null,null,null,null,null,"-",null,null,null,null,null,null,null,null,null,"wh-be-"]
[1,3,3,1,4,8,11,0,"6","Padmavati15 ",2,"9-0","Ed Walker46","William Buick","-","-",77,8.8000030517578107,3,26,46,null,"-",null,"padmavati9-0",null,null,null,null,null,"-",null,null,null,null,null,null,null,null,null,"wh-be-"]
[1,4,2,1,3,4,2,1,"60","Cuban Sun14 ",2,"9-0","James Given50","James Sullivan","-","-",30,-38.199996948242202,4,26,50,null,"-",null,"cuban sun9-0",null,null,null,null,"-","-",null,null,null,null,null,null,null,null,null,"wh-be-"]
[1,5,0,2,2,6,4,1,null,"Fast Strike ",2,"9-0","David Lanigan57","Stevie Donohoe","-","-","-",null,null,30,57,null,"-",null,"fast strike9-0",null,null,null,null,null,null,null,null,null,null,null,null,null,null,null,"wh-be-"]
[1,5,0,2,2,5,9,0,null,"Fancy Dress ",2,"9-0","Ralph Beckett66","Richard Kingscote","-","-","-",null,null,30,66,null,"-",null,"fancy dress9-0",null,null,null,null,null,null,null,null,null,null,null,null,null,null,null,"wh-be-"]
[1,5,2,0,2,9,3,1,"0","Riverina27 ",2,"9-0","Harry Dunlop44","Shane Kelly","-",37,55,-45.199996948242202,5,30,44,null,"-",null,"riverina9-0",null,null,null,null,null,"-",null,null,null,null,null,null,null,null,null,"wh-be-"]
[1,5,1,1,2,10,12,0,null,"Shagalla ",2,"9-0","Roger Varian60","David Egan","-","-","-",null,null,30,60,null,"-",null,"shagalla9-0",null,null,null,null,null,null,null,null,null,null,null,null,null,null,null,"wh-be-"]
[1,9,0,1,1,11,6,0,null,"Tasman Sea ",2,"9-0","Archie Watson59","Oisin Murphy","-","-","-",null,null,30,59,null,"-",null,"tasman sea9-0",null,null,null,null,null,null,null,null,null,null,null,null,null,null,null,"wh-be-"]
[1,9,0,1,1,7,10,0,null,"Noble Queen ",2,"9-0","Andrew Balding57","Rob Hornby","-","-","-",null,null,30,57,null,"-",null,"noble queen9-0",null,null,null,null,null,null,null,null,null,null,null,null,null,null,null,"wh-be-"]
[1,9,0,1,1,2,5,0,null,"Birdcage Walk ",2,"9-0","Hugo Palmer56","Josephine Gordon","-","-","-",null,null,30,56,null,"-",null,"birdcage walk9-0",null,null,null,null,null,null,null,null,null,null,null,null,null,null,null,"wh-be-"]
[]
[null,"1405 Cork ATR"]
[null,"Foran Equine Irish EBF Auction Fillies Maiden (Plus 10 Race) 6f60y"]
[{"$f":"ISNUMBER(FIND(\"wh-\", AO7))","v":true},"Winnings:€12,320 Runners:14 Distance:6f60y Going:Good To Firm Channel:ATR",null,null,null,null,null,null,null,null,null,null,null,null,null,null,null,"OF Strategy",null,"              Recent Form ",null,"Speed",null,null,"                  Official Ratings",null,null,null,null,null,null,"             Life Win",null,"           Year Win",null,null,"         Trends",null,null,null,null,null,null,"Course Stats (Flat Only)",null,"                    Win %",null,null,null,"                   ROI %"]
[null,"Rank","R1","R2","Total","No","Dr","sig","Form","Horse","Age","Weight","Trainer (Run To Form)","Jockey (Allowance)","OR","TS","RPR","Rating","Rank","Horse","Tr'nr","Rank","Tdy","Fut","Horse - Weight",1,2,3,4,5,"LTO","High","Low","High ","Low","Wgt","Hc","Age","Tr'nr","Jock",null,null,null,"Horse","Sire","Trainer","Jockey","Average","Sire","Trainer","Jockey","Average"]
[1,1,7,7,14,4,2,0,"60543","Cruella Dovil26 ",2,"8-10","J P Murtagh50","Shane Foley",66,59,87,26.284622192382798,3,12,50,null,66,null,"cruella dovil8-10",null,"-","-","-",66,66,null,null,null,null,null,null,null,null,null,"wh-be-"]
[1,2,8,4,12,5,4,0,"62","Mary Salome33 ",2,"8-10","Madeleine Tylicki40","W J Lee","-",58,92,29.784622192382798,1,18,40,null,"-",null,"mary salome8-10",null,null,null,null,"-","-",null,null,null,null,null,null,null,null,null,"wh-be-"]
[1,2,7,5,12,9,6,0,"080442","Thats Not Me9 ",2,"8-8","Anthony McCann40","Danny Sheehy5",65,64,85,28.284622192382798,2,10,40,null,65,null,"thats not me8-8","-","-","-","-",60,61,null,null,null,null,null,null,null,null,null,"wh-be-"]
[1,4,3,5,8,12,5,0,"03","Grace To Grace19 ",2,"8-6","D J Bunyan25","Chris Hayes","-",49,83,11.7846221923828,5,23,25,null,"-",null,"grace to grace8-6",null,null,null,null,"-","-",null,null,null,null,null,null,null,null,null,"wh-be-"]
[1,5,2,5,7,15,null,0,"0","Pretty Fantasy19 ",2,"8-8","Gavin Cromwell46",null,"-",19,63,-38.215377807617202,12,30,46,null,"-",null,"pretty fantasy8-8",null,null,null,null,null,"-",null,null,null,null,null,null,null,null,null,"wh-be-"]
[1,5,2,5,7,2,3,0,"60","Aloha Wish12 ",2,"8-12","Joseph Patrick OBrien52","Shane Crosse7","-",54,79,12.7846221923828,4,26,52,null,"-",null,"aloha wish8-12",null,null,null,null,"-","-",null,null,null,null,null,null,null,null,null,"wh-be-"]
[1,7,2,4,6,10,10,1,"89","Cafe Sydney9 ",2,"8-6","K J Condon60","Killian Leonard3","-",51,70,0.78462219238281194,9,27,60,null,"-",null,"cafe sydney8-6",null,null,null,null,"-","-",null,null,null,null,null,null,null,null,null,"wh-be-"]
[1,7,2,4,6,6,13,1,"9","Cosmic Jazz14 ",2,"8-8","Ms Sheila Lavery50","Nathan Crosse7","-",49,79,7.7846221923828098,6,29,50,null,"-",null,"cosmic jazz8-8",null,null,null,null,null,"-",null,null,null,null,null,null,null,null,null,"wh-be-"]
[1,7,2,4,6,8,11,1,"0","Shes My Dream14 ",2,"8-8","John M Oxx33","N G McCullagh","-",47,79,5.7846221923828098,7,30,33,null,"-",null,"shes my dream8-8",null,null,null,null,null,"-",null,null,null,null,null,null,null,null,null,"wh-be-"]
[1,7,2,4,6,13,8,0,"7","Jennifleur26 ",2,"8-6","Jack W Davison100","Sean Davis5","-",26,70,-24.215377807617202,11,27,100,null,"-",null,"jennifleur8-6",null,null,null,null,null,"-",null,null,null,null,null,null,null,null,null,"wh-be-"]
[1,11,2,3,5,1,1,0,"556","Hitchslap12 ",2,"9-0","J F Levins57","Donagh OConnor5","-","-",75,2.3846221923828099,8,16,57,null,"-",null,"hitchslap9-0",null,null,null,"-","-","-",null,null,null,null,null,null,null,null,null,"wh-be-"]
[1,12,2,2,4,14,14,1,"0","Samurai Girl9 ",2,"8-6","Edmond Kent","Andrew Slattery7","-","-",49,-23.6153778076172,10,30,null,null,"-",null,"samurai girl8-6",null,null,null,null,null,"-",null,null,null,null,null,null,null,null,null,"wh-be-"]
[1,13,1,1,2,7,7,0,null,"Ifyouhaveaminute ",2,"8-8","Joseph Patrick OBrien52","Wayne Lordan","-","-","-",null,null,30,52,null,"-",null,"ifyouhaveaminute8-8",null,null,null,null,null,null,null,null,null,null,null,null,null,null,null,"wh-be-"]
[1,14,0,1,1,3,12,1,"0","Beau Warrior125 ",2,"8-12","Adrian McGuinness50","Robbie Downey","-","-",33,-39.6153778076172,13,30,50,null,"-",null,"beau warrior8-12",null,null,null,null,null,"-",null,null,null,null,null,null,null,null,null,"wh-be-"]
[1,14,0,1,1,11,9,0,null,"Giselles Mento ",2,"8-6","Gavin Cromwell46","Rory Cleary","-","-","-",null,null,30,46,null,"-",null,"giselles mento8-6",null,null,null,null,null,null,null,null,null,null,null,null,null,null,null,"wh-be-"]
[]
[null,"1410 Salisbury RUK"]
[null,"PKF Francis Clark EBF Novice Stakes (Plus 10 Race) (Div II) 1m"]
[{"$f":"ISNUMBER(FIND(\"wh-\", AO7))","v":true},"Winnings:£5,111 Runners:14 Distance:1m Going:Good Channel:RUK",null,null,null,null,null,null,null,null,null,null,null,null,null,null,null,"OF Strategy",null,"              Recent Form ",null,"Speed",null,null,"                  Official Ratings",null,null,null,null,null,null,"             Life Win",null,"           Year Win",null,null,"         Trends",null,null,null,null,null,null,"Course Stats (Flat Only)",null,"                    Win %",null,null,null,"                   ROI %"]
[null,"Rank","R1","R2","Total","No","Dr","sig","Form","Horse","Age","Weight","Trainer (Run To Form)","Jockey (Allowance)","OR","TS","RPR","Rating","Rank","Horse","Tr'nr","Rank","Tdy","Fut","Horse - Weight",1,2,3,4,5,"LTO","High","Low","High ","Low","Wgt","Hc","Age","Tr'nr","Jock",null,null,null,"Horse","Sire","Trainer","Jockey","Average","Sire","Trainer","Jockey","Average"]
[1,1,6,5,11,14,5,0,"4","Gamba25 ",2,"8-11","Richard Hannon55","Tom Marquand","-","-",92,20.199996948242202,1,24,55,null,"-",null,"gamba8-11",null,null,null,null,null,"-",null,null,null,null,null,null,null,null,null,"wh-be-"]
[1,2,6,4,10,13,2,0,"24","Wave Walker11 ",2,"9-2","Sylvester Kirk57","Rossa Ryan3","-","-",87,15.1999969482422,2,16,57,null,"-",null,"wave walker9-2",null,null,null,null,"-","-",null,null,null,null,null,null,null,null,null,"wh-be-"]
[1,3,3,1,4,11,8,1,"7","Ned Mackay17 ",2,"9-2","Roger Charlton69","Kieran Shoemark","-",40,65,-6.8000030517578098,3,27,69,null,"-",null,"ned mackay9-2",null,null,null,null,null,"-",null,null,null,null,null,null,null,null,null,"wh-be-"]
[1,3,3,1,4,8,12,1,null,"Military Move ",2,"9-2","Roger Varian61","Andrea Atzeni","-","-","-",null,null,30,61,null,"-",null,"military move9-2",null,null,null,null,null,null,null,null,null,null,null,null,null,null,null,"wh-be-"]
[1,3,2,2,4,2,4,0,null,"Babbos Boy ",2,"9-2","Michael Bell71","James Doyle","-","-","-",null,null,30,71,null,"-",null,"babbos boy9-2",null,null,null,null,null,null,null,null,null,null,null,null,null,null,null,"wh-be-"]
[1,6,2,0,2,1,13,1,"8","Artistic Language27 ",2,"9-2","Brian Meehan36","Jim Crowley","-","-",62,-9.8000030517578107,4,28,36,null,"-",null,"artistic language9-2",null,null,null,null,null,"-",null,null,null,null,null,null,null,null,null,"wh-be-"]
[1,6,0,2,2,12,1,0,null,"Stormwave ",2,"9-2","Ralph Beckett68","Harry Bentley","-","-","-",null,null,30,68,null,"-",null,"stormwave9-2",null,null,null,null,null,null,null,null,null,null,null,null,null,null,null,"wh-be-"]
[1,6,2,0,2,6,11,1,"00","Fast Art11 ",2,"9-2","Seamus Durack60","Martin Harley","-","-",53,-18.800003051757798,5,30,60,null,"-",null,"fast art9-2",null,null,null,null,"-","-",null,null,null,null,null,null,null,null,null,"wh-be-"]
[1,9,0,1,1,9,7,1,null,"Mister Fawkes ",2,"9-2","Andrew Balding57","Jason Watson3","-","-","-",null,null,30,57,null,"-",null,"mister fawkes9-2",null,null,null,null,null,null,null,null,null,null,null,null,null,null,null,"wh-be-"]
[1,9,0,1,1,3,6,1,null,"Baryshnikov ",2,"9-2","Ed Walker46","Liam Keniry","-","-","-",null,null,30,46,null,"-",null,"baryshnikov9-2",null,null,null,null,null,null,null,null,null,null,null,null,null,null,null,"wh-be-"]
[1,9,0,1,1,5,14,1,null,"Escape The Rain ",2,"9-2","Charles Hills45","Robert Winston","-","-","-",null,null,30,45,null,"-",null,"escape the rain9-2",null,null,null,null,null,null,null,null,null,null,null,null,null,null,null,"wh-be-"]
[1,12,0,0,0,10,9,1,null,"Mystical Jadeite ",2,"9-2","Grace Harris50","J F Egan","-","-","-",null,null,30,50,null,"-",null,"mystical jadeite9-2",null,null,null,null,null,null,null,null,null,null,null,null,null,null,null,"wh-be-"]
[1,12,0,0,0,4,10,1,null,"Craneur ",2,"9-2","Harry Dunlop44","Hector Crouch","-","-","-",null,null,30,44,null,"-",null,"craneur9-2",null,null,null,null,null,null,null,null,null,null,null,null,null,null,null,"wh-be-"]
[1,12,0,0,0,7,3,0,null,"Global Express ",2,"9-2","Ed Dunlop54","Gerald Mosse","-","-","-",null,null,30,54,null,"-",null,"global express9-2",null,null,null,null,null,null,null,null,null,null,null,null,null,null,null,"wh-be-"]
[]
[null,"1420 Bangor-on-Dee RUK"]
[null,"Horseradish Catering Mares Novices Hurdle 2m3f123y"]
[{"$f":"ISNUMBER(FIND(\"wh-\", AO7))","v":true},"Winnings:£4,094 Runners:6 Distance:2m3f123y Going:Good Channel:RUK",null,null,null,null,null,null,null,null,null,null,null,null,null,null,null,"OF Strategy",null,"              Recent Form ",null,"Speed",null,null,"                  Official Ratings",null,null,null,null,null,null,"             Life Win",null,"           Year Win",null,null,"         Trends",null,null,null,null,null,null,"Course Stats (Flat Only)",null,"                    Win %",null,null,null,"                   ROI %"]
[null,"Rank","R1","R2","Total","No","Dr","sig","Form","Horse","Age","Weight","Trainer (Run To Form)","Jockey (Allowance)","OR","TS","RPR","Rating","Rank","Horse","Tr'nr","Rank","Tdy","Fut","Horse - Weight",1,2,3,4,5,"LTO","High","Low","High ","Low","Wgt","Hc","Age","Tr'nr","Jock",null,null,null,"Horse","Sire","Trainer","Jockey","Average","Sire","Trainer","Jockey","Average"]
[1,1,7,7,14,2,null,0,"321P1","Skin Deep42 ",5,"11-5","Alan King61","Barry Geraghty","-",49,120,-8.75,3,12,61,null,"-",null,"skin deep11-5",null,"-","-","-","-","-",null,null,null,null,null,null,null,null,null,"wh-be-"]
[1,2,6,5,11,1,null,0,"44-144","Shazzamataz28 ",6,"11-5","Alex Hales100","Noel Fehily",110,85,116,23.25,1,9,100,null,110,null,"shazzamataz11-5","-","-","-","-",115,112,null,null,null,null,null,null,null,null,null,"wh-be-"]
[1,3,5,5,10,6,null,0,"84216","Sid Hoodie22 t",4,"10-12","Charlie Mann67","Harry Bannister","-",64,105,-8.75,3,9,67,null,"-",null,"sid hoodie10-12",null,"-","-","-","-","-",null,null,null,null,null,null,null,null,null,"wh-be-"]
[1,4,6,3,9,5,null,0,"6F-114","Pique Rock117 h",6,"10-12","Henry Daly","Richard Johnson","-","-",126,11,2,6,null,null,"-",null,"pique rock10-12",null,"-","-","-","-","-",null,null,null,null,null,null,null,null,null,"wh-be-"]
[1,5,3,2,5,3,null,0,"21315-","Dame Du Soir222 ",5,"10-12","David Bridgwater29","Tom Scudamore","-",53,108,-16.75,5,9,29,null,"-",null,"dame du soir10-12",null,"-","-","-","-","-",null,null,null,null,null,null,null,null,null,"wh-be-"]
[1,6,0,0,0,4,null,0,"P","Just Heather87 ",4,"10-12","John Wainwright67","Finian OToole3","-","-","-",null,null,30,67,null,"-",null,"just heather10-12",null,null,null,null,null,"-",null,null,null,null,null,null,null,null,null,"wh-be-"]
[]
[null,"1430 Nottingham RUK"]
[null,"EBF Batter Boys Mile Oh So Sharp Maiden Fillies Stakes (Plus 10 Race) (Div II) 1m75y"]
[{"$f":"ISNUMBER(FIND(\"wh-\", AO7))","v":true},"Winnings:£5,563 Runners:11 Distance:1m75y Going:Good Channel:RUK",null,null,null,null,null,null,null,null,null,null,null,null,null,null,null,"OF Strategy",null,"              Recent Form ",null,"Speed",null,null,"                  Official Ratings",null,null,null,null,null,null,"             Life Win",null,"           Year Win",null,null,"         Trends",null,null,null,null,null,null,"Course Stats (Flat Only)",null,"                    Win %",null,null,null,"                   ROI %"]
[null,"Rank","R1","R2","Total","No","Dr","sig","Form","Horse","Age","Weight","Trainer (Run To Form)","Jockey (Allowance)","OR","TS","RPR","Rating","Rank","Horse","Tr'nr","Rank","Tdy","Fut","Horse - Weight",1,2,3,4,5,"LTO","High","Low","High ","Low","Wgt","Hc","Age","Tr'nr","Jock",null,null,null,"Horse","Sire","Trainer","Jockey","Average","Sire","Trainer","Jockey","Average"]
[1,1,8,4,12,8,6,0,"503","Spanish Aria15 ",2,"9-0","John Gosden67","Robert Havlin","-",69,86,44.75,1,18,67,null,"-",null,"spanish aria9-0",null,null,null,"-","-","-",null,null,null,null,null,null,null,null,null,"wh-be-"]
[1,2,5,4,9,10,3,0,"05","Winterkoenigin28 ",2,"9-0","Ralph Beckett68","Richard Kingscote","-",40,81,10.75,2,25,68,null,"-",null,"winterkoenigin9-0",null,null,null,null,"-","-",null,null,null,null,null,null,null,null,null,"wh-be-"]
[1,3,3,1,4,9,2,0,"0","Tartlette19 ",2,"9-0","Hughie Morrison69","Charlie Bennett","-",17,55,-38.25,4,30,69,null,"-",null,"tartlette9-0",null,null,null,null,null,"-",null,null,null,null,null,null,null,null,null,"wh-be-"]
[1,3,3,1,4,11,8,0,null,"Ya Hala ",2,"9-0","Charlie Appleby47","William Buick","-","-","-",null,null,30,47,null,"-",null,"ya hala9-0",null,null,null,null,null,null,null,null,null,null,null,null,null,null,null,"wh-be-"]
[1,5,2,1,3,4,7,0,"0","Eesha Lovely15 ",2,"9-0","Mark Johnston53","Franny Norton","-","-","-",null,null,30,53,null,"-",null,"eesha lovely9-0",null,null,null,null,null,"-",null,null,null,null,null,null,null,null,null,"wh-be-"]
[1,6,2,0,2,1,1,0,"0","Bruyere15 ",2,"9-0","Dean Ivory13","Martin Dwyer","-","-",51,-17.25,3,30,13,null,"-",null,"bruyere9-0",null,null,null,null,null,"-",null,null,null,null,null,null,null,null,null,"wh-be-"]
[1,7,0,1,1,6,11,0,null,"Hidden Pearl ",2,"9-0","Andrew Balding57","Oisin Murphy","-","-","-",null,null,30,57,null,"-",null,"hidden pearl9-0",null,null,null,null,null,null,null,null,null,null,null,null,null,null,null,"wh-be-"]
[1,7,0,1,1,5,10,0,null,"Get It Ready ",2,"9-0","Michael Appleby37","Alistair Rawlinson","-","-","-",null,null,30,37,null,"-",null,"get it ready9-0",null,null,null,null,null,null,null,null,null,null,null,null,null,null,null,"wh-be-"]
[1,7,0,1,1,3,9,0,null,"Dorah ",2,"9-0","Archie Watson60","Edward Greatrex","-","-","-",null,null,30,60,null,"-",null,"dorah9-0",null,null,null,null,null,null,null,null,null,null,null,null,null,null,null,"wh-be-"]
[1,10,0,0,0,7,4,0,null,"Perfecimperfection ",2,"9-0","Marco Botti59","Marc Monaghan3","-","-","-",null,null,30,59,null,"-",null,"perfecimperfection9-0",null,null,null,null,null,null,null,null,null,null,null,null,null,null,null,"wh-be-"]
[1,10,0,0,0,2,5,0,null,"Bumblekite ",2,"9-0","Steph Hollinshead10","Royston Ffrench","-","-","-",null,null,30,10,null,"-",null,"bumblekite9-0",null,null,null,null,null,null,null,null,null,null,null,null,null,null,null,"wh-be-"]
[]
[null,"1435 Cork ATR"]
[null,"Celebration Of Racing At Cork Night On 18th October Nursery Handicap (Plus 10 Race) 6f60y"]
[{"$f":"ISNUMBER(FIND(\"wh-\", AO7))","v":true},"Winnings:€6,776 Runners:11 Distance:6f60y Going:Good To Firm Channel:ATR",null,null,null,null,null,null,null,null,null,null,null,null,null,null,null,"OF Strategy",null,"              Recent Form ",null,"Speed",null,null,"                  Official Ratings",null,null,null,null,null,null,"             Life Win",null,"           Year Win",null,null,"         Trends",null,null,null,null,null,null,"Course Stats (Flat Only)",null,"                    Win %",null,null,null,"                   ROI %"]
[null,"Rank","R1","R2","Total","No","Dr","sig","Form","Horse","Age","Weight","Trainer (Run To Form)","Jockey (Allowance)","OR","TS","RPR","Rating","Rank","Horse","Tr'nr","Rank","Tdy","Fut","Horse - Weight",1,2,3,4,5,"LTO","High","Low","High ","Low","Wgt","Hc","Age","Tr'nr","Jock",null,null,null,"Horse","Sire","Trainer","Jockey","Average","Sire","Trainer","Jockey","Average"]
[1,1,8,7,15,5,8,1,"062342","Chernish14 p",2,"9-5","J A Stack75","Chris Hayes",65,67,74,14,2,9,75,null,65,null,"chernish9-5","-","-",60,61,61,64,null,null,null,null,null,null,null,null,null,"wh-be-"]
[1,2,8,4,12,1,4,0,"501","Lady Marengo25 ",2,"9-10","K J Condon60","Shane Foley",70,60,75,13,4,16,60,null,70,null,"lady marengo9-10",null,null,null,"-","-","-",null,null,null,null,null,null,null,null,null,"wh-be-"]
[1,2,5,7,12,3,5,0,"32456","Rangefield Express29 p1",2,"9-9","M D OCallaghan83","Gary Halpin",69,62,75,14,2,15,83,null,69,null,"rangefield express9-9",null,"-","-","-",74,71,null,null,null,null,null,null,null,null,null,"wh-be-"]
[1,4,6,5,11,2,2,0,"05932","So Familiar14 ",2,"9-10","J P Murtagh50","Denis Linehan5",70,58,73,9,5,14,50,null,70,null,"so familiar9-10",null,"-","-","-",65,65,null,null,null,null,null,null,null,null,null,"wh-be-"]
[1,4,6,5,11,4,6,0,"77415","Dancing Mountain9 ",2,"9-8","J P Murtagh50","N G McCullagh",68,67,74,17,1,10,50,null,68,null,"dancing mountain9-8",null,"-","-","-",61,68,61,61,61,61,null,null,null,null,null,"wh-be-"]
[1,6,5,4,9,6,9,1,"7773","Jarrocho14 ",2,"9-5","David Marnane67","W J Lee",65,56,73,2,8,17,67,null,65,null,"jarrocho9-5",null,null,"-","-","-",65,null,null,null,null,null,null,null,null,null,"wh-be-"]
[1,6,5,4,9,10,1,0,"606","Puddymore21 p1",2,"8-4","Mrs Prunella Dobbs33","Sean Davis5",50,17,77,-48,11,22,33,null,50,null,"puddymore8-4",null,null,null,"-","-","-",null,null,null,null,null,null,null,null,null,"wh-be-"]
[1,8,4,4,8,8,11,1,"6098","Mi Esperanza14 ",2,"9-4","A Kinsella100","Ronan Whelan",64,46,75,-7,9,27,100,null,64,null,"mi esperanza9-4",null,null,"-","-","-",64,null,null,null,null,null,null,null,null,null,"wh-be-"]
[1,9,1,4,5,9,10,1,"98U75","Kodi Dream29 v1",2,"9-2","Adrian Paul Keatley33","Danny Sheehy5",62,60,74,4,7,22,33,null,62,null,"kodi dream9-2",null,"-","-","-","-",62,null,null,null,null,null,null,null,null,null,"wh-be-"]
[1,9,1,4,5,7,3,0,"000","Shandredee58 ",2,"9-5","Peter Maher50","Robbie Colgan",65,59,74,6,6,30,50,null,65,null,"shandredee9-5",null,null,null,"-","-","-",null,null,null,null,null,null,null,null,null,"wh-be-"]
[1,11,0,4,4,11,7,0,"7000","Meryems Way29 ",2,"8-4","Patrick Martin25","Killian Leonard3",50,46,72,-24,10,30,25,null,50,-5,"meryems way8-4",null,null,"-","-","-",50,null,null,null,null,null,null,null,null,null,"wh-be-"]
[]
[null,"1445 Salisbury RUK"]
[null,"Radcliffe & Co EBF Novice Stakes (Plus 10 Race) (Div I) 6f213y"]
[{"$f":"ISNUMBER(FIND(\"wh-\", AO7))","v":true},"Winnings:£5,111 Runners:14 Distance:6f213y Going:Good Channel:RUK",null,null,null,null,null,null,null,null,null,null,null,null,null,null,null,"OF Strategy",null,"              Recent Form ",null,"Speed",null,null,"                  Official Ratings",null,null,null,null,null,null,"             Life Win",null,"           Year Win",null,null,"         Trends",null,null,null,null,null,null,"Course Stats (Flat Only)",null,"                    Win %",null,null,null,"                   ROI %"]
[null,"Rank","R1","R2","Total","No","Dr","sig","Form","Horse","Age","Weight","Trainer (Run To Form)","Jockey (Allowance)","OR","TS","RPR","Rating","Rank","Horse","Tr'nr","Rank","Tdy","Fut","Horse - Weight",1,2,3,4,5,"LTO","High","Low","High ","Low","Wgt","Hc","Age","Tr'nr","Jock",null,null,null,"Horse","Sire","Trainer","Jockey","Average","Sire","Trainer","Jockey","Average"]
[1,1,8,4,12,5,13,0,"74","Hawridge Storm28 ",2,"9-2","Rod Millman50","J F Egan","-",27,89,-11.766670227050801,4,21,50,null,"-",null,"hawridge storm9-2",null,null,null,null,"-","-",null,null,null,null,null,null,null,null,null,"wh-be-"]
[1,2,7,2,9,12,3,1,"15","Knightshayes17 ",2,"9-0","Paul George29","Rhiain Ingram5","-",56,87,15.233329772949199,2,16,29,null,"-",null,"knightshayes9-0",null,null,null,null,"-","-",null,null,null,null,null,null,null,null,null,"wh-be-"]
[1,3,5,2,7,8,6,1,"4","Monsieur Noir19 ",2,"9-2","Roger Varian61","Andrea Atzeni","-",65,83,20.233329772949201,1,24,61,null,"-",null,"monsieur noir9-2",null,null,null,null,null,"-",null,null,null,null,null,null,null,null,null,"wh-be-"]
[1,4,2,1,3,13,11,0,"7","Clubora19 ",2,"8-11","Richard Hannon55","Rossa Ryan3","-","-",53,-22.166670227050801,6,27,55,null,"-",null,"clubora8-11",null,null,null,null,null,"-",null,null,null,null,null,null,null,null,null,"wh-be-"]
[1,4,2,1,3,4,1,1,"7","Frederickbarbarosa14 ",2,"9-2","John Gosden67","Nicky Mackay","-",65,76,13.233329772949199,3,27,67,null,"-",null,"frederickbarbarosa9-2",null,null,null,null,null,"-",null,null,null,null,null,null,null,null,null,"wh-be-"]
[1,4,2,1,3,11,8,1,"0","Spokesman14 ",2,"9-2","Roger Varian61","Jack Mitchell","-",50,63,-14.766670227050801,5,30,61,null,"-",null,"spokesman9-2",null,null,null,null,null,"-",null,null,null,null,null,null,null,null,null,"wh-be-"]
[1,7,2,0,2,14,7,1,"0","Shadow Force9 ",2,"8-11","John Bridger22","Kieran ONeill","-","-","-",null,null,30,22,null,"-",null,"shadow force8-11",null,null,null,null,null,"-",null,null,null,null,null,null,null,null,null,"wh-be-"]
[1,7,0,2,2,2,5,1,null,"Copal ",2,"9-2","Ralph Beckett68","Harry Bentley","-","-","-",null,null,30,68,null,"-",null,"copal9-2",null,null,null,null,null,null,null,null,null,null,null,null,null,null,null,"wh-be-"]
[1,7,1,1,2,10,4,1,null,"Senza Limiti ",2,"9-2","William Haggas60","James Doyle","-","-","-",null,null,30,60,null,"-",null,"senza limiti9-2",null,null,null,null,null,null,null,null,null,null,null,null,null,null,null,"wh-be-"]
[1,10,0,1,1,7,9,1,null,"Millers Creek ",2,"9-2","Sir Mark Prescott Bt50","Ryan Tate","-","-","-",null,null,30,50,null,"-",null,"millers creek9-2",null,null,null,null,null,null,null,null,null,null,null,null,null,null,null,"wh-be-"]
[1,10,0,1,1,6,10,0,null,"Hermocrates ",2,"9-2","Richard Hannon55","Tom Marquand","-","-","-",null,null,30,55,null,"-",null,"hermocrates9-2",null,null,null,null,null,null,null,null,null,null,null,null,null,null,null,"wh-be-"]
[1,10,0,1,1,1,14,0,null,"Aiguillette ",2,"9-2","Gary Moore47","Hector Crouch","-","-","-",null,null,30,47,null,"-",null,"aiguillette9-2",null,null,null,null,null,null,null,null,null,null,null,null,null,null,null,"wh-be-"]
[1,10,0,1,1,9,12,0,null,"Nassam ",2,"9-2","Charles Hills45","Jim Crowley","-","-","-",null,null,30,45,null,"-",null,"nassam9-2",null,null,null,null,null,null,null,null,null,null,null,null,null,null,null,"wh-be-"]
[1,14,0,0,0,3,2,1,null,"Formally ",2,"9-2","Robert Eddery44","Martin Harley","-","-","-",null,null,30,44,null,"-",null,"formally9-2",null,null,null,null,null,null,null,null,null,null,null,null,null,null,null,"wh-be-"]
[]
[null,"1455 Bangor-on-Dee RUK"]
[null,"Malise Nicolson Novices Handicap Chase 2m1f77y"]
[{"$f":"ISNUMBER(FIND(\"wh-\", AO7))","v":true},"Winnings:£4,614 Runners:9 Distance:2m1f77y Going:Good Channel:RUK",null,null,null,null,null,null,null,null,null,null,null,null,null,null,null,"OF Strategy",null,"              Recent Form ",null,"Speed",null,null,"                  Official Ratings",null,null,null,null,null,null,"             Life Win",null,"           Year Win",null,null,"         Trends",null,null,null,null,null,null,"Course Stats (Flat Only)",null,"                    Win %",null,null,null,"                   ROI %"]
[null,"Rank","R1","R2","Total","No","Dr","sig","Form","Horse","Age","Weight","Trainer (Run To Form)","Jockey (Allowance)","OR","TS","RPR","Rating","Rank","Horse","Tr'nr","Rank","Tdy","Fut","Horse - Weight",1,2,3,4,5,"LTO","High","Low","High ","Low","Wgt","Hc","Age","Tr'nr","Jock",null,null,null,"Horse","Sire","Trainer","Jockey","Average","Sire","Trainer","Jockey","Average"]
[1,1,7,5,12,8,null,0,"6-8322","By Rail8 h",4,"11-2","Nick Littmoden50","Jack Quinlan",98,89,107,8.4666748046875,1,7,50,null,98,1,"by rail11-2","-","-","-",98,98,100,null,null,null,null,null,null,null,null,null,"wh-be-"]
[1,1,7,5,12,2,null,0,"19-2UU","Comber Mill10 ht",6,"12-6","Alastair Ralph","Andrew Tinkler",106,60,101,-18.5333251953125,5,22,null,null,106,null,"comber mill12-6",96,100,107,106,106,106,null,null,null,null,null,null,null,null,null,"wh-be-"]
[1,3,5,5,10,7,null,0,"-97F22","Clearly Capable58 ",9,"11-2","Dai Burchell100","Robert Dunne",88,"-",120,3.7999748046875101,2,14,100,null,88,null,"clearly capable11-2",93,92,89,86,86,90,null,null,null,null,null,null,null,null,null,"wh-be-"]
[1,3,4,6,10,4,null,0,"-25747","Ortenzia22 t",4,"11-6","Charlie Longsdon40","Jonathan Burke",102,"-","-",null,null,18,40,null,102,null,"ortenzia11-6",106,102,107,106,105,105,null,null,null,null,null,null,null,null,null,"wh-be-"]
[1,5,4,4,8,9,null,0,"735-33","Shininstar120 h",9,"10-10","John Groucott","Lee Edwards",82,95,111,2.4666748046875,4,11,null,null,82,null,"shininstar10-10",97,97,89,99,87,84,null,null,null,null,null,null,null,null,null,"wh-be-"]
[1,5,5,3,8,5,null,0,"3546-2","Ballyantics121 ",7,"11-5","Neil Mulholland40","Tom Scudamore",91,"-","-",null,null,12,40,null,91,null,"ballyantics11-5",95,91,92,92,90,89,null,null,null,null,null,null,null,null,null,"wh-be-"]
[1,7,3,3,6,1,null,0,"P3/46-","The Herds Garden460 ",9,"12-7","Donald McCain43","Brian Hughes",107,"-",101,3.7999748046875101,2,13,43,null,107,null,"the herds garden12-7",120,120,124,120,112,118,null,null,null,null,null,null,null,null,null,"wh-be-"]
[1,8,2,2,4,3,null,0,"7/7878","Mountain Chimes21 ",6,"11-9","Henry Oliver","Tom OBrien",95,"-","-",null,null,23,null,null,95,null,"mountain chimes11-9","-","-","-","-","-",99,null,null,null,null,null,null,null,null,null,"wh-be-"]
[1,9,0,2,2,6,null,0,"76864-","Hands Of Stone185 ",6,"11-4","Evan Williams67","Adam Wedge",90,"-","-",null,null,18,67,null,90,null,"hands of stone11-4","-","-",102,99,95,91,null,null,null,null,null,null,null,null,null,"wh-be-"]
[]
[null,"1505 Nottingham RUK"]
[null,"42nd Street Classics Nursery Handicap (The Jockey Club Grassroots Nursery Series Final) 6f18y"]
[{"$f":"ISNUMBER(FIND(\"wh-\", AO7))","v":true},"Winnings:£16,173 Runners:12 Distance:6f18y Going:Good Channel:RUK",null,null,null,null,null,null,null,null,null,null,null,null,null,null,null,"OF Strategy",null,"              Recent Form ",null,"Speed",null,null,"                  Official Ratings",null,null,null,null,null,null,"             Life Win",null,"           Year Win",null,null,"         Trends",null,null,null,null,null,null,"Course Stats (Flat Only)",null,"                    Win %",null,null,null,"                   ROI %"]
[null,"Rank","R1","R2","Total","No","Dr","sig","Form","Horse","Age","Weight","Trainer (Run To Form)","Jockey (Allowance)","OR","TS","RPR","Rating","Rank","Horse","Tr'nr","Rank","Tdy","Fut","Horse - Weight",1,2,3,4,5,"LTO","High","Low","High ","Low","Wgt","Hc","Age","Tr'nr","Jock",null,null,null,"Horse","Sire","Trainer","Jockey","Average","Sire","Trainer","Jockey","Average"]
[1,1,10,8,18,4,10,0,"64318","Marks Choice20 ",2,"8-13","Ruth Carr29","James Sullivan",78,69,94,-3.1666717529296902,6,12,29,null,78,null,"marks choice8-13",null,"-","-","-",75,80,75,75,75,75,null,null,null,null,null,"wh-be-"]
[1,2,8,7,15,3,13,0,"65219","Dark Shadow42 ",2,"9-0","Clive Cox58","William Buick",79,91,97,22.833328247070298,1,12,58,null,79,null,"dark shadow9-0",null,"-","-","-",74,80,74,74,74,74,null,null,null,null,null,"wh-be-"]
[1,2,10,5,15,5,6,1,"742217","Muthhila20 ",2,"8-13","Marco Botti59","Gabriele Malune5",78,63,98,-5.1666717529296902,8,10,59,null,78,null,"muthhila8-13","-","-","-",67,67,79,null,null,null,null,null,null,null,null,null,"wh-be-"]
[1,4,7,7,14,1,4,0,"331918","Indian Sounds19 ",2,"9-10","Mark Johnston54","Silvestre De Sousa",89,75,92,11.8333282470703,2,18,54,null,89,null,"indian sounds9-10","-","-","-",82,81,87,null,null,null,null,null,null,null,null,null,"wh-be-"]
[1,4,7,7,14,11,7,1,"433631","Wolf Hunter43 h",2,"8-3","Richard Hughes74","David Egan",68,80,92,-4.1666717529296902,7,10,74,null,68,null,"wolf hunter8-3","-","-","-","-",64,63,null,null,null,null,null,null,null,null,null,"wh-be-"]
[1,6,6,7,13,7,1,0,"724366","Steeve18 ",2,"8-7","Rod Millman50","Rob Hornby",72,79,96,2.8333282470703098,4,15,50,null,72,null,"steeve8-7","-","-","-",78,77,74,null,null,null,null,null,null,null,null,null,"wh-be-"]
[1,7,5,7,12,12,12,0,"443551","Islay Mist14 ",2,"8-1","Amy Murphy54","Jimmy Quinn",66,75,92,-11.1666717529297,12,11,54,null,66,null,"islay mist8-1","-",66,65,63,61,59,null,null,null,null,null,null,null,null,null,"wh-be-"]
[1,7,5,7,12,8,8,1,"452613","Mr Diamond12 ",2,"8-7","Richard Fahey34","Paul Hanagan",72,72,93,-7.1666717529296902,10,10,34,null,72,null,"mr diamond8-7","-","-","-",68,66,72,66,66,66,66,null,null,null,null,null,"wh-be-"]
[1,9,5,6,11,6,9,1,"625145","Requited5 ",2,"8-11","Hughie Morrison68","Charlie Bennett",76,80,95,6.8333282470703098,3,10,68,null,76,-3,"requited8-11","-",71,73,73,76,76,null,null,null,null,null,null,null,null,null,"wh-be-"]
[1,9,5,6,11,2,5,1,"562102","Leoube49 ",2,"9-5","Richard Hannon56","Oisin Murphy",84,68,91,-1.1666717529296899,5,13,56,null,84,null,"leoube9-5","-","-",66,71,83,82,71,71,71,71,null,null,null,null,null,"wh-be-"]
[1,11,1,7,8,9,11,0,"7533","Cracking Speed36 t1",2,"8-6","Richard Hannon56","Martin Dwyer",71,75,91,-7.1666717529296902,10,11,56,null,71,null,"cracking speed8-6",null,null,"-","-","-",72,null,null,null,null,null,null,null,null,null,"wh-be-"]
[1,12,1,6,7,10,3,0,"635448","Pirate36 h1",2,"8-3","Richard Hannon56","Hollie Doyle",68,78,93,-5.1666717529296902,8,16,56,null,68,null,"pirate8-3","-","-","-",71,71,70,null,null,null,null,null,null,null,null,null,"wh-be-"]
[]
[null,"1510 Cork ATR"]
[null,"2019 Annual Membership Available Now Handicap 6f60y"]
[{"$f":"ISNUMBER(FIND(\"wh-\", AO7))","v":true},"Winnings:€10,472 Runners:12 Distance:6f60y Going:Good To Firm Channel:ATR",null,null,null,null,null,null,null,null,null,null,null,null,null,null,null,"OF Strategy",null,"              Recent Form ",null,"Speed",null,null,"                  Official Ratings",null,null,null,null,null,null,"             Life Win",null,"           Year Win",null,null,"         Trends",null,null,null,null,null,null,"Course Stats (Flat Only)",null,"                    Win %",null,null,null,"                   ROI %"]
[null,"Rank","R1","R2","Total","No","Dr","sig","Form","Horse","Age","Weight","Trainer (Run To Form)","Jockey (Allowance)","OR","TS","RPR","Rating","Rank","Horse","Tr'nr","Rank","Tdy","Fut","Horse - Weight",1,2,3,4,5,"LTO","High","Low","High ","Low","Wgt","Hc","Age","Tr'nr","Jock",null,null,null,"Horse","Sire","Trainer","Jockey","Average","Sire","Trainer","Jockey","Average"]
[1,1,9,8,17,3,3,0,"718196","Kindly33 v",5,"9-10","J F Levins57","Donagh OConnor5",83,75,96,1.0833282470703101,4,16,57,null,83,null,"kindly9-10",80,78,81,81,88,86,81,78,81,78,null,null,null,null,null,"wh-be-"]
[1,1,9,8,17,5,10,1,"332254","Captain Power9 v1",6,"9-2","Edward Lynam60","Robbie Downey",75,88,98,8.0833282470703107,3,11,60,null,75,null,"captain power9-2",78,78,77,77,78,75,87,77,null,null,null,null,null,null,null,"wh-be-"]
[1,3,9,7,16,6,6,0,"620705","Fit For Function9 ",5,"9-2","Joseph G Murphy50","Gavin Ryan7",75,90,97,9.0833282470703107,2,22,50,null,75,null,"fit for function9-2",79,78,83,79,83,76,76,74,74,74,null,null,null,null,null,"wh-be-"]
[1,3,9,7,16,8,11,1,"-90702","Fuwairt9 ",6,"9-1","Gavin Cromwell46","Kevin Manning",74,78,93,-7.9166717529296902,11,19,46,null,74,null,"fuwairt9-1",85,84,82,80,77,73,86,82,null,null,null,null,null,null,null,"wh-be-"]
[1,5,6,7,13,7,7,0,"162433","Shore Step9 ",8,"9-2","J P Murtagh50","Shane Foley",75,84,94,8.33282470703125E-2,6,10,50,null,75,null,"shore step9-2",67,73,73,73,74,74,89,61,67,61,null,null,null,null,null,"wh-be-"]
[1,6,6,6,12,12,12,1,"264342","Gottardo12 b",3,"8-11","J A Stack75","Chris Hayes",71,83,96,-2.9166717529296902,8,9,75,null,71,null,"gottardo8-11",78,77,77,74,74,70,null,null,null,null,null,null,null,null,null,"wh-be-"]
[1,6,5,7,12,2,5,0,"096347","Sharp Defence11 ",4,"9-12","R J Osborne47","Ronan Whelan",85,85,93,10.0833282470703,1,14,47,null,85,null,"sharp defence9-12",92,90,87,85,85,86,87,87,null,null,null,null,null,null,null,"wh-be-"]
[1,8,5,6,11,10,4,0,"555191","Ducky Mallon9 t",7,"8-13","Donal Kinsella33","Sean Davis5",72,84,93,-3.9166717529296902,9,11,33,null,72,null,"ducky mallon8-13",70,68,67,67,73,67,78,65,67,67,null,null,null,null,null,"wh-be-"]
[1,9,5,5,10,4,1,0,"1057","So Long Marianne11 ",3,"9-7","W McCreery37","W J Lee",81,77,89,-5.9166717529296902,10,22,37,null,81,null,"so long marianne9-7",null,null,"-","-",85,81,null,null,null,null,null,null,null,null,null,"wh-be-"]
[1,10,2,5,7,9,8,0,"68-578","Fille Du Septembre12 ",3,"9-0","W McCreery37","Nathan Crosse7",74,86,92,-0.91667175292968806,7,20,37,null,74,null,"fille du septembre9-0","-",89,86,83,82,78,null,null,null,null,null,null,null,null,null,"wh-be-"]
[1,11,2,4,6,1,9,1,"-90280","Aurora Eclipse32 b",3,"9-12","M D OCallaghan83","Gary Halpin",86,75,93,1.0833282470703101,4,20,83,null,86,null,"aurora eclipse9-12","-",88,87,87,88,88,null,null,null,null,null,null,null,null,null,"wh-be-"]
[1,12,0,5,5,11,2,0,"8-4700","Powersville32 ",3,"8-12","Thomas Mullins33","N G McCullagh",72,81,92,-7.9166717529296902,11,27,33,null,72,null,"powersville8-12",82,82,81,81,79,76,null,null,null,null,null,null,null,null,null,"wh-be-"]
[]
[null,"1515 Salisbury RUK"]
[null,"Radcliffe & Co EBF Novice Stakes (Plus 10 Race) (Div II) 6f213y"]
[{"$f":"ISNUMBER(FIND(\"wh-\", AO7))","v":true},"Winnings:£5,111 Runners:14 Distance:6f213y Going:Good Channel:RUK",null,null,null,null,null,null,null,null,null,null,null,null,null,null,null,"OF Strategy",null,"              Recent Form ",null,"Speed",null,null,"                  Official Ratings",null,null,null,null,null,null,"             Life Win",null,"           Year Win",null,null,"         Trends",null,null,null,null,null,null,"Course Stats (Flat Only)",null,"                    Win %",null,null,null,"                   ROI %"]
[null,"Rank","R1","R2","Total","No","Dr","sig","Form","Horse","Age","Weight","Trainer (Run To Form)","Jockey (Allowance)","OR","TS","RPR","Rating","Rank","Horse","Tr'nr","Rank","Tdy","Fut","Horse - Weight",1,2,3,4,5,"LTO","High","Low","High ","Low","Wgt","Hc","Age","Tr'nr","Jock",null,null,null,"Horse","Sire","Trainer","Jockey","Average","Sire","Trainer","Jockey","Average"]
[1,1,9,4,13,13,7,1,"2","Clara Peeters19 ",2,"8-11","Gary Moore47","Jason Watson3","-",50,84,21.199996948242202,2,22,47,null,"-",null,"clara peeters8-11",null,null,null,null,null,"-",null,null,null,null,null,null,null,null,null,"wh-be-"]
[1,2,3,1,4,9,3,1,null,"Jahbath ",2,"9-2","William Haggas60","Jim Crowley","-","-","-",null,null,30,60,null,"-",null,"jahbath9-2",null,null,null,null,null,null,null,null,null,null,null,null,null,null,null,"wh-be-"]
[1,2,3,1,4,6,14,0,"6","George Junior20 ",2,"9-2","Richard Hannon55","Tom Marquand","-","-",65,3.1999969482421902,3,26,55,null,"-",null,"george junior9-2",null,null,null,null,null,"-",null,null,null,null,null,null,null,null,null,"wh-be-"]
[1,4,2,1,3,3,9,1,"6","Denis The Diva49 ",2,"9-2","Marcus Tregoning56","Kieran Shoemark","-",52,83,22.199996948242202,1,26,56,null,"-",null,"denis the diva9-2",null,null,null,null,null,"-",null,null,null,null,null,null,null,null,null,"wh-be-"]
[1,4,2,1,3,4,11,0,"0","Don Diego Vega11 ",2,"9-2","Daniel Kubler75","George Downing","-","-",20,-41.800003051757798,5,30,75,null,"-",null,"don diego vega9-2",null,null,null,null,null,"-",null,null,null,null,null,null,null,null,null,"wh-be-"]
[1,6,2,0,2,1,12,0,"8","Attys Edge20 ",2,"9-2","Christopher Mason50","Finley Marsh5","-","-",57,-4.8000030517578098,4,28,50,null,"-",null,"attys edge9-2",null,null,null,null,null,"-",null,null,null,null,null,null,null,null,null,"wh-be-"]
[1,6,1,1,2,11,6,1,null,"Time Immemorial ",2,"9-2","Roger Varian61","Andrea Atzeni","-","-","-",null,null,30,61,null,"-",null,"time immemorial9-2",null,null,null,null,null,null,null,null,null,null,null,null,null,null,null,"wh-be-"]
[1,6,1,1,2,8,5,1,null,"Jack DOr ",2,"9-2","Ed Walker46","Liam Keniry","-","-","-",null,null,30,46,null,"-",null,"jack dor9-2",null,null,null,null,null,null,null,null,null,null,null,null,null,null,null,"wh-be-"]
[1,9,0,1,1,2,1,1,null,"Aweedram ",2,"9-2","Alan King61","Martin Harley","-","-","-",null,null,30,61,null,"-",null,"aweedram9-2",null,null,null,null,null,null,null,null,null,null,null,null,null,null,null,"wh-be-"]
[1,9,0,1,1,5,4,1,null,"Drumshanbo Destiny ",2,"9-2","Gary Moore47","Robert Winston","-","-","-",null,null,30,47,null,"-",null,"drumshanbo destiny9-2",null,null,null,null,null,null,null,null,null,null,null,null,null,null,null,"wh-be-"]
[1,9,0,1,1,10,2,1,null,"Percys Prince ",2,"9-2","Sir Mark Prescott Bt50","Ryan Tate","-","-","-",null,null,30,50,null,"-",null,"percys prince9-2",null,null,null,null,null,null,null,null,null,null,null,null,null,null,null,"wh-be-"]
[1,9,0,1,1,12,10,0,null,"Bonny Blue ",2,"8-11","Rod Millman50","J F Egan","-","-","-",null,null,30,50,null,"-",null,"bonny blue8-11",null,null,null,null,null,null,null,null,null,null,null,null,null,null,null,"wh-be-"]
[1,13,0,0,0,14,13,0,null,"Little Anxious ",2,"8-11","Grace Harris50","Cameron Noble5","-","-","-",null,null,30,50,null,"-",null,"little anxious8-11",null,null,null,null,null,null,null,null,null,null,null,null,null,null,null,"wh-be-"]
[1,13,0,0,0,7,8,1,null,"Global Acclamation ",2,"9-2","Ed Dunlop54","Gerald Mosse","-","-","-",null,null,30,54,null,"-",null,"global acclamation9-2",null,null,null,null,null,null,null,null,null,null,null,null,null,null,null,"wh-be-"]
[]
[null,"1525 Bangor-on-Dee RUK"]
[null,"Follow Timeforms 50 For The Jumps Novices Hurdle 2m145y"]
[{"$f":"ISNUMBER(FIND(\"wh-\", AO7))","v":true},"Winnings:£4,094 Runners:9 Distance:2m145y Going:Good Channel:RUK",null,null,null,null,null,null,null,null,null,null,null,null,null,null,null,"OF Strategy",null,"              Recent Form ",null,"Speed",null,null,"                  Official Ratings",null,null,null,null,null,null,"             Life Win",null,"           Year Win",null,null,"         Trends",null,null,null,null,null,null,"Course Stats (Flat Only)",null,"                    Win %",null,null,null,"                   ROI %"]
[null,"Rank","R1","R2","Total","No","Dr","sig","Form","Horse","Age","Weight","Trainer (Run To Form)","Jockey (Allowance)","OR","TS","RPR","Rating","Rank","Horse","Tr'nr","Rank","Tdy","Fut","Horse - Weight",1,2,3,4,5,"LTO","High","Low","High ","Low","Wgt","Hc","Age","Tr'nr","Jock",null,null,null,"Horse","Sire","Trainer","Jockey","Average","Sire","Trainer","Jockey","Average"]
[1,1,10,7,17,9,null,0,"0-1225","Val Mome21 ",5,"10-12","Donald McCain43","Brian Hughes",115,90,127,11.2666931152344,2,9,43,null,115,null,"val mome10-12",null,null,"-","-","-",115,null,null,null,null,null,null,null,null,null,"wh-be-"]
[1,2,6,6,12,6,null,0,"/2453-","Neachells Bridge193 ",6,"10-12","Neil Mulholland40","Noel Fehily","-",107,129,30.2666931152344,1,12,40,null,"-",null,"neachells bridge10-12",null,null,"-","-","-","-",null,null,null,null,null,null,null,null,null,"wh-be-"]
[1,3,4,5,9,5,null,0,"P/22-3","Mythical Prince25 ",6,"10-12","Warren Greatrex","Richard Johnson","-","-","-",null,null,7,null,null,"-",null,"mythical prince10-12",null,null,null,"-","-","-",null,null,null,null,null,null,null,null,null,"wh-be-"]
[1,4,2,6,8,4,null,0,null,"My Fantasea27 ",5,"10-12","Ian Williams68","Tom OBrien","-","-","-",null,null,30,68,null,"-",null,"my fantasea10-12",null,null,null,null,null,null,null,null,null,null,null,null,null,null,null,"wh-be-"]
[1,5,4,2,6,8,null,0,"3272-","Some Day Soon191 ",5,"10-12","Jamie Snowden75","Gavin Sheehan","-","-","-",null,null,11,75,null,"-",null,"some day soon10-12",null,null,"-","-","-","-",null,null,null,null,null,null,null,null,null,"wh-be-"]
[1,5,2,4,6,1,null,0,"2-33F","Court Royale82 ",5,"10-12","Evan Williams67","Adam Wedge","-","-",111,-1.40000688476562,3,16,67,null,"-",null,"court royale10-12",null,null,"-","-","-","-",null,null,null,null,null,null,null,null,null,"wh-be-"]
[1,7,1,4,5,3,null,0,"P54-","Jacbequick281  ",7,"10-12","David Pipe45","Tom Scudamore","-",83,117,-5.7333068847656197,4,19,45,null,"-",null,"jacbequick10-12",null,null,null,"-","-","-",null,null,null,null,null,null,null,null,null,"wh-be-"]
[1,8,2,1,3,2,null,0,"73249-","Enrichissant235 ",4,"10-12","David Bridgwater29","Aidan Coleman","-","-","-",null,null,15,29,null,"-",null,"enrichissant10-12",null,"-","-","-","-","-",null,null,null,null,null,null,null,null,null,"wh-be-"]
[1,9,0,0,0,7,null,0,"6-7","Realms Of Fire33 ",5,"10-12","Dan Skelton33","Harry Skelton","-","-",78,-34.400006884765602,5,23,33,null,"-",null,"realms of fire10-12",null,null,null,null,"-","-",null,null,null,null,null,null,null,null,null,"wh-be-"]
[]
[null,"1535 Nottingham RUK"]
[null,"KFE Leaders In Frying Excellence Handicap (The Jockey Club Grassroots Sprint Distance Series Final) 6f18y"]
[{"$f":"ISNUMBER(FIND(\"wh-\", AO7))","v":true},"Winnings:£15,563 Runners:17 Distance:6f18y Going:Good Channel:RUK",null,null,null,null,null,null,null,null,null,null,null,null,null,null,null,"OF Strategy",null,"              Recent Form ",null,"Speed",null,null,"                  Official Ratings",null,null,null,null,null,null,"             Life Win",null,"           Year Win",null,null,"         Trends",null,null,null,null,null,null,"Course Stats (Flat Only)",null,"                    Win %",null,null,null,"                   ROI %"]
[null,"Rank","R1","R2","Total","No","Dr","sig","Form","Horse","Age","Weight","Trainer (Run To Form)","Jockey (Allowance)","OR","TS","RPR","Rating","Rank","Horse","Tr'nr","Rank","Tdy","Fut","Horse - Weight",1,2,3,4,5,"LTO","High","Low","High ","Low","Wgt","Hc","Age","Tr'nr","Jock",null,null,null,"Horse","Sire","Trainer","Jockey","Average","Sire","Trainer","Jockey","Average"]
[1,1,10,8,18,3,3,0,"414312","Belated Breath40 ",3,"9-8","Hughie Morrison69","Oisin Murphy",81,82,89,9.2941131591796893,3,6,69,null,81,null,"belated breath9-8",69,68,74,73,72,78,72,68,72,68,null,null,null,null,null,"wh-be-"]
[1,1,9,9,18,5,4,0,"-96703","Syrian Pearl14 ",7,"9-5","Chris Wall44","George Wood",77,85,87,6.2941131591796902,5,20,44,null,77,null,"syrian pearl9-5",79,84,84,82,80,77,82,68,79,79,null,null,null,null,null,"wh-be-"]
[1,3,8,8,16,14,17,1,"594734","Socialites Red14 p",5,"8-9","Scott Dixon50","Theodore Ladd5",67,68,90,-17.705886840820298,17,14,50,null,67,null,"socialites red8-9",70,69,69,68,67,68,67,59,67,67,null,null,null,null,null,"wh-be-"]
[1,3,9,7,16,12,15,1,"590431","Case Key4 ",5,"8-11","Michael Appleby37","Royston Ffrench",69,84,93,3.2941131591796902,6,8,37,null,69,2,"case key8-11",72,72,70,69,69,69,73,69,69,69,null,null,null,null,null,"wh-be-"]
[1,3,9,7,16,4,16,1,"653256","Diamond Lady18 ",7,"9-7","William Stone25","Hollie Doyle",79,84,91,11.2941131591797,1,13,25,null,79,null,"diamond lady9-7",83,82,80,79,80,76,81,75,null,null,null,null,null,null,null,"wh-be-"]
[1,3,9,7,16,15,8,0,"091977","Storm Melody14 p",5,"8-9","Ali Stronge","Edward Greatrex",67,78,93,-4.7058868408203098,12,23,null,null,67,null,"storm melody8-9",72,70,67,69,69,68,69,67,67,67,null,null,null,null,null,"wh-be-"]
[1,3,8,8,16,13,13,1,"253561","Haverland21 ",3,"8-10","Charlie Fellowes60","Stevie Donohoe",69,74,92,-7.7058868408203098,15,12,60,null,69,null,"haverland8-10",65,66,66,66,65,63,63,63,63,63,null,null,null,null,null,"wh-be-"]
[1,8,7,8,15,17,11,0,"555565","Operative14 ",5,"8-9","Ed de Giles67","Silvestre De Sousa",67,92,94,10.2941131591797,2,16,67,null,67,null,"operative8-9",77,75,73,71,71,69,74,70,null,null,null,null,null,null,null,"wh-be-"]
[1,8,8,7,15,1,9,0,"022110","Admirality19 ",4,"9-10","J P Murtagh50","Shane B Kelly3",82,72,92,3.2941131591796902,6,12,50,null,82,null,"admirality9-10",62,59,62,64,74,82,74,64,74,64,null,null,null,null,null,"wh-be-"]
[1,10,7,7,14,7,6,0,"683168","Charming Guest7 ",3,"9-3","Mick Channon49","Scott McCullagh7",76,78,91,2.2941131591796902,8,15,49,null,76,-1,"charming guest9-3",78,76,74,71,77,76,71,71,71,71,null,null,null,null,null,"wh-be-"]
[1,10,8,6,14,2,12,1,"443-11","Saaheq14 ",4,"9-9","Michael Appleby37","David Egan",81,80,91,9.2941131591796893,3,5,37,null,81,null,"saaheq9-9","-","-","-",74,71,76,76,71,76,71,null,null,null,null,null,"wh-be-"]
[1,10,6,8,14,11,1,0,"700392","Casterbridge7 ",6,"8-13","Eric Alston50","Jason Hart",71,80,91,-0.70588684082031194,10,14,50,null,71,null,"casterbridge8-13",76,75,73,73,71,71,73,68,null,null,null,null,null,null,null,"wh-be-"]
[1,10,7,7,14,16,14,1,"851514","Extrasolar15 t",8,"8-9","Geoffrey Harker75","Franny Norton",67,78,91,-6.7058868408203098,14,10,75,null,67,null,"extrasolar8-9",58,62,61,67,65,68,84,58,65,58,null,null,null,null,null,"wh-be-"]
[1,14,6,7,13,8,7,0,"929627","Han Solo Berger26 p",3,"9-3","Chris Wall44","William Buick",76,74,91,-1.7058868408203101,11,15,44,null,76,null,"han solo berger9-3",82,79,80,79,77,77,null,null,null,null,null,null,null,null,null,"wh-be-"]
[1,15,5,7,12,6,10,0,"927117","Stewardess33 ",3,"9-3","Richard Fahey34","David Nolan",76,78,89,0.294113159179688,9,9,34,null,76,null,"stewardess9-3",66,66,66,66,70,77,70,66,70,66,null,null,null,null,null,"wh-be-"]
[1,15,6,6,12,10,2,0,"433171","Cale Lane29 ",3,"9-2","James Bethell56","Josephine Gordon",75,69,88,-10.7058868408203,16,9,56,null,75,null,"cale lane9-2","-","-","-",65,70,70,70,65,70,65,null,null,null,null,null,"wh-be-"]
[1,17,3,5,8,9,5,0,"173081","Magic Pulse36 ",3,"9-2","David C Griffiths38","Dougie Costello",75,72,90,-5.7058868408203098,13,19,38,null,75,null,"magic pulse9-2",71,75,75,75,74,72,null,null,null,null,null,null,null,null,null,"wh-be-"]
[]
[null,"1540 Cork ATR"]
[null,"Buy Online At corkracecourse.ie Maiden 1m100y"]
[{"$f":"ISNUMBER(FIND(\"wh-\", AO7))","v":true},"Winnings:€7,392 Runners:17 Distance:1m100y Going:Good To Firm Channel:ATR",null,null,null,null,null,null,null,null,null,null,null,null,null,null,null,"OF Strategy",null,"              Recent Form ",null,"Speed",null,null,"                  Official Ratings",null,null,null,null,null,null,"             Life Win",null,"           Year Win",null,null,"         Trends",null,null,null,null,null,null,"Course Stats (Flat Only)",null,"                    Win %",null,null,null,"                   ROI %"]
[null,"Rank","R1","R2","Total","No","Dr","sig","Form","Horse","Age","Weight","Trainer (Run To Form)","Jockey (Allowance)","OR","TS","RPR","Rating","Rank","Horse","Tr'nr","Rank","Tdy","Fut","Horse - Weight",1,2,3,4,5,"LTO","High","Low","High ","Low","Wgt","Hc","Age","Tr'nr","Jock",null,null,null,"Horse","Sire","Trainer","Jockey","Average","Sire","Trainer","Jockey","Average"]
[1,1,7,6,13,13,2,1,"442-9","Minnie Haha48 ",3,"9-0","Mrs John Harrington54","Colm ODonoghue",79,76,92,54.1555786132812,1,15,54,null,79,null,"minnie haha9-0",null,null,"-","-","-",83,null,null,null,null,null,null,null,null,null,"wh-be-"]
[1,2,5,7,12,3,10,1,"72546","California Jumbo25 ",3,"9-5","J A Stack75","Chris Hayes",72,57,82,18.1555786132812,6,15,75,null,72,null,"california jumbo9-5",null,"-","-","-",78,74,null,null,null,null,null,null,null,null,null,"wh-be-"]
[1,3,5,6,11,16,5,1,"08-9","Snowflakes20 ",3,"9-0","A P OBrien67","Seamie Heffernan",92,38,62,-0.84442138671875,8,27,67,null,92,null,"snowflakes9-0",null,null,null,"-","-","-",null,null,null,null,null,null,null,null,null,"wh-be-"]
[1,4,5,5,10,4,16,0,"3324","Dawn Trouper96 t1",3,"9-5","J S Bolger43","Kevin Manning",78,56,85,26.1555786132812,3,9,43,null,78,null,"dawn trouper9-5",null,null,"-","-","-",80,null,null,null,null,null,null,null,null,null,"wh-be-"]
[1,5,3,6,9,5,12,0,"333346","Fridtjof Nansen33 b",3,"9-5","John M Oxx33","N G McCullagh",78,81,85,51.1555786132812,2,13,33,null,78,null,"fridtjof nansen9-5","-","-",74,76,81,81,null,null,null,null,null,null,null,null,null,"wh-be-"]
[1,6,2,5,7,1,4,1,"90-900","Earl Of Bunnacurry19 ",4,"9-8","Gavin Cromwell46","Ben Coen7","-",9,39,-65.044421386718795,15,29,46,null,"-",null,"earl of bunnacurry9-8","-","-","-","-","-","-",null,null,null,null,null,null,null,null,null,"wh-be-"]
[1,7,2,3,5,14,17,0,"06","Palmetto Bay11 ",3,"9-0","Henry De Bromhead43","Wayne Lordan","-","-",66,4.3999786132812604,7,26,43,null,"-",null,"palmetto bay9-0",null,null,null,null,"-","-",null,null,null,null,null,null,null,null,null,"wh-be-"]
[1,8,0,4,4,17,13,0,"5","Warning Light48 t1",3,"9-0","John Joseph Murphy33","Shane Foley","-",29,71,-13.0444213867187,9,25,33,null,"-",null,"warning light9-0",null,null,null,null,null,"-",null,null,null,null,null,null,null,null,null,"wh-be-"]
[1,8,1,3,4,7,7,1,"3","Spiorad121 ",3,"9-5","D K Weld35","Declan McDonogh","-",56,80,22.9555786132813,5,23,35,null,"-",null,"spiorad9-5",null,null,null,null,null,"-",null,null,null,null,null,null,null,null,null,"wh-be-"]
[1,8,2,2,4,6,14,0,"0","Hit The Rocks11 ",3,"9-5","Edmond Kent","Ronan Whelan","-","-",40,-21.600021386718701,12,30,null,null,"-",null,"hit the rocks9-5",null,null,null,null,null,"-",null,null,null,null,null,null,null,null,null,"wh-be-"]
[1,8,2,2,4,2,3,1,"0","Tigernmas9 ",4,"9-8","Patrick Martin25","Killian Leonard3","-","-",28,-33.600021386718701,14,30,25,null,"-",null,"tigernmas9-8",null,null,null,null,null,"-",null,null,null,null,null,null,null,null,null,"wh-be-"]
[1,8,2,2,4,15,8,1,"0-0","Sally Browne25 ",3,"9-0","Philip M Byrne25","Sean Kirrane7","-","-",29,-32.600021386718701,13,30,25,null,"-",null,"sally browne9-0",null,null,null,null,"-","-",null,null,null,null,null,null,null,null,null,"wh-be-"]
[1,13,0,3,3,11,6,1,"54-","Escallonia364 ",3,"9-0","W McCreery37","W J Lee","-",61,78,25.9555786132813,4,19,37,null,"-",null,"escallonia9-0",null,null,null,null,"-","-",null,null,null,null,null,null,null,null,null,"wh-be-"]
[1,14,0,2,2,8,11,1,"0-0","Spittal Field49 ",3,"9-5","M A Gunn","Danny Sheehy5","-","-",46,-15.6000213867187,10,30,null,null,"-",null,"spittal field9-5",null,null,null,null,"-","-",null,null,null,null,null,null,null,null,null,"wh-be-"]
[1,15,0,0,0,12,9,1,null,"Loosen Up ",3,"9-0","John Joseph Hanlon50","Rory Cleary","-","-","-",null,null,30,50,null,"-",null,"loosen up9-0",null,null,null,null,null,null,null,null,null,null,null,null,null,null,null,"wh-be-"]
[1,15,0,0,0,10,1,1,null,"Bessie Cook ",3,"9-0","W T Farrell","Donagh OConnor5","-","-","-",null,null,30,null,null,"-",null,"bessie cook9-0",null,null,null,null,null,null,null,null,null,null,null,null,null,null,null,"wh-be-"]
[1,15,0,0,0,9,15,0,"400-87","Tahan153 ",3,"9-5","Ms Sheila Lavery50","Robbie Colgan","-","-",41,-20.600021386718701,11,25,50,null,"-",null,"tahan9-5",null,"-","-","-","-","-",null,null,null,null,null,null,null,null,null,"wh-be-"]
[]
[null,"1550 Salisbury RUK"]
[null,"Myddelton & Major Conditions Stakes (Plus 10 Race) 6f"]
[{"$f":"ISNUMBER(FIND(\"wh-\", AO7))","v":true},"Winnings:£9,704 Runners:6 Distance:6f Going:Good Channel:RUK",null,null,null,null,null,null,null,null,null,null,null,null,null,null,null,"OF Strategy",null,"              Recent Form ",null,"Speed",null,null,"                  Official Ratings",null,null,null,null,null,null,"             Life Win",null,"           Year Win",null,null,"         Trends",null,null,null,null,null,null,"Course Stats (Flat Only)",null,"                    Win %",null,null,null,"                   ROI %"]
[null,"Rank","R1","R2","Total","No","Dr","sig","Form","Horse","Age","Weight","Trainer (Run To Form)","Jockey (Allowance)","OR","TS","RPR","Rating","Rank","Horse","Tr'nr","Rank","Tdy","Fut","Horse - Weight",1,2,3,4,5,"LTO","High","Low","High ","Low","Wgt","Hc","Age","Tr'nr","Jock",null,null,null,"Horse","Sire","Trainer","Jockey","Average","Sire","Trainer","Jockey","Average"]
[1,1,10,5,15,3,2,0,"12","Naughty Rascal16 ",2,"9-0","Richard Hannon55","Tom Marquand","-","-",103,4.0000122070312596,4,13,55,null,"-",null,"naughty rascal9-0",null,null,null,null,"-","-",null,null,null,null,null,null,null,null,null,"wh-be-"]
[1,1,9,6,15,6,6,0,"183473","Chynna3 ",2,"8-11","Mick Channon49","Andrea Atzeni",95,86,113,30.9500122070312,1,14,49,null,95,null,"chynna8-11","-",79,78,"-",95,95,null,null,null,null,null,null,null,null,null,"wh-be-"]
[1,1,8,7,15,2,3,0,"6241","Cloak And Dagger26 ",2,"9-0","Clive Cox58","James Doyle",83,88,97,4.95001220703125,3,7,58,null,83,null,"cloak and dagger9-0",null,null,"-","-","-",82,null,null,null,null,null,null,null,null,null,"wh-be-"]
[1,4,5,8,13,1,4,0,"21931","Autumn Splendour38 ",2,"9-6","James Tate83","Jamie Spencer",88,64,93,-18.0499877929688,5,13,83,null,88,null,"autumn splendour9-6",null,"-","-","-",82,82,82,82,82,82,null,null,null,null,null,"wh-be-"]
[1,5,3,7,10,4,1,0,"597333","Tin Hat32 ",2,"9-0","Eve Johnson Houghton21","Charles Bishop",87,92,108,23.9500122070312,2,9,21,null,87,null,"tin hat9-0","-",94,94,92,92,90,null,null,null,null,null,null,null,null,null,"wh-be-"]
[1,6,3,6,9,5,5,0,"03","Tru Grit5 ",2,"8-12","Peter Chapple-Hyam50","Jack Mitchell","-",49,80,-45.7999877929688,6,23,50,null,"-",null,"tru grit8-12",null,null,null,null,"-","-",null,null,null,null,null,null,null,null,null,"wh-be-"]
[]
[null,"1600 Bangor-on-Dee RUK"]
[null,"Nicol Hughes Food Service Chase (A Novices Limited Handicap) 3m30y"]
[{"$f":"ISNUMBER(FIND(\"wh-\", AO7))","v":true},"Winnings:£4,614 Runners:6 Distance:3m30y Going:Good Channel:RUK",null,null,null,null,null,null,null,null,null,null,null,null,null,null,null,"OF Strategy",null,"              Recent Form ",null,"Speed",null,null,"                  Official Ratings",null,null,null,null,null,null,"             Life Win",null,"           Year Win",null,null,"         Trends",null,null,null,null,null,null,"Course Stats (Flat Only)",null,"                    Win %",null,null,null,"                   ROI %"]
[null,"Rank","R1","R2","Total","No","Dr","sig","Form","Horse","Age","Weight","Trainer (Run To Form)","Jockey (Allowance)","OR","TS","RPR","Rating","Rank","Horse","Tr'nr","Rank","Tdy","Fut","Horse - Weight",1,2,3,4,5,"LTO","High","Low","High ","Low","Wgt","Hc","Age","Tr'nr","Jock",null,null,null,"Horse","Sire","Trainer","Jockey","Average","Sire","Trainer","Jockey","Average"]
[1,1,9,5,14,1,null,0,"/3/2-3","Masterofdeception35 ht",10,"11-10","Dr Richard Newland100","Sam Twiston-Davies",122,"-",133,6.5,2,8,100,null,122,null,"masterofdeception11-10",125,125,120,122,120,120,null,null,null,null,null,null,null,null,null,"wh-be-"]
[1,2,5,7,12,2,null,0,"-12245","Ofcourseiwill37 ",6,"11-7","Donald McCain43","Brian Hughes",119,86,127,-11,4,11,43,null,119,null,"ofcourseiwill11-7",102,102,117,120,120,120,null,null,null,null,null,null,null,null,null,"wh-be-"]
[1,3,7,4,11,5,null,0,"4742-2","Wandrin Star151 t",7,"11-1","Kim Bailey50","Mikey Hamill3",113,103,134,7,1,8,50,null,113,null,"wandrin star11-1","-","-",117,112,109,110,null,null,null,null,null,null,null,null,null,"wh-be-"]
[1,3,5,6,11,3,null,0,"335-33","Redemption Song21 t",6,"11-6","Kevin Frost63","Nico de Boinville",118,"-",128,-2.5,3,11,63,null,118,null,"redemption song11-6","-","-",120,119,119,118,null,null,null,null,null,null,null,null,null,"wh-be-"]
[1,5,3,2,5,4,null,0,"2P-154","Im Always Trying41 tp",5,"11-5","Dan Skelton33","Harry Skelton",117,"-","-",null,null,10,33,null,117,null,"im always trying11-5","-","-",109,107,119,119,null,null,null,null,null,null,null,null,null,"wh-be-"]
[1,5,2,3,5,6,null,0,"4/2P8-","Sergeant Brody160 ",7,"11-0","Samuel Drinkwater","A P Heskin",112,"-","-",null,null,20,null,null,112,null,"sergeant brody11-0",null,null,"-","-",115,114,null,null,null,null,null,null,null,null,null,"wh-be-"]
[]
[null,"1610 Nottingham RUK"]
[null,"Drywite Fresh Produce Wash Handicap (The Jockey Club Grassroots Middle Distance Series Final) 1m2f50y"]
[{"$f":"ISNUMBER(FIND(\"wh-\", AO7))","v":true},"Winnings:£15,563 Runners:9 Distance:1m2f50y Going:Good Channel:RUK",null,null,null,null,null,null,null,null,null,null,null,null,null,null,null,"OF Strategy",null,"              Recent Form ",null,"Speed",null,null,"                  Official Ratings",null,null,null,null,null,null,"             Life Win",null,"           Year Win",null,null,"         Trends",null,null,null,null,null,null,"Course Stats (Flat Only)",null,"                    Win %",null,null,null,"                   ROI %"]
[null,"Rank","R1","R2","Total","No","Dr","sig","Form","Horse","Age","Weight","Trainer (Run To Form)","Jockey (Allowance)","OR","TS","RPR","Rating","Rank","Horse","Tr'nr","Rank","Tdy","Fut","Horse - Weight",1,2,3,4,5,"LTO","High","Low","High ","Low","Wgt","Hc","Age","Tr'nr","Jock",null,null,null,"Horse","Sire","Trainer","Jockey","Average","Sire","Trainer","Jockey","Average"]
[1,1,9,7,16,7,1,0,"-01132","Lyricas Lion29 ",4,"8-4","Sheena West100","Silvestre De Sousa",69,64,98,-18.2222290039062,8,6,100,null,69,1,"lyricas lion8-4",57,59,57,60,62,66,60,54,60,57,null,null,null,null,null,"wh-be-"]
[1,1,8,8,16,2,3,0,"214924","Michele Strogoff19 ",5,"9-4","Michael Appleby37","Alistair Rawlinson",83,91,97,21.7777709960938,1,15,37,null,83,null,"michele strogoff9-4",77,78,84,83,81,81,78,78,78,78,null,null,null,null,null,"wh-be-"]
[1,1,8,8,16,1,8,0,"221420","Scottish Summit39 ",5,"9-10","Geoffrey Harker75","Kevin Stott",89,71,95,5.77777099609375,4,16,75,null,89,null,"scottish summit9-10",76,76,76,85,85,89,76,68,76,68,null,null,null,null,null,"wh-be-"]
[1,4,9,6,15,4,2,0,"242435","Purple Rock25 ",6,"8-9","Gay Kelleway50","Hollie Doyle",74,85,100,9.77777099609375,3,12,50,null,74,null,"purple rock8-9",72,72,71,71,75,75,74,74,null,null,null,null,null,null,null,"wh-be-"]
[1,4,8,7,15,8,7,0,"533133","Gravina44 ",3,"8-3","Alan King61","David Egan",72,61,98,-18.2222290039062,8,7,61,null,72,null,"gravina8-3","-","-",68,68,72,72,68,68,68,68,null,null,null,null,null,"wh-be-"]
[1,6,6,8,14,3,5,0,"835704","Music Seeker5 t",4,"8-12","Declan Carroll52","Jason Hart",77,78,98,3.77777099609375,5,21,52,null,77,-1,"music seeker8-12",80,80,80,79,78,77,76,76,76,76,null,null,null,null,null,"wh-be-"]
[1,7,7,6,13,9,4,0,"515369","Sioux Frontier13 ",3,"8-0","Richard Fahey34","Paddy Mathers",69,67,99,-14.2222290039062,7,18,34,null,69,-2,"sioux frontier8-0",68,67,70,70,69,68,67,67,67,67,null,null,null,null,null,"wh-be-"]
[1,7,6,7,13,6,6,0,"336506","Maghfoor7 ",4,"8-7","Eric Alston50","Paul Hanagan",72,73,100,-4.22222900390625,6,21,50,null,72,-1,"maghfoor8-7",74,74,80,75,74,72,null,null,null,null,null,null,null,null,null,"wh-be-"]
[1,9,3,5,8,5,9,0,"136233","Angelina DOr96 ",3,"8-8","Jane Chapple-Hyam40","Martin Dwyer",77,88,98,13.7777709960938,2,8,40,null,77,null,"angelina dor8-8",76,76,76,77,77,79,null,null,null,null,null,null,null,null,null,"wh-be-"]
[]
[null,"1615 Cork ATR"]
[null,"Follow Us On Twitter Handicap 1m100y"]
[{"$f":"ISNUMBER(FIND(\"wh-\", AO7))","v":true},"Winnings:€6,160 Runners:18 Distance:1m100y Going:Good To Firm Channel:ATR",null,null,null,null,null,null,null,null,null,null,null,null,null,null,null,"OF Strategy",null,"              Recent Form ",null,"Speed",null,null,"                  Official Ratings",null,null,null,null,null,null,"             Life Win",null,"           Year Win",null,null,"         Trends",null,null,null,null,null,null,"Course Stats (Flat Only)",null,"                    Win %",null,null,null,"                   ROI %"]
[null,"Rank","R1","R2","Total","No","Dr","sig","Form","Horse","Age","Weight","Trainer (Run To Form)","Jockey (Allowance)","OR","TS","RPR","Rating","Rank","Horse","Tr'nr","Rank","Tdy","Fut","Horse - Weight",1,2,3,4,5,"LTO","High","Low","High ","Low","Wgt","Hc","Age","Tr'nr","Jock",null,null,null,"Horse","Sire","Trainer","Jockey","Average","Sire","Trainer","Jockey","Average"]
[1,1,11,7,18,1,16,0,"025795","Avalanche20 p",9,"9-13","T J OMara50","Tom Madden5",64,73,74,40.333343505859403,1,21,50,null,64,null,"avalanche9-13",65,65,65,68,67,64,64,54,null,null,null,null,null,null,null,"wh-be-"]
[1,1,12,6,18,5,8,1,"132543","Count Of Carabass19 p",7,"9-5","Miss Hilary McLoughlin","Chris Hayes",56,66,78,29.3333435058594,2,12,null,null,56,null,"count of carabass9-5",52,57,57,58,58,56,61,50,52,52,null,null,null,null,null,"wh-be-"]
[1,3,8,7,15,16,11,1,"909149","Glib Speech28 p",7,"8-10","Rodger Sweeney","Shane Crosse7",47,63,74,13.3333435058594,7,14,null,null,47,null,"glib speech8-10",51,50,48,45,50,49,45,45,45,45,null,null,null,null,null,"wh-be-"]
[1,4,7,7,14,14,12,1,"006018","War Room12 ",9,"9-0","S M Duffy","Kevin Manning",51,55,70,5.3333435058593803,9,19,null,null,51,null,"war room9-0",51,50,40,45,45,51,45,45,45,45,null,null,null,null,null,"wh-be-"]
[1,4,6,8,14,9,1,1,"434700","Stormy Air11 tp1",4,"9-4","Denis Gerard Hogan28","Seamie Heffernan",55,50,78,12.3333435058594,8,27,28,null,55,null,"stormy air9-4",62,61,61,61,58,57,null,null,null,null,null,null,null,null,null,"wh-be-"]
[1,4,8,6,14,13,15,0,"6-1070","Marmalade N Toast34 ",3,"9-2","Patrick J Flynn33","Ben Coen7",56,31,73,-10.6666564941406,16,27,33,null,56,null,"marmalade n toast9-2",66,62,54,60,60,59,54,54,54,54,null,null,null,null,null,"wh-be-"]
[1,7,5,6,11,15,14,0,"000037","Intense Stylist23 ",5,"8-12","Albert Moriarty","Ross Coakley3",49,53,71,2.3333435058593799,10,20,null,null,49,null,"intense stylist8-12",63,62,59,56,52,50,null,null,null,null,null,null,null,null,null,"wh-be-"]
[1,7,4,7,11,3,7,1,"330046","Guanabara Bay9 b",5,"9-10","Adrian McGuinness50","Shane Foley",61,59,74,23.3333435058594,3,20,50,null,61,null,"guanabara bay9-10",66,65,65,66,65,62,65,65,null,null,null,null,null,null,null,"wh-be-"]
[1,9,5,5,10,7,13,0,"615839","No Way Jack91 tp",6,"9-4","Patrick Martin25","Killian Leonard3",55,60,73,17.3333435058594,5,20,25,null,55,null,"no way jack9-4",50,50,57,57,57,57,57,50,50,50,null,null,null,null,null,"wh-be-"]
[1,9,3,7,10,12,5,1,"364684","Bercasa11 ",3,"9-2","Thomas Mullins33","N G McCullagh",56,46,69,0.333343505859375,12,18,33,null,56,null,"bercasa9-2","-","-","-",58,59,55,null,null,null,null,null,null,null,null,null,"wh-be-"]
[1,9,4,6,10,10,10,1,"000077","Giorni Felice15 b",4,"9-3","Edward Lynam60","Conor Hoban",54,41,77,1.3333435058593801,11,24,60,null,54,null,"giorni felice9-3",72,71,68,63,66,56,null,null,null,null,null,null,null,null,null,"wh-be-"]
[1,12,4,5,9,8,18,0,"-66609","Palmones21 t",5,"9-4","M Flannery100","Ronan Whelan",55,34,77,-4.6666564941406197,14,25,100,null,55,null,"palmones9-4",75,70,68,69,64,58,71,66,null,null,null,null,null,null,null,"wh-be-"]
[1,12,5,4,9,6,17,0,"674249","Maysonette141 ",4,"9-5","Andrew Slattery36","Andrew Slattery7",56,33,78,-3.6666564941406201,13,15,36,null,56,null,"maysonette9-5",64,64,63,61,61,60,null,null,null,null,null,null,null,null,null,"wh-be-"]
[1,12,5,4,9,2,4,1,"803195","Dragon Girl28 h1",3,"9-11","S M Duffy","W J Lee",65,58,67,19.3333435058594,4,15,null,null,65,null,"dragon girl9-11",54,53,49,53,68,66,null,null,null,null,null,null,null,null,null,"wh-be-"]
[1,15,4,3,7,11,9,1,"60-800","Pirates Treasure20 ",5,"9-3","Charles Coakley","Gearoid Brouder7",54,"-",43,-25.333356494140599,18,28,null,null,54,null,"pirates treasure9-3",80,77,74,65,63,57,null,null,null,null,null,null,null,null,null,"wh-be-"]
[1,16,2,4,6,19,null,0,"55-060","War Ensign28 ",3,"8-9","J Halley",null,49,41,71,-9.6666564941406197,15,26,null,null,49,null,"war ensign8-9",null,"-","-","-",52,52,null,null,null,null,null,null,null,null,null,"wh-be-"]
[1,16,2,4,6,20,null,0,"800","Doogans Warren19 t1",3,"8-5","Michael Butler100",null,45,20,63,-42.666656494140597,21,28,100,null,45,null,"doogans warren8-5",null,null,null,"-","-","-",null,null,null,null,null,null,null,null,null,"wh-be-"]
[1,18,2,3,5,4,3,1,"-56560","Aubineau44 t",4,"9-6","John Joseph Murphy33","Colin Keane",57,57,72,15.3333435058594,6,21,33,null,57,null,"aubineau9-6","-","-",65,63,60,60,null,null,null,null,null,null,null,null,null,"wh-be-"]
[1,18,2,3,5,18,6,1,"5060","Country Market12 t",3,"8-5","John C McConnell61","Rory Cleary",45,"-",50,-27.333356494140599,19,26,61,null,45,-4,"country market8-5",null,null,"-","-","-",45,null,null,null,null,null,null,null,null,null,"wh-be-"]
[1,20,0,4,4,21,null,0,"800000","Baile An Roba29 b",5,"8-8","Francis Casey50",null,45,30,58,-37.666656494140597,20,30,50,null,45,-14,"baile an roba8-8",53,48,45,45,45,45,null,null,null,null,null,null,null,null,null,"wh-be-"]
[1,21,0,2,2,17,2,1,"800","Game Of Dreams51 ",4,"8-8","Patrick Breen","Danny Sheehy5",45,"-",59,-18.333356494140599,17,28,null,null,45,null,"game of dreams8-8",null,null,null,"-","-","-",null,null,null,null,null,null,null,null,null,"wh-be-"]
[]
[null,"1620 Salisbury RUK"]
[null,"Booker Ltd Handicap 6f"]
[{"$f":"ISNUMBER(FIND(\"wh-\", AO7))","v":true},"Winnings:£5,757 Runners:11 Distance:6f Going:Good Channel:RUK",null,null,null,null,null,null,null,null,null,null,null,null,null,null,null,"OF Strategy",null,"              Recent Form ",null,"Speed",null,null,"                  Official Ratings",null,null,null,null,null,null,"             Life Win",null,"           Year Win",null,null,"         Trends",null,null,null,null,null,null,"Course Stats (Flat Only)",null,"                    Win %",null,null,null,"                   ROI %"]
[null,"Rank","R1","R2","Total","No","Dr","sig","Form","Horse","Age","Weight","Trainer (Run To Form)","Jockey (Allowance)","OR","TS","RPR","Rating","Rank","Horse","Tr'nr","Rank","Tdy","Fut","Horse - Weight",1,2,3,4,5,"LTO","High","Low","High ","Low","Wgt","Hc","Age","Tr'nr","Jock",null,null,null,"Horse","Sire","Trainer","Jockey","Average","Sire","Trainer","Jockey","Average"]
[1,1,14,7,21,5,5,0,"511521","Beyond Equal20 ",3,"9-4","Stuart Kittow22","Fran Berry",83,87,99,8.79998779296875,3,8,22,null,83,null,"beyond equal9-4",68,66,72,81,81,81,81,66,81,66,null,null,null,null,null,"wh-be-"]
[1,2,12,8,20,2,1,1,"209-02","Smokey Lane20 ",4,"9-7","Roger Charlton69","Kieran Shoemark",85,78,97,-0.20001220703125,6,21,69,null,85,null,"smokey lane9-7",94,92,92,90,88,85,92,92,null,null,null,null,null,null,null,"wh-be-"]
[1,3,10,8,18,1,8,1,"113300","Mujassam25 b",6,"9-8","David OMeara40","Adam Kirby",86,88,101,14.7999877929688,1,23,40,null,86,null,"mujassam9-8",82,85,91,90,90,88,94,76,85,76,null,null,null,null,null,"wh-be-"]
[1,3,10,8,18,6,3,1,"361824","Blackheath18 ",3,"9-3","Ed Walker46","Liam Keniry",82,90,96,7.79998779296875,4,14,46,null,82,null,"blackheath9-3",80,79,77,81,81,82,77,77,77,77,null,null,null,null,null,"wh-be-"]
[1,5,8,8,16,4,10,1,"200124","Lightning Charlie13 ",6,"9-6","Amanda Perrett32","Jason Watson3",84,91,98,12.7999877929688,2,7,32,null,84,null,"lightning charlie9-6",81,82,81,80,84,85,86,80,80,80,null,null,null,null,null,"wh-be-"]
[1,6,7,8,15,7,2,1,"111424","Sweet Pursuit27 ",4,"9-2","Rod Millman50","Finley Marsh5",80,75,97,-8.20001220703125,7,10,50,null,80,null,"sweet pursuit9-2",62,68,73,79,80,80,73,50,73,62,null,null,null,null,null,"wh-be-"]
[1,6,7,8,15,9,9,1,"794137","Sir Roderic7 p",5,"8-9","Rod Millman50","Andrea Atzeni",73,77,97,-13.2000122070312,10,11,50,null,73,null,"sir roderic8-9",71,70,70,68,74,75,90,67,68,68,null,null,null,null,null,"wh-be-"]
[1,6,8,7,15,11,6,0,"880270","Sir Billy Wright20 p1",7,"8-7","David Evans29","Gina Mangan7",71,79,99,-11.2000122070312,8,19,29,null,71,-1,"sir billy wright8-7",83,80,77,73,74,73,83,74,null,null,null,null,null,null,null,"wh-be-"]
[1,9,5,7,12,8,7,0,"/76516","Grey Galleon33 ",4,"8-13","Clive Cox58","James Doyle",77,88,96,0.79998779296875,5,12,58,null,77,null,"grey galleon8-13",81,77,73,71,70,70,70,70,70,70,null,null,null,null,null,"wh-be-"]
[1,9,5,7,12,10,4,1,"521236","Anonymous John30 ",6,"8-8","Dominic Ffrench Davis80","J F Egan",72,79,97,-12.2000122070312,9,11,80,null,72,null,"anonymous john8-8",64,64,69,72,72,72,85,74,null,null,null,null,null,null,null,"wh-be-"]
[1,11,4,3,7,3,11,1,"114-","Mutanaaseq417 t1",3,"9-6","Richard Hannon55","Jim Crowley",85,47,"-",null,null,6,55,null,85,null,"mutanaaseq9-6",null,null,null,"-","-",86,null,null,null,null,null,null,null,null,null,"wh-be-"]
[]
[null,"1630 Bangor-on-Dee RUK"]
[null,"This Is Wrexham Handicap Hurdle 2m145y"]
[{"$f":"ISNUMBER(FIND(\"wh-\", AO7))","v":true},"Winnings:£4,094 Runners:8 Distance:2m145y Going:Good Channel:RUK",null,null,null,null,null,null,null,null,null,null,null,null,null,null,null,"OF Strategy",null,"              Recent Form ",null,"Speed",null,null,"                  Official Ratings",null,null,null,null,null,null,"             Life Win",null,"           Year Win",null,null,"         Trends",null,null,null,null,null,null,"Course Stats (Flat Only)",null,"                    Win %",null,null,null,"                   ROI %"]
[null,"Rank","R1","R2","Total","No","Dr","sig","Form","Horse","Age","Weight","Trainer (Run To Form)","Jockey (Allowance)","OR","TS","RPR","Rating","Rank","Horse","Tr'nr","Rank","Tdy","Fut","Horse - Weight",1,2,3,4,5,"LTO","High","Low","High ","Low","Wgt","Hc","Age","Tr'nr","Jock",null,null,null,"Horse","Sire","Trainer","Jockey","Average","Sire","Trainer","Jockey","Average"]
[1,1,10,6,16,1,null,0,"211F-2","Lovato29 p",6,"11-12","Dr Richard Newland100","Sam Twiston-Davies",120,96,123,4.125,3,13,100,null,120,null,"lovato11-12","-","-",115,118,125,120,null,null,null,null,null,null,null,null,null,"wh-be-"]
[1,2,7,8,15,7,null,0,"-31213","Tamarillo Grove36 t",11,"11-2","Sophie Leech70","Sean Houlihan5",110,107,123,5.125,2,6,70,null,110,null,"tamarillo grove11-2",98,97,96,103,104,110,122,90,104,96,null,null,null,null,null,"wh-be-"]
[1,3,8,6,14,6,null,0,"421532","Red Hot Chilly22 ",5,"11-3","Fergal OBrien29","Paddy Brennan",111,106,121,3.125,5,10,29,null,111,null,"red hot chilly11-3",103,103,106,110,110,110,106,106,106,106,null,null,null,null,null,"wh-be-"]
[1,3,7,7,14,4,null,0,"U54-1","Fields Of Fortune59  ",4,"11-9","Alan King61","Wayne Hutchinson",117,70,118,-29.875,8,10,61,null,117,null,"fields of fortune11-9",null,null,"-","-","-","-",null,null,null,null,null,null,null,null,null,"wh-be-"]
[1,5,6,6,12,3,null,0,"21-241","Stepover31 t",7,"11-11","Alex Hales100","Lorcan Williams7",119,100,120,4.125,3,7,100,null,119,null,"stepover11-11",102,105,108,111,113,113,113,92,113,108,null,null,null,null,null,"wh-be-"]
[1,6,6,5,11,5,null,0,"34584-","Quids In208  t",5,"11-7","Donald McCain43","Brian Hughes",115,115,129,24.125,1,17,43,null,115,null,"quids in11-7",119,121,121,120,119,118,null,null,null,null,null,null,null,null,null,"wh-be-"]
[1,7,6,4,10,2,null,0,"1348-","American Craftsman192 p",4,"11-12","Henry Oliver","Jeremiah McGrath",120,93,121,-0.875,6,15,null,null,120,null,"american craftsman11-12",null,null,"-","-","-",125,null,null,null,null,null,null,null,null,null,"wh-be-"]
[1,8,2,3,5,8,null,0,"625-89","Outcrop96  ",4,"10-5","Jennie Candlish25","Sean Quinlan",99,107,119,-9.875,7,22,25,null,99,null,"outcrop10-5","-","-","-",112,110,103,null,null,null,null,null,null,null,null,null,"wh-be-"]
[]
[null,"1640 Nottingham RUK"]
[null,"Georges Great British Kitchen Handicap (The Jockey Club Grassroots Stayers Distance Series Final) 1m6f"]
[{"$f":"ISNUMBER(FIND(\"wh-\", AO7))","v":true},"Winnings:£15,563 Runners:16 Distance:1m6f Going:Good Channel:RUK",null,null,null,null,null,null,null,null,null,null,null,null,null,null,null,"OF Strategy",null,"              Recent Form ",null,"Speed",null,null,"                  Official Ratings",null,null,null,null,null,null,"             Life Win",null,"           Year Win",null,null,"         Trends",null,null,null,null,null,null,"Course Stats (Flat Only)",null,"                    Win %",null,null,null,"                   ROI %"]
[null,"Rank","R1","R2","Total","No","Dr","sig","Form","Horse","Age","Weight","Trainer (Run To Form)","Jockey (Allowance)","OR","TS","RPR","Rating","Rank","Horse","Tr'nr","Rank","Tdy","Fut","Horse - Weight",1,2,3,4,5,"LTO","High","Low","High ","Low","Wgt","Hc","Age","Tr'nr","Jock",null,null,null,"Horse","Sire","Trainer","Jockey","Average","Sire","Trainer","Jockey","Average"]
[1,1,11,8,19,2,15,0,"112536","Paddy A11 v",4,"9-2","Ian Williams68","Gabriele Malune5",75,70,94,8.7208251953125,4,14,68,null,75,null,"paddy a9-2",68,73,78,78,78,76,73,68,73,68,null,null,null,null,null,"wh-be-"]
[1,1,12,7,19,12,10,0,"8-9114","Burn Some Dust26 ",3,"8-3","Brian Ellison53","Josephine Gordon",69,76,93,7.7208251953125,6,6,53,null,69,null,"burn some dust8-3",57,62,62,61,66,69,66,57,66,57,null,null,null,null,null,"wh-be-"]
[1,3,10,7,17,3,1,1,"184313","Nibras Galaxy26 b",3,"9-0","Ismail Mohammed63","Oisin Murphy",80,68,89,6.7208251953125,7,7,63,null,80,null,"nibras galaxy9-0",70,76,75,74,74,77,74,70,74,70,null,null,null,null,null,"wh-be-"]
[1,4,8,8,16,13,5,1,"3-7415","Up Ten Down Two24 ",9,"8-2","Michael Easterby30","Nathan Evans",61,62,93,-14.2791748046875,13,10,30,null,61,null,"up ten down two8-2",67,65,65,59,64,61,null,null,null,null,null,null,null,null,null,"wh-be-"]
[1,4,8,8,16,8,8,0,"152551","Fitzwilly26 ",8,"8-9","Mick Channon49","Silvestre De Sousa",68,82,92,11.7208251953125,3,11,49,null,68,null,"fitzwilly8-9",62,68,66,66,66,66,72,50,62,62,null,null,null,null,null,"wh-be-"]
[1,6,7,8,15,9,6,0,"412435","Sassie21 ",3,"8-6","Sylvester Kirk57","Edward Greatrex",72,72,95,8.7208251953125,4,12,57,null,72,null,"sassie8-6",71,70,74,76,76,74,70,70,70,70,null,null,null,null,null,"wh-be-"]
[1,7,7,7,14,1,3,1,"130623","New Society11 ",4,"9-10","James Bethell56","Clifford Lee3",83,84,92,28.7208251953125,1,11,56,null,83,null,"new society9-10",77,87,86,83,82,83,77,62,77,72,null,null,null,null,null,"wh-be-"]
[1,7,6,8,14,16,4,1,"524272","Affair15 ",4,"8-0","Hughie Morrison69","Paddy Mathers",59,68,88,-15.2791748046875,14,11,69,null,59,-5,"affair8-0",54,53,53,53,54,54,52,49,52,52,null,null,null,null,null,"wh-be-"]
[1,7,8,6,14,6,9,0,"0151-0","Incus50 ",5,"8-9","Ed de Giles67","Callum Shepherd",68,77,90,4.7208251953125,9,16,67,null,68,null,"incus8-9",59,60,59,65,64,68,64,51,64,64,null,null,null,null,null,"wh-be-"]
[1,10,7,6,13,5,12,0,"415226","Navajo Star11 ",4,"8-13","Robyn Brisland38","Shane Kelly",72,72,91,4.7208251953125,9,10,38,null,72,null,"navajo star8-13",68,68,73,71,71,73,68,68,68,68,null,null,null,null,null,"wh-be-"]
[1,11,4,8,12,10,2,1,"640735","Sheriff Garrett83  ",4,"8-6","Tim Easterby44","Paul Hanagan",65,77,94,5.7208251953125,8,15,44,null,65,null,"sheriff garrett8-6",72,71,70,69,67,67,null,null,null,null,null,null,null,null,null,"wh-be-"]
[1,11,5,7,12,7,16,0,"455634","Graceful Lady13 ",5,"8-9","Robert Eddery44","Darragh Keenan5",68,88,93,18.7208251953125,2,13,44,null,68,null,"graceful lady8-9",74,74,72,71,69,69,70,58,null,null,null,null,null,null,null,"wh-be-"]
[1,13,5,6,11,14,11,0,"0-0080","Haroon22 ",4,"8-0","Michael Appleby37","R P Walsh7",59,74,99,1.7208251953125,11,28,37,null,59,-2,"haroon8-0",72,72,72,68,65,65,null,null,null,null,null,null,null,null,null,"wh-be-"]
[1,14,3,7,10,11,14,0,"0336","Carnwennan26 ",3,"8-6","Charlie Fellowes60","David Egan",72,54,88,-16.2791748046875,15,12,60,null,72,null,"carnwennan8-6",null,null,"-","-","-",72,null,null,null,null,null,null,null,null,null,"wh-be-"]
[1,14,4,6,10,15,13,0,"3240-8","Thomas Blossom26 tp",8,"8-0","Ali Stronge","Hollie Doyle",59,"-",89,-12.812474804687501,12,22,null,null,59,-3,"thomas blossom8-0",60,64,64,63,62,64,46,46,null,null,null,null,null,null,null,"wh-be-"]
[1,16,2,4,6,4,7,0,"06-862","Takbeer74 p",6,"8-13","Nikki Evans","Richard Kingscote",72,18,91,-49.2791748046875,16,16,null,null,72,null,"takbeer8-13",74,74,74,73,71,69,71,71,null,null,null,null,null,null,null,"wh-be-"]
[]
[null,"1645 Cork ATR"]
[null,"Irish Stallion Farms EBF Fillies Maiden 1m4f"]
[{"$f":"ISNUMBER(FIND(\"wh-\", AO7))","v":true},"Winnings:€8,932 Runners:11 Distance:1m4f Going:Good To Firm Channel:ATR",null,null,null,null,null,null,null,null,null,null,null,null,null,null,null,"OF Strategy",null,"              Recent Form ",null,"Speed",null,null,"                  Official Ratings",null,null,null,null,null,null,"             Life Win",null,"           Year Win",null,null,"         Trends",null,null,null,null,null,null,"Course Stats (Flat Only)",null,"                    Win %",null,null,null,"                   ROI %"]
[null,"Rank","R1","R2","Total","No","Dr","sig","Form","Horse","Age","Weight","Trainer (Run To Form)","Jockey (Allowance)","OR","TS","RPR","Rating","Rank","Horse","Tr'nr","Rank","Tdy","Fut","Horse - Weight",1,2,3,4,5,"LTO","High","Low","High ","Low","Wgt","Hc","Age","Tr'nr","Jock",null,null,null,"Horse","Sire","Trainer","Jockey","Average","Sire","Trainer","Jockey","Average"]
[1,1,8,8,16,8,8,0,"234835","Queen Iseult19 ",3,"9-0","A P OBrien67","Seamie Heffernan",72,81,87,56.6222534179688,1,16,67,null,72,null,"queen iseult9-0",75,75,75,75,75,73,null,null,null,null,null,null,null,null,null,"wh-be-"]
[1,2,6,8,14,4,6,0,"332844","City Ballerina30 ",3,"9-0","Mrs John Harrington54","Colm ODonoghue",75,60,90,41.6222534179688,2,16,54,null,75,null,"city ballerina9-0","-","-",76,78,77,77,null,null,null,null,null,null,null,null,null,"wh-be-"]
[1,3,3,6,9,3,10,0,"334","Chateau La Fleur15 v",3,"9-0","D K Weld35","Declan McDonogh",70,54,76,16.6222534179688,4,10,35,null,70,null,"chateau la fleur9-0",null,null,null,"-","-","-",null,null,null,null,null,null,null,null,null,"wh-be-"]
[1,3,5,4,9,2,7,0,"2","True Self90 ",5,"9-6","W P Mullins62","Colin Keane","-",19,85,-7.0444465820312399,6,22,62,null,"-",null,"true self9-6",null,null,null,null,null,"-",null,null,null,null,null,null,null,null,null,"wh-be-"]
[1,3,4,5,9,1,11,0,"62","Backsheesh20 ",4,"9-6","Thomas Mullins33","Shane Foley","-",55,80,23.955553417968801,3,18,33,null,"-",null,"backsheesh9-6",null,null,null,null,"-","-",null,null,null,null,null,null,null,null,null,"wh-be-"]
[1,6,2,4,6,6,3,0,"95","Lost Comet15 ",3,"9-0","John M Oxx33","N G McCullagh","-",34,68,-9.0444465820312399,7,24,33,null,"-",null,"lost comet9-0",null,null,null,null,"-","-",null,null,null,null,null,null,null,null,null,"wh-be-"]
[1,6,2,4,6,9,9,0,"40","Seekamist20 ",3,"9-0","D K Weld35","Conor Hoban","-",32,56,-23.044446582031199,8,24,35,null,"-",null,"seekamist9-0",null,null,null,null,"-","-",null,null,null,null,null,null,null,null,null,"wh-be-"]
[1,6,2,4,6,10,5,0,"0000","Sweet Cassie20 ",3,"9-0","Mrs Maureen Danagher","Killian Leonard3","-",9,38,-64.044446582031298,10,30,null,null,"-",null,"sweet cassie9-0",null,null,"-","-","-","-",null,null,null,null,null,null,null,null,null,"wh-be-"]
[1,9,0,5,5,5,4,0,"5","Gallitea34 ",3,"9-0","J S Bolger43","Kevin Manning","-",47,74,9.9555534179687601,5,25,43,null,"-",null,"gallitea9-0",null,null,null,null,null,"-",null,null,null,null,null,null,null,null,null,"wh-be-"]
[1,10,0,2,2,7,2,0,"0","Paulas Prayer30 ",3,"9-0","Conor ODwyer20","Gary Halpin","-","-",22,-45.600046582031197,9,30,20,null,"-",null,"paulas prayer9-0",null,null,null,null,null,"-",null,null,null,null,null,null,null,null,null,"wh-be-"]
[1,11,0,1,1,11,1,0,null,"Tipitena ",3,"9-0","W McCreery37","W J Lee","-","-","-",null,null,30,37,null,"-",null,"tipitena9-0",null,null,null,null,null,null,null,null,null,null,null,null,null,null,null,"wh-be-"]
[]
[null,"1655 Salisbury RUK"]
[null,"Weatherbys General Stud Book Handicap 6f"]
[{"$f":"ISNUMBER(FIND(\"wh-\", AO7))","v":true},"Winnings:£12,938 Runners:8 Distance:6f Going:Good Channel:RUK",null,null,null,null,null,null,null,null,null,null,null,null,null,null,null,"OF Strategy",null,"              Recent Form ",null,"Speed",null,null,"                  Official Ratings",null,null,null,null,null,null,"             Life Win",null,"           Year Win",null,null,"         Trends",null,null,null,null,null,null,"Course Stats (Flat Only)",null,"                    Win %",null,null,null,"                   ROI %"]
[null,"Rank","R1","R2","Total","No","Dr","sig","Form","Horse","Age","Weight","Trainer (Run To Form)","Jockey (Allowance)","OR","TS","RPR","Rating","Rank","Horse","Tr'nr","Rank","Tdy","Fut","Horse - Weight",1,2,3,4,5,"LTO","High","Low","High ","Low","Wgt","Hc","Age","Tr'nr","Jock",null,null,null,"Horse","Sire","Trainer","Jockey","Average","Sire","Trainer","Jockey","Average"]
[1,1,9,8,17,3,2,0,"727060","Pettochside32 ",9,"9-3","John Bridger22","Kieran ONeill",91,103,111,17,1,26,22,null,91,null,"pettochside9-3",95,95,95,95,94,94,91,61,91,85,null,null,null,null,null,"wh-be-"]
[1,1,10,7,17,5,1,0,"721031","Hart Stopper26 t",4,"9-0","Stuart Williams48","Jamie Spencer",88,96,108,4,3,14,48,null,88,null,"hart stopper9-0",82,81,83,85,84,84,84,70,84,83,null,null,null,null,null,"wh-be-"]
[1,1,9,8,17,2,7,0,"621210","Rogue46 ",3,"9-4","Richard Hannon55","Thore Hammer Hansen7",93,87,105,-3,5,13,55,null,93,null,"rogue9-4",83,80,83,88,88,94,88,79,88,83,null,null,null,null,null,"wh-be-"]
[1,4,9,7,16,7,8,0,"/02000","Louie De Palma11 ",6,"9-0","Clive Cox58","James Doyle",88,75,112,-13,8,30,58,null,88,null,"louie de palma9-0","-",92,92,92,91,91,79,79,null,null,null,null,null,null,null,"wh-be-"]
[1,5,8,7,15,1,5,0,"813100","Summerghand11 ",4,"9-10","David OMeara40","Harry Bentley",98,84,109,3,4,21,40,null,98,null,"summerghand9-10",95,94,95,95,100,100,95,73,95,84,null,null,null,null,null,"wh-be-"]
[1,6,8,6,14,8,4,0,"332352","Bungee Jump18 ",3,"8-12","Grace Harris50","Cameron Noble5",87,89,107,-5,6,10,50,null,87,null,"bungee jump8-12",86,86,86,88,88,87,80,80,80,80,null,null,null,null,null,"wh-be-"]
[1,7,6,7,13,6,6,0,"472964","Helvetian9 ",3,"9-0","Mick Channon49","Andrea Atzeni",89,100,107,8,2,19,49,null,89,null,"helvetian9-0",93,92,91,91,90,89,null,null,null,null,null,null,null,null,null,"wh-be-"]
[1,8,6,6,12,4,3,0,"548022","Charles Molson11 ",7,"9-0","Patrick Chamings43","Daniel Muscutt",88,81,108,-11,7,14,43,null,88,null,"charles molson9-0",91,90,90,89,96,97,87,87,null,null,null,null,null,null,null,"wh-be-"]
[]
[null,"1705 Bangor-on-Dee RUK"]
[null,"Order Horses To Follow @timeform.com Handicap Chase 2m4f72y"]
[{"$f":"ISNUMBER(FIND(\"wh-\", AO7))","v":true},"Winnings:£3,509 Runners:9 Distance:2m4f72y Going:Good Channel:RUK",null,null,null,null,null,null,null,null,null,null,null,null,null,null,null,"OF Strategy",null,"              Recent Form ",null,"Speed",null,null,"                  Official Ratings",null,null,null,null,null,null,"             Life Win",null,"           Year Win",null,null,"         Trends",null,null,null,null,null,null,"Course Stats (Flat Only)",null,"                    Win %",null,null,null,"                   ROI %"]
[null,"Rank","R1","R2","Total","No","Dr","sig","Form","Horse","Age","Weight","Trainer (Run To Form)","Jockey (Allowance)","OR","TS","RPR","Rating","Rank","Horse","Tr'nr","Rank","Tdy","Fut","Horse - Weight",1,2,3,4,5,"LTO","High","Low","High ","Low","Wgt","Hc","Age","Tr'nr","Jock",null,null,null,"Horse","Sire","Trainer","Jockey","Average","Sire","Trainer","Jockey","Average"]
[1,1,7,7,14,4,null,0,"8/3430","Vif Argent16 ht1",9,"11-5","Dave Roberts100","Lee Edwards",86,76,102,13.7142944335938,4,17,100,null,86,null,"vif argent11-5",109,105,96,94,92,89,117,117,null,null,null,null,null,null,null,"wh-be-"]
[1,2,3,7,10,2,null,0,"1P5335","Code Of Law24 p",8,"11-8","Neil Mulholland40","Robert Dunne",89,89,97,24.7142944335938,2,11,40,null,89,null,"code of law11-8",92,100,100,96,96,92,92,89,92,92,null,null,null,null,null,"wh-be-"]
[1,3,4,5,9,6,null,0,"713751","Grow Nasa Grow46 ",7,"11-1","Peter Winks100","Ryan Winks5",82,90,101,22.7142944335938,3,13,100,null,82,null,"grow nasa grow11-1",77,76,79,79,79,79,79,76,79,76,null,null,null,null,null,"wh-be-"]
[1,3,4,5,9,1,null,0,"187006","Aylas Emperor16 p",9,"12-7","John Flint17","Jamie Moore",102,"-",33,-39.000005566406301,9,26,17,null,102,null,"aylas emperor12-7",104,110,109,108,107,105,null,null,null,null,null,null,null,null,null,"wh-be-"]
[1,5,4,4,8,7,null,0,"-56274","Diplomatico31 t",5,"11-0","David Bridgwater29","Daniel Hiskett5",81,78,102,10.7142944335938,5,13,29,null,81,null,"diplomatico11-0","-",84,82,81,83,83,null,null,null,null,null,null,null,null,null,"wh-be-"]
[1,6,4,3,7,3,null,0,"66629-","Beau Sancy163 tp1",6,"11-7","Olly Murphy50","Gavin Sheehan",88,51,102,-9.28570556640625,6,17,50,null,88,null,"beau sancy11-7",103,99,99,85,85,85,null,null,null,null,null,null,null,null,null,"wh-be-"]
[1,6,3,4,7,8,null,0,"PP25-9","Shows Over91 tv",7,"10-13","Fergal OBrien29","Connor Brace10",80,98,101,28.7142944335938,1,16,29,null,80,null,"shows over10-13",86,84,82,80,82,82,83,77,null,null,null,null,null,null,null,"wh-be-"]
[1,8,3,2,5,9,null,0,"3/56PP","Rule The Ocean91 p1",8,"10-4","Matt Sheppard67","Hugh Nugent7",71,52,105,-22.2857055664062,7,26,67,null,71,null,"rule the ocean10-4","-","-",89,86,81,76,null,null,null,null,null,null,null,null,null,"wh-be-"]
[1,9,0,2,2,5,null,0,"4490/6","Mount Russell31 ",8,"11-3","Henry Oliver","James Davies",84,"-",60,-30.000005566406301,8,25,null,null,84,null,"mount russell11-3","-","-",100,97,94,87,null,null,null,null,null,null,null,null,null,"wh-be-"]
[]
[null,"1715 Nottingham RUK"]
[null,"Creative Finance For Business CF Capital PLC Handicap 5f8y"]
[{"$f":"ISNUMBER(FIND(\"wh-\", AO7))","v":true},"Winnings:£3,881 Runners:14 Distance:5f8y Going:Good Channel:RUK",null,null,null,null,null,null,null,null,null,null,null,null,null,null,null,"OF Strategy",null,"              Recent Form ",null,"Speed",null,null,"                  Official Ratings",null,null,null,null,null,null,"             Life Win",null,"           Year Win",null,null,"         Trends",null,null,null,null,null,null,"Course Stats (Flat Only)",null,"                    Win %",null,null,null,"                   ROI %"]
[null,"Rank","R1","R2","Total","No","Dr","sig","Form","Horse","Age","Weight","Trainer (Run To Form)","Jockey (Allowance)","OR","TS","RPR","Rating","Rank","Horse","Tr'nr","Rank","Tdy","Fut","Horse - Weight",1,2,3,4,5,"LTO","High","Low","High ","Low","Wgt","Hc","Age","Tr'nr","Jock",null,null,null,"Horse","Sire","Trainer","Jockey","Average","Sire","Trainer","Jockey","Average"]
[1,1,13,7,20,1,5,1,"326111","Captain Lars7 b",9,"9-9","Archie Watson61","Edward Greatrex",77,85,92,15.7142791748047,1,3,61,null,77,5,"captain lars9-9",82,81,81,66,72,77,77,66,77,66,null,null,null,null,null,"wh-be-"]
[1,2,10,8,18,4,4,1,"928147","Tallinski21 b",4,"9-7","Brian Ellison53","Ben Robinson3",75,79,88,3.7142791748046902,5,12,53,null,75,null,"tallinski9-7",76,73,73,72,78,76,77,72,72,72,null,null,null,null,null,"wh-be-"]
[1,2,11,7,18,7,8,0,"1-6005","Ebitda15 ",4,"9-5","Scott Dixon44","Theodore Ladd5",73,81,90,5.7142791748046902,4,25,44,null,73,null,"ebitda9-5",67,73,78,78,76,75,73,46,73,67,null,null,null,null,null,"wh-be-"]
[1,2,10,8,18,8,2,1,"366124","Musharrif5 ",6,"9-4","Declan Carroll52","Jason Hart",72,79,87,-0.285720825195312,10,7,52,null,72,null,"musharrif9-4",69,69,68,67,70,70,75,67,67,67,null,null,null,null,null,"wh-be-"]
[1,5,9,8,17,13,7,0,"242878","Foxtrot Knight14 ",6,"8-13","Ruth Carr32","Jane Elliott3",67,87,92,7.7142791748046902,3,23,32,null,67,null,"foxtrot knight8-13",75,75,73,73,72,70,77,60,68,68,null,null,null,null,null,"wh-be-"]
[1,6,9,7,16,3,9,0,"131773","Tan4 ",4,"9-7","Michael Appleby37","Alistair Rawlinson",75,78,88,2.7142791748046902,7,17,37,null,75,null,"tan9-7",62,68,69,77,77,75,69,null,69,62,null,null,null,null,null,"wh-be-"]
[1,7,7,8,15,12,10,1,"36-565","Swing Out Sister28 ",3,"8-13","Clive Cox58","Hollie Doyle",67,92,91,11.7142791748047,2,16,58,null,67,null,"swing out sister8-13",74,75,75,74,73,70,null,null,null,null,null,null,null,null,null,"wh-be-"]
[1,7,8,7,15,5,3,1,"935181","Nibras Again18 ",4,"9-6","Ismail Mohammed63","Silvestre De Sousa",74,77,88,0.71427917480468806,9,10,63,null,74,null,"nibras again9-6",68,67,67,65,73,72,72,65,72,65,null,null,null,null,null,"wh-be-"]
[1,9,7,7,14,6,12,1,"215R68","King Crimson16 t",6,"9-6","John Butler33","Tim Clark3",74,75,89,-0.285720825195312,10,24,33,null,74,null,"king crimson9-6",68,72,76,76,76,75,80,65,72,65,null,null,null,null,null,"wh-be-"]
[1,10,5,8,13,9,11,1,"-41363","Maygold33 ",3,"9-2","Ed Walker46","Oisin Murphy",70,82,89,2.7142791748046902,7,12,46,null,70,null,"maygold9-2",64,67,67,72,71,71,67,67,67,67,null,null,null,null,null,"wh-be-"]
[1,11,7,5,12,14,13,1,"-31430","Sky Gypsy14 ",4,"8-13","David Brown29","Richard Kingscote",67,42,87,-42.285720825195298,14,17,29,null,67,null,"sky gypsy8-13",65,60,60,68,68,68,null,null,null,null,null,null,null,null,null,"wh-be-"]
[1,12,5,6,11,11,6,0,"911530","Bomad32 v",3,"9-0","Derek Shaw38","Paddy Mathers",68,77,87,-6.2857208251953098,13,18,38,null,68,null,"bomad9-0",63,61,65,70,70,69,61,61,61,61,null,null,null,null,null,"wh-be-"]
[1,12,4,7,11,10,14,1,"667745","Belledesert2 tp",5,"9-0","Steph Hollinshead20","Toby Eley7",68,81,84,-5.2857208251953098,12,16,20,null,68,null,"belledesert9-0",79,77,77,73,69,68,80,65,null,null,null,null,null,null,null,"wh-be-"]
[1,14,3,6,9,2,1,1,"486003","Algam7 v",3,"9-7","Luke McJannet100","Darragh Keenan5",75,81,86,3.7142791748046902,5,23,100,null,75,-1,"algam9-7",88,86,86,83,79,75,null,null,null,null,null,null,null,null,null,"wh-be-"]
[]
[null,"1720 Cork ATR"]
[null,"Buy Online And Save On Admission Tickets Handicap 1m4f"]
[{"$f":"ISNUMBER(FIND(\"wh-\", AO7))","v":true},"Winnings:€6,160 Runners:18 Distance:1m4f Going:Good To Firm Channel:ATR",null,null,null,null,null,null,null,null,null,null,null,null,null,null,null,"OF Strategy",null,"              Recent Form ",null,"Speed",null,null,"                  Official Ratings",null,null,null,null,null,null,"             Life Win",null,"           Year Win",null,null,"         Trends",null,null,null,null,null,null,"Course Stats (Flat Only)",null,"                    Win %",null,null,null,"                   ROI %"]
[null,"Rank","R1","R2","Total","No","Dr","sig","Form","Horse","Age","Weight","Trainer (Run To Form)","Jockey (Allowance)","OR","TS","RPR","Rating","Rank","Horse","Tr'nr","Rank","Tdy","Fut","Horse - Weight",1,2,3,4,5,"LTO","High","Low","High ","Low","Wgt","Hc","Age","Tr'nr","Jock",null,null,null,"Horse","Sire","Trainer","Jockey","Average","Sire","Trainer","Jockey","Average"]
[1,1,10,7,17,5,10,0,"452221","Universal Focus29 b",5,"9-9","Ross OSullivan","Shane Foley",60,64,67,12.6000061035156,5,5,null,null,60,null,"universal focus9-9",55,55,54,55,56,58,58,48,58,58,null,null,null,null,null,"wh-be-"]
[1,1,10,7,17,1,7,0,"131061","Schoolboy Error5 ",5,"10-5","Shane Nolan33","Chris Hayes",70,53,70,14.6000061035156,4,17,33,null,70,-6,"schoolboy error10-5",57,63,63,67,66,64,63,63,63,63,null,null,null,null,null,"wh-be-"]
[1,3,7,7,14,6,16,0,"165100","Nulife12 b",6,"9-8","Denis Gerard Hogan28","Killian Leonard3",59,48,72,0.600006103515625,10,21,28,null,59,null,"nulife9-8",52,57,57,56,64,60,56,56,56,56,null,null,null,null,null,"wh-be-"]
[1,3,6,8,14,2,8,0,"0900-2","Bay Hill33  p",7,"9-13","Padraig Roche71","Andrew Slattery7",64,65,65,15.6000061035156,2,22,71,null,64,null,"bay hill9-13",71,71,70,68,66,62,66,54,null,null,null,null,null,null,null,"wh-be-"]
[1,3,8,6,14,3,5,2,"33-828","Acclamatio21 t",4,"9-10","A J Martin67","Robbie Colgan",61,45,73,0.600006103515625,10,18,67,null,61,null,"acclamatio9-10",55,66,66,62,60,62,55,55,null,null,null,null,null,null,null,"wh-be-"]
[1,6,7,6,13,7,14,0,"504234","Sleepy Head12 h",5,"9-8","Patrick J Flynn33","Ben Coen7",59,62,73,15.6000061035156,2,9,33,null,59,null,"sleepy head9-8",65,65,63,61,61,59,53,53,null,null,null,null,null,null,null,"wh-be-"]
[1,6,7,6,13,4,6,2,"252103","Match My Fire26 tb",5,"9-10","John C McConnell61","Robbie Downey",61,64,70,16.6000061035156,1,14,61,null,61,null,"match my fire9-10",56,59,59,58,63,61,58,58,58,58,null,null,null,null,null,"wh-be-"]
[1,8,7,5,12,18,11,0,"462050","Highway To Heaven12 ",3,"8-8","T G McCourt50","Danny Sheehy5",51,54,73,-0.399993896484375,12,25,50,null,51,null,"highway to heaven8-8",61,59,58,57,57,53,null,null,null,null,null,null,null,null,null,"wh-be-"]
[1,9,4,7,11,16,13,0,"954006","Greanta19 ",7,"8-11","Thomas Cleary","Rory Cleary",48,51,69,-10.3999938964844,15,26,null,null,48,null,"greanta8-11",47,50,45,45,45,55,57,54,null,null,null,null,null,null,null,"wh-be-"]
[1,10,5,5,10,14,17,0,"806402","Miraculum25 ",3,"8-12","J S Bolger43","Willie Byrne7",55,41,71,-11.3999938964844,16,16,43,null,55,null,"miraculum8-12","-","-",61,58,58,55,null,null,null,null,null,null,null,null,null,"wh-be-"]
[1,10,5,5,10,10,12,0,"54-083","Realtin Geal11 t",3,"9-1","J S Bolger43","Kevin Manning",58,54,72,5.6000061035156197,8,21,43,null,58,null,"realtin geal9-1","-",69,67,62,61,57,null,null,null,null,null,null,null,null,null,"wh-be-"]
[1,12,3,6,9,21,null,0,"320070","Thomas OMalley59 t",4,"9-12","J R Finn",null,63,41,71,-3.3999938964843799,13,27,null,null,63,null,"thomas omalley9-12",73,73,74,74,71,68,null,null,null,null,null,null,null,null,null,"wh-be-"]
[1,13,3,5,8,13,15,0,"053250","Remembered Joy29 b",4,"8-13","Edward P Harty","W J Lee",50,63,71,5.6000061035156197,8,17,null,null,50,null,"remembered joy8-13",56,56,50,50,56,52,null,null,null,null,null,null,null,null,null,"wh-be-"]
[1,13,4,4,8,15,4,2,"00-652","Carols Return26 ",3,"8-11","William Durkan","Shane Crosse7",54,28,69,-27.3999938964844,20,13,null,null,54,null,"carols return8-11","-","-","-","-",54,52,null,null,null,null,null,null,null,null,null,"wh-be-"]
[1,15,3,4,7,17,9,0,"900-51","Jake Peter46 ",4,"8-11","Patrick J Flynn33","Gary Halpin",48,47,69,-14.3999938964844,18,16,33,null,48,null,"jake peter8-11",null,"-","-","-",46,45,45,45,45,45,null,null,null,null,null,"wh-be-"]
[1,15,2,5,7,8,18,0,"9090-0","Shoofly142 ",5,"9-5","Denis Gerard Hogan28","Seamie Heffernan",56,65,65,7.6000061035156197,6,29,28,null,56,null,"shoofly9-5",65,65,65,64,63,60,null,null,null,null,null,null,null,null,null,"wh-be-"]
[1,15,2,5,7,9,2,2,"9-08U7","Maid In Manhattan19 t",4,"9-4","A J Martin67","Oisin Orr3",55,51,68,-4.3999938964843803,14,25,67,null,55,null,"maid in manhattan9-4","-","-",62,60,58,58,null,null,null,null,null,null,null,null,null,"wh-be-"]
[1,18,2,4,6,12,3,2,"40-070","My Amazing One28 ",4,"9-0","T J OMara50","Wayne Lordan",51,48,61,-18.3999938964844,19,27,50,null,51,null,"my amazing one9-0","-","-",69,62,61,57,null,null,null,null,null,null,null,null,null,"wh-be-"]
[1,19,0,5,5,11,1,2,"08-009","Johnny Carney56 ",4,"9-0","Gavin Cromwell46","Ronan Whelan",51,49,66,-12.3999938964844,17,29,46,null,51,null,"johnny carney9-0","-","-","-",61,60,57,null,null,null,null,null,null,null,null,null,"wh-be-"]
[1,19,2,3,5,20,null,0,"060-96","Clementina142  ",5,"9-3","A J Martin67","Colin Keane",54,60,72,7.6000061035156197,6,25,67,null,54,null,"clementina9-3","-","-",68,66,61,59,null,null,null,null,null,null,null,null,null,"wh-be-"]
[1,21,0,2,2,19,null,0,"/8700-","Typhoon Rising454 t",4,"8-10","Thomas Foley50",null,47,"-","-",null,null,27,50,null,47,null,"typhoon rising8-10",null,"-","-","-",60,57,null,null,null,null,null,null,null,null,null,"wh-be-"]
[]
[null,"1725 Salisbury RUK"]
[null,"Quantuma \"Season Finale\" Handicap 5f"]
[{"$f":"ISNUMBER(FIND(\"wh-\", AO7))","v":true},"Winnings:£5,757 Runners:9 Distance:5f Going:Good Channel:RUK",null,null,null,null,null,null,null,null,null,null,null,null,null,null,null,"OF Strategy",null,"              Recent Form ",null,"Speed",null,null,"                  Official Ratings",null,null,null,null,null,null,"             Life Win",null,"           Year Win",null,null,"         Trends",null,null,null,null,null,null,"Course Stats (Flat Only)",null,"                    Win %",null,null,null,"                   ROI %"]
[null,"Rank","R1","R2","Total","No","Dr","sig","Form","Horse","Age","Weight","Trainer (Run To Form)","Jockey (Allowance)","OR","TS","RPR","Rating","Rank","Horse","Tr'nr","Rank","Tdy","Fut","Horse - Weight",1,2,3,4,5,"LTO","High","Low","High ","Low","Wgt","Hc","Age","Tr'nr","Jock",null,null,null,"Horse","Sire","Trainer","Jockey","Average","Sire","Trainer","Jockey","Average"]
[1,1,13,9,22,3,9,1,"412040","Rio Ronaldo20 ",6,"9-6","Mike Murphy100","Andrea Atzeni",84,86,101,9.22222900390625,2,24,100,null,84,null,"rio ronaldo9-6",78,78,84,87,86,85,81,76,78,78,null,null,null,null,null,"wh-be-"]
[1,2,12,8,20,1,6,0,"611207","Waseem Faris25 ",9,"9-8","Ken Cunningham-Brown","Finley Marsh5",86,82,99,5.22222900390625,3,19,null,null,86,null,"waseem faris9-8",75,73,80,86,89,88,84,73,80,73,null,null,null,null,null,"wh-be-"]
[1,3,9,8,17,8,3,1,"412213","Three Little Birds14 ",3,"8-11","Sylvester Kirk57","Jason Watson3",75,75,95,-16.7777709960938,9,6,57,null,75,null,"three little birds8-11",63,63,69,69,72,75,72,72,72,72,null,null,null,null,null,"wh-be-"]
[1,3,10,7,17,9,7,0,"092224","Madame Bounty25 ",4,"8-9","Ed Walker46","Liam Keniry",73,89,98,-1.77777099609375,5,8,46,null,73,null,"madame bounty8-9",77,75,72,73,74,76,72,72,null,null,null,null,null,null,null,"wh-be-"]
[1,5,8,8,16,6,5,0,"151553","Kodiac Express15 ",3,"9-0","Mike Murphy100","Cameron Noble5",78,84,96,-3.77777099609375,6,13,100,null,78,null,"kodiac express9-0",75,77,77,80,81,79,77,71,77,71,null,null,null,null,null,"wh-be-"]
[1,6,8,7,15,2,4,0,"-32518","Awesome18 p",3,"9-7","Clive Cox58","Adam Kirby",85,84,96,3.22222900390625,4,14,58,null,85,null,"awesome9-7",75,82,82,82,82,85,82,82,82,82,null,null,null,null,null,"wh-be-"]
[1,7,4,8,12,7,2,1,"-44747","May Remain32 ",3,"8-13","Paul Cole71","Rossa Ryan3",77,78,99,-7.77777099609375,8,18,71,null,77,null,"may remain8-13",86,85,83,82,79,79,null,null,null,null,null,null,null,null,null,"wh-be-"]
[1,8,4,6,10,5,10,1,"850576","Equimou9 ",4,"9-2","Robert Eddery44","Martin Harley",80,106,94,18.2222290039062,1,18,44,null,80,null,"equimou9-2",93,90,86,83,83,81,92,92,null,null,null,null,null,null,null,"wh-be-"]
[1,9,2,6,8,4,8,1,"00-905","Blaine7 b",8,"9-2","Brian Barr43","Rhiain Ingram5",80,81,95,-5.77777099609375,7,24,43,null,80,null,"blaine9-2",97,95,92,89,85,80,100,87,null,null,null,null,null,null,null,"wh-be-"]
[]
[null,"1730 Newcastle (AW) ATR"]
[null,"RSM Handicap 2m56y"]
[{"$f":"ISNUMBER(FIND(\"wh-\", AO7))","v":true},"Winnings:£5,531 Runners:10 Distance:2m56y Going:Standard Channel:ATR",null,null,null,null,null,null,null,null,null,null,null,null,null,null,null,"OF Strategy",null,"              Recent Form ",null,"Speed",null,null,"                  Official Ratings",null,null,null,null,null,null,"             Life Win",null,"           Year Win",null,null,"         Trends",null,null,null,null,null,null,"Course Stats (Flat Only)",null,"                    Win %",null,null,null,"                   ROI %"]
[null,"Rank","R1","R2","Total","No","Dr","sig","Form","Horse","Age","Weight","Trainer (Run To Form)","Jockey (Allowance)","OR","TS","RPR","Rating","Rank","Horse","Tr'nr","Rank","Tdy","Fut","Horse - Weight",1,2,3,4,5,"LTO","High","Low","High ","Low","Wgt","Hc","Age","Tr'nr","Jock",null,null,null,"Horse","Sire","Trainer","Jockey","Average","Sire","Trainer","Jockey","Average"]
[1,1,11,8,19,7,8,0,"605625","Mambo Dancer12 ",4,"9-0","Mark Johnston53","Joe Fanning",75,73,95,16.650802612304702,2,13,53,null,75,null,"mambo dancer9-0",76,76,75,71,74,75,71,63,71,63,null,null,null,null,null,"wh-be-"]
[1,2,8,6,14,6,2,0,"433112","Cry Wolf17 p",5,"9-3","Alexandra Dunn29","Stephen Cummins7",78,74,94,19.650802612304702,1,4,29,null,78,null,"cry wolf9-3",72,72,72,72,72,76,72,72,72,72,null,null,null,null,null,"wh-be-"]
[1,3,5,8,13,3,5,1,"-82632","Al Kout26 ",4,"9-6","Heather Main40","Ben Curtis",81,56,92,2.6508026123046902,6,11,40,null,81,null,"al kout9-6",80,"-",77,80,80,78,null,null,null,null,null,null,null,null,null,"wh-be-"]
[1,3,7,6,13,4,7,1,"0-8152","On Fire95 hp",5,"9-6","James Bethell56","Daniel Tudhope",81,27,92,-26.349197387695298,8,8,56,null,81,null,"on fire9-6",75,78,77,76,79,78,null,null,null,null,null,null,null,null,null,"wh-be-"]
[1,5,6,6,12,10,4,1,"6993-7","Tetradrachm12 ",5,"8-6","Mike Sowersby","Cam Hardie",67,72,98,10.6508026123047,3,19,null,null,67,null,"tetradrachm8-6",81,79,78,75,73,72,null,null,null,null,null,null,null,null,null,"wh-be-"]
[1,6,7,4,11,1,6,1,"3-2358","Melinoe103 p",4,"9-11","Sir Mark Prescott Bt50","Luke Morris",86,"-",95,10.222202612304701,4,16,50,null,86,null,"melinoe9-11",81,83,86,86,86,"-",null,null,null,null,null,null,null,null,null,"wh-be-"]
[1,7,2,6,8,2,3,0,"0/6-62","Tommy Docc48 ",6,"9-7","Keith Dalgleish38","Connor Beasley",82,"-",93,4.2222026123046996,5,14,38,null,82,null,"tommy docc9-7",94,93,93,90,86,83,null,null,null,null,null,null,null,null,null,"wh-be-"]
[1,7,3,5,8,5,9,0,"139096","Archippos12 ",5,"9-5","Philip Kirby32","Andrew Mullen",80,17,91,-38.349197387695298,9,25,32,null,80,null,"archippos9-5",81,86,86,86,84,82,null,null,null,null,null,null,null,null,null,"wh-be-"]
[1,7,2,6,8,8,10,0,"5-859","Loud And Clear9 ",7,"8-9","Jim Goldie55","Phil Dennis3",70,70,87,0.65080261230468806,7,22,55,null,70,-5,"loud and clear8-9",null,null,"-","-","-",70,null,null,null,null,null,null,null,null,null,"wh-be-"]
[1,10,3,2,5,9,1,0,"6451/","Icario836  h",5,"8-9","Stef Keniry57","Shane Gray",70,"-","-",null,null,10,57,null,70,null,"icario8-9",null,null,"-","-","-","-",null,null,null,null,null,null,null,null,null,"wh-be-"]
[]
[null,"1800 Newcastle (AW) ATR"]
[null,"Muckle Spectrum Apprentice Handicap 7f14y"]
[{"$f":"ISNUMBER(FIND(\"wh-\", AO7))","v":true},"Winnings:£3,752 Runners:13 Distance:7f14y Going:Standard Channel:ATR",null,null,null,null,null,null,null,null,null,null,null,null,null,null,null,"OF Strategy",null,"              Recent Form ",null,"Speed",null,null,"                  Official Ratings",null,null,null,null,null,null,"             Life Win",null,"           Year Win",null,null,"         Trends",null,null,null,null,null,null,"Course Stats (Flat Only)",null,"                    Win %",null,null,null,"                   ROI %"]
[null,"Rank","R1","R2","Total","No","Dr","sig","Form","Horse","Age","Weight","Trainer (Run To Form)","Jockey (Allowance)","OR","TS","RPR","Rating","Rank","Horse","Tr'nr","Rank","Tdy","Fut","Horse - Weight",1,2,3,4,5,"LTO","High","Low","High ","Low","Wgt","Hc","Age","Tr'nr","Jock",null,null,null,"Horse","Sire","Trainer","Jockey","Average","Sire","Trainer","Jockey","Average"]
[1,1,14,9,23,12,13,0,"883152","Gun Case5 p",6,"9-4","Alistair Whillans57","Andrew Breslin3",67,66,84,-5.3000030517578098,10,8,57,null,67,null,"gun case9-4",62,60,62,63,67,67,63,59,63,59,null,null,null,null,null,"wh-be-"]
[1,2,13,9,22,5,4,0,"225851","War Department5 v",5,"9-11","Keith Dalgleish38","Callum Rodriguez",74,62,80,-6.3000030517578098,11,14,38,null,74,-3,"war department9-11",73,73,73,72,70,68,91,68,68,68,null,null,null,null,null,"wh-be-"]
[1,3,10,6,16,6,1,0,"933652","Inner Circle21 p",4,"9-10","Roger Fell45","Paula Muir",73,"-",85,4.9999969482421998,6,13,45,null,73,null,"inner circle9-10",77,76,76,75,74,72,null,null,null,null,null,null,null,null,null,"wh-be-"]
[1,3,9,7,16,3,5,0,"160306","Deansgate15 ",5,"9-11","Julie Camacho40","Connor Murtagh",74,77,83,11.6999969482422,1,19,40,null,74,null,"deansgate9-11",73,80,80,78,78,76,73,73,73,73,null,null,null,null,null,"wh-be-"]
[1,5,8,7,15,11,7,1,"609134","Curly Girl27 ",4,"9-4","John James Feane43","Adam Farragher7",67,68,78,-9.3000030517578107,12,8,43,null,67,-8,"curly girl9-4",63,63,60,59,65,67,null,null,null,null,null,null,null,null,null,"wh-be-"]
[1,6,6,8,14,14,3,0,"052335","Grey Destiny5 p",8,"9-0","Antony Brittain44","Kieran Schofield3",63,74,82,-3.3000030517578098,9,11,44,null,63,-2,"grey destiny9-0",55,61,61,59,63,63,61,52,61,57,null,null,null,null,null,"wh-be-"]
[1,7,7,6,13,4,8,1,"887100","Gabrial The Tiger19 ",6,"9-11","Richard Fahey34","Sebastian Woods3",74,"-",82,2.9999969482422002,7,21,34,null,74,null,"gabrial the tiger9-11",75,73,71,69,74,74,null,null,null,null,null,null,null,null,null,"wh-be-"]
[1,7,8,5,13,13,2,0,"183122","Naples Bay11 ",4,"9-2","John Quinn54","Ray Dawson3",65,50,82,-25.300003051757798,13,5,54,null,65,null,"naples bay9-2",59,65,63,62,64,65,null,null,null,null,null,null,null,null,null,"wh-be-"]
[1,7,7,6,13,2,11,0,"661980","Lagenda24 ",5,"9-12","Lawrence Mullaney27","Faye McManoman3",75,73,82,7.6999969482421902,3,27,27,null,75,null,"lagenda9-12",76,75,72,77,77,76,null,null,null,null,null,null,null,null,null,"wh-be-"]
[1,7,6,7,13,7,10,0,"570580","Kentuckyconnection5 p",5,"9-9","Bryan Smart50","Harry Russell7",72,74,84,7.6999969482421902,3,23,50,null,72,-2,"kentuckyconnection9-9",85,82,79,76,74,74,null,null,null,null,null,null,null,null,null,"wh-be-"]
[1,11,7,5,12,9,12,0,"473390","Sultan Baybars13 v",4,"9-7","David OMeara40","Conor McGovern",70,78,84,9.6999969482421893,2,22,40,null,70,null,"sultan baybars9-7",79,76,76,72,73,72,null,null,null,null,null,null,null,null,null,"wh-be-"]
[1,12,7,4,11,1,14,0,"867912","Art Echo65 tp",5,"9-12","John Mackie38","Oakley Brown7",75,71,82,5.6999969482421902,5,12,38,null,75,null,"art echo9-12",78,76,75,73,70,75,70,70,70,70,null,null,null,null,null,"wh-be-"]
[1,13,4,4,8,10,6,1,"750-20","Tukhoom20 ",5,"9-7","Michael Herrington67","Phil Dennis",70,"-",82,-1.0000030517578,8,22,67,null,70,null,"tukhoom9-7",79,77,75,72,67,71,null,null,null,null,null,null,null,null,null,"wh-be-"]
[]
[null,"1830 Newcastle (AW) ATR"]
[null,"Orange Bus Novice Stakes 5f"]
[{"$f":"ISNUMBER(FIND(\"wh-\", AO7))","v":true},"Winnings:£3,752 Runners:6 Distance:5f Going:Standard Channel:ATR",null,null,null,null,null,null,null,null,null,null,null,null,null,null,null,"OF Strategy",null,"              Recent Form ",null,"Speed",null,null,"                  Official Ratings",null,null,null,null,null,null,"             Life Win",null,"           Year Win",null,null,"         Trends",null,null,null,null,null,null,"Course Stats (Flat Only)",null,"                    Win %",null,null,null,"                   ROI %"]
[null,"Rank","R1","R2","Total","No","Dr","sig","Form","Horse","Age","Weight","Trainer (Run To Form)","Jockey (Allowance)","OR","TS","RPR","Rating","Rank","Horse","Tr'nr","Rank","Tdy","Fut","Horse - Weight",1,2,3,4,5,"LTO","High","Low","High ","Low","Wgt","Hc","Age","Tr'nr","Jock",null,null,null,"Horse","Sire","Trainer","Jockey","Average","Sire","Trainer","Jockey","Average"]
[1,1,10,8,18,3,2,0,"2-0823","Go Roo5 v1",3,"9-2","David OMeara40","Daniel Tudhope",69,56,85,26.1000061035156,1,13,40,null,69,null,"go roo9-2","-","-",74,72,69,69,null,null,null,null,null,null,null,null,null,"wh-be-"]
[1,2,6,9,15,5,1,0,"35323","Madam Devious12 v",3,"8-11","Robert Cowell63","Joe Fanning",60,40,80,-3.8999938964843799,3,8,63,null,60,null,"madam devious8-11",null,"-","-","-",60,60,null,null,null,null,null,null,null,null,null,"wh-be-"]
[1,3,6,5,11,4,3,0,"53250","Hop Maddocks7 ",3,"9-2","Colin Teague","Andrew Elliott",70,21,83,-9.8999938964843803,4,17,null,null,70,null,"hop maddocks9-2",null,"-","-","-",72,70,null,null,null,null,null,null,null,null,null,"wh-be-"]
[1,4,3,7,10,2,5,0,"9730","Gleaming Arch7 ",4,"9-2","Fred Watson33","David Allan",63,35,74,-11.8999938964844,5,20,33,null,63,null,"gleaming arch9-2",null,null,"-","-","-",63,null,null,null,null,null,null,null,null,null,"wh-be-"]
[1,5,6,2,8,1,4,0,"21-","Debawtry398 ",3,"9-2","John Balding50","Lewis Edmunds","-","-",80,-0.399993896484375,2,13,50,null,"-",null,"debawtry9-2",null,null,null,null,"-","-",null,null,null,null,null,null,null,null,null,"wh-be-"]
[1,6,2,1,3,6,6,0,null,"Thirlmere ",3,"8-11","Michael Dods48","Callum Rodriguez","-","-","-",null,null,30,48,null,"-",null,"thirlmere8-11",null,null,null,null,null,null,null,null,null,null,null,null,null,null,null,"wh-be-"]
[]
[null,"1900 Newcastle (AW) ATR"]
[null,"Software City Fillies Novice Stakes 1m5y"]
[{"$f":"ISNUMBER(FIND(\"wh-\", AO7))","v":true},"Winnings:£3,752 Runners:9 Distance:1m5y Going:Standard Channel:ATR",null,null,null,null,null,null,null,null,null,null,null,null,null,null,null,"OF Strategy",null,"              Recent Form ",null,"Speed",null,null,"                  Official Ratings",null,null,null,null,null,null,"             Life Win",null,"           Year Win",null,null,"         Trends",null,null,null,null,null,null,"Course Stats (Flat Only)",null,"                    Win %",null,null,null,"                   ROI %"]
[null,"Rank","R1","R2","Total","No","Dr","sig","Form","Horse","Age","Weight","Trainer (Run To Form)","Jockey (Allowance)","OR","TS","RPR","Rating","Rank","Horse","Tr'nr","Rank","Tdy","Fut","Horse - Weight",1,2,3,4,5,"LTO","High","Low","High ","Low","Wgt","Hc","Age","Tr'nr","Jock",null,null,null,"Horse","Sire","Trainer","Jockey","Average","Sire","Trainer","Jockey","Average"]
[1,1,10,6,16,7,9,1,"45250","Reassurance27 p1",3,"8-12","James Tate83","David Allan",73,47,90,31.8928527832031,1,17,83,null,73,null,"reassurance8-12",null,"-","-","-",78,76,null,null,null,null,null,null,null,null,null,"wh-be-"]
[1,2,9,3,12,1,2,0,"71","Improve131 ",3,"9-5","William Haggas60","Daniel Tudhope","-","-",81,5.1428527832031197,4,18,60,null,"-",null,"improve9-5",null,null,null,null,"-","-",null,null,null,null,null,null,null,null,null,"wh-be-"]
[1,3,5,5,10,6,3,0,"33","Never Be Enough10 ",3,"8-12","Keith Dalgleish38","Graham Lee","-","-",80,4.1428527832031197,5,16,38,null,"-",null,"never be enough8-12",null,null,null,null,"-","-",null,null,null,null,null,null,null,null,null,"wh-be-"]
[1,3,3,7,10,4,1,0,"53","Arctic Haze15 ",3,"8-12","James Tate83","Luke Morris","-",60,76,14.3928527832031,2,18,83,null,"-",null,"arctic haze8-12",null,null,null,null,"-","-",null,null,null,null,null,null,null,null,null,"wh-be-"]
[1,5,2,5,7,8,7,1,"889008","Ruby Cherub9 ",3,"8-12","Ruth Carr29","James Sullivan",40,21,54,-63.107147216796903,7,28,29,null,40,null,"ruby cherub8-12","-","-",46,46,45,45,null,null,null,null,null,null,null,null,null,"wh-be-"]
[1,6,0,3,3,5,6,0,"67","Call Me Madam33 ",3,"8-12","James Bethell56","Andrew Elliott","-","-",78,2.1428527832031201,6,23,56,null,"-",null,"call me madam8-12",null,null,null,null,"-","-",null,null,null,null,null,null,null,null,null,"wh-be-"]
[1,7,0,2,2,9,4,0,"5-","Sun Hat305 ",3,"8-12","Simon Crisford80","Joe Fanning","-",55,72,5.3928527832031197,3,25,80,null,"-",null,"sun hat8-12",null,null,null,null,null,"-",null,null,null,null,null,null,null,null,null,"wh-be-"]
[1,8,0,0,0,2,5,0,"00-","Dutch Melody460 ",4,"9-1","Lucinda Egerton","Cam Hardie","-","-","-",null,null,30,null,null,"-",null,"dutch melody9-1",null,null,null,null,"-","-",null,null,null,null,null,null,null,null,null,"wh-be-"]
[1,8,0,0,0,3,8,1,null,"Toccata Mia ",4,"9-1","Philip Kirby32","Andrew Mullen","-","-","-",null,null,30,32,null,"-",null,"toccata mia9-1",null,null,null,null,null,null,null,null,null,null,null,null,null,null,null,"wh-be-"]
[]
[null,"1930 Newcastle (AW) ATR"]
[null,"Digital Catapult Handicap (Div I) 6f"]
[{"$f":"ISNUMBER(FIND(\"wh-\", AO7))","v":true},"Winnings:£3,105 Runners:14 Distance:6f Going:Standard Channel:ATR",null,null,null,null,null,null,null,null,null,null,null,null,null,null,null,"OF Strategy",null,"              Recent Form ",null,"Speed",null,null,"                  Official Ratings",null,null,null,null,null,null,"             Life Win",null,"           Year Win",null,null,"         Trends",null,null,null,null,null,null,"Course Stats (Flat Only)",null,"                    Win %",null,null,null,"                   ROI %"]
[null,"Rank","R1","R2","Total","No","Dr","sig","Form","Horse","Age","Weight","Trainer (Run To Form)","Jockey (Allowance)","OR","TS","RPR","Rating","Rank","Horse","Tr'nr","Rank","Tdy","Fut","Horse - Weight",1,2,3,4,5,"LTO","High","Low","High ","Low","Wgt","Hc","Age","Tr'nr","Jock",null,null,null,"Horse","Sire","Trainer","Jockey","Average","Sire","Trainer","Jockey","Average"]
[1,1,9,8,17,1,4,0,"135455","Lucky Lodge9 v",8,"9-9","Antony Brittain44","Cam Hardie",61,70,72,24.0259704589844,1,14,44,null,61,null,"lucky lodge9-9",62,57,56,53,63,51,65,60,62,62,null,null,null,null,null,"wh-be-"]
[1,2,10,6,16,2,2,0,"761256","Cliff13 ",8,"9-7","Nigel Tinkler39","Faye McManoman7",59,"-",71,7.57147045898438,5,13,39,null,59,null,"cliff9-7",57,56,54,58,58,61,67,61,null,null,null,null,null,null,null,"wh-be-"]
[1,3,7,8,15,5,14,1,"178356","Jessie Allan15 ",7,"9-6","Jim Goldie55","Jamie Gormley3",58,50,74,3.0259704589843799,7,14,55,null,58,null,"jessie allan9-6",61,65,65,64,65,63,null,null,null,null,null,null,null,null,null,"wh-be-"]
[1,4,8,6,14,6,10,1,"047923","Sir Domino9 ",6,"9-4","Lawrence Mullaney27","Daniel Tudhope",56,"-",62,-4.42852954101562,9,14,27,null,56,null,"sir domino9-4",47,47,46,46,46,47,null,null,null,null,null,null,null,null,null,"wh-be-"]
[1,5,5,8,13,3,8,0,"632705","Indian Warrior23 ",3,"9-7","Ruth Carr29","James Sullivan",60,61,73,15.0259704589844,2,22,29,null,60,null,"indian warrior9-7",68,67,65,65,65,63,null,null,null,null,null,null,null,null,null,"wh-be-"]
[1,6,4,7,11,10,12,1,"400043","Viking Way32 b",3,"8-9","Olly Williams33","Graham Lee",48,49,76,-5.9740295410156197,10,17,33,null,48,null,"viking way8-9",56,56,56,54,51,50,null,null,null,null,null,null,null,null,null,"wh-be-"]
[1,6,4,7,11,9,3,0,"865950","Mitchum7 ",9,"8-12","Ron Barr10","David Allan",50,62,69,2.0259704589843799,8,24,10,null,50,-2,"mitchum8-12",54,53,52,52,51,50,null,null,null,null,null,null,null,null,null,"wh-be-"]
[1,8,5,5,10,4,1,0,"744160","Captain Bob109 p",7,"9-6","Philip Kirby32","Andrew Mullen",58,65,70,14.0259704589844,3,17,32,null,58,null,"captain bob9-6",57,55,65,55,65,63,55,55,55,55,null,null,null,null,null,"wh-be-"]
[1,8,3,7,10,8,7,0,"65543","Eternal Destiny11 ",3,"8-13","Rae Guest67","William Carson",52,46,68,-12.9740295410156,11,12,67,null,52,null,"eternal destiny8-13",null,"-","-","-",52,52,null,null,null,null,null,null,null,null,null,"wh-be-"]
[1,10,2,6,8,7,11,1,"655980","Wide Acclaim11 t",3,"9-2","Rebecca Menzies20","Ben Curtis",55,59,72,7.0259704589843803,6,27,20,null,55,null,"wide acclaim9-2","-","-",68,67,64,60,null,null,null,null,null,null,null,null,null,"wh-be-"]
[1,11,2,5,7,13,9,0,"860704","Henriettas Dream5 b",4,"8-8","John Wainwright67","Shane Gray",46,41,72,-19.9740295410156,13,21,67,null,46,-1,"henriettas dream8-8",46,46,46,45,56,38,null,null,null,null,null,null,null,null,null,"wh-be-"]
[1,11,1,6,7,11,6,0,"6-4593","Billyfairplay29 ",4,"8-8","John James Feane43","Luke Morris",46,72,69,8.0259704589843803,4,17,43,null,46,null,"billyfairplay8-8",53,53,50,50,48,45,null,null,null,null,null,null,null,null,null,"wh-be-"]
[1,13,0,6,6,14,13,1,"866905","Eyes Of Fire47 ",3,"8-7","John Norton","Paddy Aspell",46,47,63,-22.9740295410156,14,24,null,null,46,-5,"eyes of fire8-7",48,47,47,46,45,45,null,null,null,null,null,null,null,null,null,"wh-be-"]
[1,14,0,3,3,12,5,0,"755909","Red Forever34 h",7,"8-8","Helen Cuthbert","Rachel Richardson",46,"-",62,-14.4285295410156,12,28,null,null,46,-7,"red forever8-8",46,46,45,45,45,45,null,null,null,null,null,null,null,null,null,"wh-be-"]
[]
[null,"2000 Newcastle (AW) ATR"]
[null,"Digital Catapult Handicap (Div II) 6f"]
[{"$f":"ISNUMBER(FIND(\"wh-\", AO7))","v":true},"Winnings:£3,105 Runners:14 Distance:6f Going:Standard Channel:ATR",null,null,null,null,null,null,null,null,null,null,null,null,null,null,null,"OF Strategy",null,"              Recent Form ",null,"Speed",null,null,"                  Official Ratings",null,null,null,null,null,null,"             Life Win",null,"           Year Win",null,null,"         Trends",null,null,null,null,null,null,"Course Stats (Flat Only)",null,"                    Win %",null,null,null,"                   ROI %"]
[null,"Rank","R1","R2","Total","No","Dr","sig","Form","Horse","Age","Weight","Trainer (Run To Form)","Jockey (Allowance)","OR","TS","RPR","Rating","Rank","Horse","Tr'nr","Rank","Tdy","Fut","Horse - Weight",1,2,3,4,5,"LTO","High","Low","High ","Low","Wgt","Hc","Age","Tr'nr","Jock",null,null,null,"Horse","Sire","Trainer","Jockey","Average","Sire","Trainer","Jockey","Average"]
[1,1,12,7,19,11,9,0,"848083","Ticks The Boxes9 p",6,"8-8","John Wainwright67","Jamie Gormley3",46,56,74,6.9340667724609402,5,21,67,null,46,null,"ticks the boxes8-8",56,56,54,51,48,46,86,67,null,null,null,null,null,null,null,"wh-be-"]
[1,2,10,7,17,1,10,1,"507635","Duke Cosimo44 ",8,"9-8","Michael Herrington67","Phil Dennis3",60,75,72,37.934066772460902,1,14,67,null,60,null,"duke cosimo9-8",67,67,67,65,63,62,74,66,66,66,null,null,null,null,null,"wh-be-"]
[1,2,9,8,17,5,14,1,"233639","Ghost46 h",3,"9-5","John Quinn54","Ray Dawson5",58,49,72,9.9340667724609393,3,18,54,null,58,null,"ghost9-5",61,62,62,62,61,60,58,58,58,58,null,null,null,null,null,"wh-be-"]
[1,4,8,8,16,4,11,1,"461320","Supaulette9 b",3,"9-6","Tim Easterby44","David Allan",59,44,69,2.9340667724609402,7,15,44,null,59,null,"supaulette9-6",54,52,52,58,58,59,null,null,null,null,null,null,null,null,null,"wh-be-"]
[1,5,8,6,14,9,12,1,"155953","Carlovian7 v",5,"8-11","Mark Walford25","Paula Muir5",49,48,74,1.9340667724609399,8,17,25,null,49,3,"carlovian8-11",49,53,52,51,50,50,null,null,null,null,null,null,null,null,null,"wh-be-"]
[1,5,7,7,14,10,2,0,"090392","Guiding Star12 tp",4,"8-9","R K Watson50","Joe Fanning",47,44,69,-9.0659332275390607,11,14,50,null,47,-1,"guiding star8-9",47,47,46,45,45,46,null,null,null,null,null,null,null,null,null,"wh-be-"]
[1,7,6,7,13,6,3,0,"002069","Ocean Temptress21 p",4,"9-3","John Ryan50","Luke Morris",55,49,66,0.93406677246093806,9,25,50,null,55,null,"ocean temptress9-3",67,66,64,64,62,57,null,null,null,null,null,null,null,null,null,"wh-be-"]
[1,8,4,7,11,3,7,0,"70-000","Black Hambleton9 ",5,"9-7","Bryan Smart50","Harry Russell7",59,29,54,-27.065933227539102,13,30,50,null,59,-4,"black hambleton9-7",58,64,64,64,62,59,58,58,null,null,null,null,null,null,null,"wh-be-"]
[1,9,5,5,10,7,5,0,"043400","Campion13 p",3,"9-2","Philip Kirby32","Connor Murtagh5",55,64,73,22.934066772460898,2,24,32,null,55,null,"campion9-2",68,64,61,61,61,58,null,null,null,null,null,null,null,null,null,"wh-be-"]
[1,10,3,6,9,14,1,0,"00-937","Marcella5 ",3,"8-7","Ruth Carr29","James Sullivan",46,27,63,-33.065933227539098,14,19,29,null,46,-1,"marcella8-7",null,"-","-","-",25,25,null,null,null,null,null,null,null,null,null,"wh-be-"]
[1,11,2,5,7,2,8,0,"06-238","Gorse193 p",3,"9-7","Ann Duffield31","Connor Beasley",60,48,67,5.9340667724609402,6,13,31,null,60,null,"gorse9-7",63,63,62,61,62,62,null,null,null,null,null,null,null,null,null,"wh-be-"]
[1,12,2,4,6,12,6,0,"8-0608","Yair Hill53 p",10,"8-8","Helen Cuthbert","Rachel Richardson",46,"-",69,-5.14283322753906,10,24,null,null,46,-4,"yair hill8-8",47,52,46,56,46,46,null,null,null,null,null,null,null,null,null,"wh-be-"]
[1,13,1,4,5,8,4,0,"78730","First Breath71 ",3,"8-13","Ben Haslam90","Graham Lee",52,59,66,7.9340667724609402,4,20,90,null,52,null,"first breath8-13",null,"-","-","-",53,53,null,null,null,null,null,null,null,null,null,"wh-be-"]
[1,14,0,1,1,13,13,1,"878-64","Argon257 ",3,"8-7","Noel Wilson27","Andrew Mullen",46,44,56,-23.065933227539102,12,18,27,null,46,null,"argon8-7",null,"-","-","-","-",48,null,null,null,null,null,null,null,null,null,"wh-be-"]
[]
[null,"2030 Newcastle (AW) ATR"]
[null,"Go Go Go Reboot Handicap 5f"]
[{"$f":"ISNUMBER(FIND(\"wh-\", AO7))","v":true},"Winnings:£3,105 Runners:14 Distance:5f Going:Standard Channel:ATR",null,null,null,null,null,null,null,null,null,null,null,null,null,null,null,"OF Strategy",null,"              Recent Form ",null,"Speed",null,null,"                  Official Ratings",null,null,null,null,null,null,"             Life Win",null,"           Year Win",null,null,"         Trends",null,null,null,null,null,null,"Course Stats (Flat Only)",null,"                    Win %",null,null,null,"                   ROI %"]
[null,"Rank","R1","R2","Total","No","Dr","sig","Form","Horse","Age","Weight","Trainer (Run To Form)","Jockey (Allowance)","OR","TS","RPR","Rating","Rank","Horse","Tr'nr","Rank","Tdy","Fut","Horse - Weight",1,2,3,4,5,"LTO","High","Low","High ","Low","Wgt","Hc","Age","Tr'nr","Jock",null,null,null,"Horse","Sire","Trainer","Jockey","Average","Sire","Trainer","Jockey","Average"]
[1,1,15,8,23,1,3,0,"706341","Another Angel5 ",4,"9-7","Antony Brittain44","Cam Hardie",55,60,67,12.1103820800781,3,8,44,null,55,1,"another angel9-7",69,64,59,56,56,54,54,54,54,54,null,null,null,null,null,"wh-be-"]
[1,2,13,8,21,2,4,0,"354198","Sienna Says12 p",3,"9-7","Roger Fell45","Ben Curtis",55,63,67,15.1103820800781,2,18,45,null,55,null,"sienna says9-7",54,54,54,54,56,56,54,54,54,54,null,null,null,null,null,"wh-be-"]
[1,3,12,8,20,7,13,1,"473741","Displaying Amber12 p",3,"9-1","Ben Haslam90","Andrew Mullen",49,61,65,5.1103820800781197,4,12,90,null,49,null,"displaying amber9-1",51,50,49,48,46,45,45,45,45,45,null,null,null,null,null,"wh-be-"]
[1,4,9,8,17,6,7,0,"468539","Star Cracker13 p",6,"9-2","Jim Goldie55","Daniel Tudhope",50,70,67,17.1103820800781,1,17,55,null,50,null,"star cracker9-2",59,59,57,55,53,52,57,57,57,57,null,null,null,null,null,"wh-be-"]
[1,5,8,8,16,5,8,0,"586130","Poppy Jag11 v1",3,"9-4","Kevin Frost63","Ray Dawson5",52,49,66,-2.8896179199218799,11,14,63,null,52,null,"poppy jag9-4",47,47,46,46,53,53,null,null,null,null,null,null,null,null,null,"wh-be-"]
[1,5,9,7,16,11,11,1,"326563","Little Kingdom12 ",4,"8-12","Tracy Waggott8","Andrew Elliott",46,58,65,-0.889617919921875,9,14,8,null,46,-1,"little kingdom8-12",45,46,51,46,46,45,53,53,null,null,null,null,null,null,null,"wh-be-"]
[1,7,7,8,15,8,6,0,"535458","Oriental Splendour12 p",6,"9-0","Ruth Carr29","James Sullivan",48,45,67,-9.8896179199218803,12,17,29,null,48,null,"oriental splendour9-0",59,57,55,53,52,50,null,null,null,null,null,null,null,null,null,"wh-be-"]
[1,8,7,7,14,9,14,1,"707573","Pavlichenko28 p",3,"8-13","John James Feane43","Luke Morris",47,56,67,0.110382080078125,7,15,43,null,47,3,"pavlichenko8-13","-",57,55,50,48,48,null,null,null,null,null,null,null,null,null,"wh-be-"]
[1,9,7,5,12,13,2,0,"881480","Nifty Niece12 ",4,"8-12","Ann Duffield31","Joe Fanning",46,30,67,-26.8896179199219,14,22,31,null,46,-2,"nifty niece8-12",47,46,46,47,47,46,null,null,null,null,null,null,null,null,null,"wh-be-"]
[1,9,6,6,12,3,9,0,"239455","Compton Abbey11 tp",4,"9-7","Alexandra Dunn29","Stephen Cummins7",55,51,69,5.1103820800781197,4,14,29,null,55,null,"compton abbey9-7",56,56,58,58,57,55,55,55,55,55,null,null,null,null,null,"wh-be-"]
[1,11,4,7,11,10,12,1,"460370","Encoded12 ",5,"8-12","Lynn Siddall","Callum Rodriguez",46,60,66,2.1103820800781201,6,20,null,null,46,-1,"encoded8-12",47,46,46,45,45,46,null,null,null,null,null,null,null,null,null,"wh-be-"]
[1,12,3,5,8,4,5,0,"0564","The Bull22 ",3,"9-5","Ben Haslam90","Graham Lee",53,"-",62,-7.1417919921884704E-2,8,15,90,null,53,null,"the bull9-5",null,null,"-","-","-",54,null,null,null,null,null,null,null,null,null,"wh-be-"]
[1,13,2,1,3,12,1,0,"049","Sasheeda107 p1",4,"8-12","Michael Mullineaux57","Phil Dennis3",46,"-",67,-2.0714179199218798,10,23,57,null,46,-1,"sasheeda8-12",null,null,null,"-","-","-",null,null,null,null,null,null,null,null,null,"wh-be-"]
[1,14,0,2,2,14,10,1,"09068-","Mr Conundrum393 ",5,"8-12","Lynn Siddall","Paddy Aspell",46,"-",55,-14.071417919921901,13,24,null,null,46,-5,"mr conundrum8-12",46,49,50,51,51,46,null,null,null,null,null,null,null,null,null,"wh-be-"]